{"text_format":"1","workbook":"xlsx","n_sheets":13,"sheets":["Model","Beslissingsstructuur","Equipment-Method Choice","Method_Desc","Fouling","OnOff Site","Supplier","Impact","Material of Construction","Size and Dimensions","Lists","Impact per Methode","Leveranciers"],"not_rendered":{"charts":0,"images":6,"macros":1,"external_links":0,"defined_names":10,"comments":0,"pivot_tables":0},"unopened":[],"bounds":{"document_bytes":16777216,"sheet_cells":100000,"rows_first":2000,"rows_last":500,"rows_between":2000,"halvings":0,"cell_chars":16384,"cell_head_chars":4096},"cells_cut":0,"cells_raw":0,"read":"whole","date_system":"1900"}

{"sheet":"Model","index":0,"n_rows":36,"n_cols":27,"rows_kept":36,"cut":false,"hidden":false,"merged":[[4,2,4,4],[3,2,3,4],[13,25,35,27]]}
[null,null,"Descision matrix - Industrial Cleaning",null,null,null,null,"ver.","2022-12-15","↓ Input",null,null,null,null,"Output ↓ ",null,null,null,null,null,null,null,null,null,null,"Details ↓ "]
[]
[null,null,null,null,null,null,null,null,null,null,null,null,null,null,"Summary of resulting possible suppliers and cleaning methods. For details, see sheets."]
[null,null,"Step 1: Reason for cleaning",null,null,null,"Core Value","Prio","Beschrijving",null,null,null,null,null,null,"Choose viewing options to ensure you see latest results.",null,null,null,null,null,null,null,null,null,"Supplier contact details"]
[null,null,"Breakdown - unexpected",null,null,"<-- choose reason","Sustainability",{"$f":"IF($C$5=Lists!$S$9,3,IF($C$5=Lists!$S$10,9,IF($C$5=Lists!$S$11,9,\"Error\")))","v":3},"Waste, water, energy…",null,null,null,null,null,null,null,null,null,null,null,null,null,null,null,null,"(for selection in Possible Supplier list)"]
[null,null,null,null,null,null,"Cost",{"$f":"IF($C$5=Lists!$S$9,0,IF($C$5=Lists!$S$10,0,IF($C$5=Lists!$S$11,0,\"Error\")))","v":0},"Direct and indirect",null,null,null,null,null,null,null,null,null,null,{"$f":"IF(SUBTOTAL(3,Leverancier[Bedrijf])>1,1,0)","v":1}]
[null,null,null,null,null,null,"Productivity",{"$f":"IF($C$5=Lists!$S$9,9,IF($C$5=Lists!$S$10,6,IF($C$5=Lists!$S$11,6,\"Error\")))","v":9},"Run-to-run time",null,null,null,null,null,null,null,null,null,null,null,null,null,null,null,null,"Supplier:",{"$f":"IF($T$6=1,\"\",VLOOKUP(SUBTOTAL(4,Leverancier[Supplier]),Supplier!B1:AE29,2))","v":""}]
[null,null,null,null,null,null,"Quality",{"$f":"IF($C$5=Lists!$S$9,3,IF($C$5=Lists!$S$10,9,IF($C$5=Lists!$S$11,6,\"Error\")))","v":3},"Of the cleaning activity",null,null,null,null,null,null,null,null,null,null,null,null,null,null,null,null,"Contact:",{"$f":"IF(T6=1,\"\",VLOOKUP(SUBTOTAL(4,Leverancier[Supplier]),Supplier!B1:AE29,29))","v":""}]
[null,null,null,null,null,null,"EH&S Risks",9,"total / severity of risks",null,null,null,null,null,null,null,null,null,null,null,null,null,null,null,null,"Addess:",{"$f":"IF(T6=1,\"\",VLOOKUP(SUBTOTAL(4,Leverancier[Supplier]),Supplier!B1:AE29,28))","v":""}]
[null,null,null,null,null,null,null,null,null,null,null,null,null,null,null,null,null,null,null,null,null,null,null,null,null,"Tel:",{"$f":"IF(T6=1,\"\",VLOOKUP(SUBTOTAL(4,Leverancier[Supplier]),Supplier!B1:AE29,27))","v":""}]
[]
[null,null,"Filter by choosing equipment, fouling type, on/off site, and what you want to view:",null,null,null,null,null,null,null,null,null,null,null,"Suppliers and Methods",null,null,null,null,null,null,null,null,null,null,"Cleaning Method Description"]
[null,null,null,null,null,null,null,null,null,null,null,null,null,null,null,null,null,null,"Method","Impact","Feasible?",null,null,null,null,"Method"]
[null,null,null,null,null,null,null,null,null,null,null,null,null,null,null,null,null,null,{"$f":"Impact!AD18","v":"M: Tube Darting & Scraping"},{"$f":"Impact!AE18","v":7.2},{"$f":"IF(MethodRes[[#This Row],[Impact]]=-999,\"No\",\"Yes\")","v":"Yes"},null,null,null,null,{"$f":"VLOOKUP(Z13,Method_Desc!B4:E44,2,FALSE)","v":"Click on cleaning method in Method table to see description"}]
[null,null,null,null,null,null,null,null,null,null,null,null,null,null,null,null,null,null,{"$f":"Impact!AD19","v":"M: 3D- Nozzle (Butterworth / Tankwas kop)"},{"$f":"Impact!AE19","v":-6},{"$f":"IF(MethodRes[[#This Row],[Impact]]=-999,\"No\",\"Yes\")","v":"Yes"}]
[null,null,null,null,null,null,null,null,null,null,null,null,null,null,null,null,null,null,{"$f":"Impact!AD20","v":"M: Rotating Hose Devices"},{"$f":"Impact!AE20","v":-6},{"$f":"IF(MethodRes[[#This Row],[Impact]]=-999,\"No\",\"Yes\")","v":"Yes"}]
[null,null,null,null,null,null,null,null,null,null,null,null,null,null,null,null,null,null,{"$f":"Impact!AD21","v":"M: Water Jetting (UHP)"},{"$f":"Impact!AE21","v":-6},{"$f":"IF(MethodRes[[#This Row],[Impact]]=-999,\"No\",\"Yes\")","v":"Yes"}]
[null,null,null,null,null,null,null,null,null,null,null,null,null,null,null,null,null,null,{"$f":"Impact!AD22","v":"M: Pigging"},{"$f":"Impact!AE22","v":1.7999999999999998},{"$f":"IF(MethodRes[[#This Row],[Impact]]=-999,\"No\",\"Yes\")","v":"Yes"}]
[null,null,null,null,null,null,null,null,null,null,null,null,null,null,null,null,null,null,{"$f":"Impact!AD23","v":"M: Ultrasonic Baths (Chemical Cleaning)"},{"$f":"Impact!AE23","v":-12.6},{"$f":"IF(MethodRes[[#This Row],[Impact]]=-999,\"No\",\"Yes\")","v":"Yes"}]
[null,null,null,null,null,null,null,null,null,null,null,null,null,null,null,null,null,null,{"$f":"Impact!AD24","v":"M: Abrasive Blasting"},{"$f":"Impact!AE24","v":1.2000000000000028},{"$f":"IF(MethodRes[[#This Row],[Impact]]=-999,\"No\",\"Yes\")","v":"Yes"}]
[null,null,null,null,null,null,null,null,null,null,null,null,null,null,null,null,null,null,{"$f":"Impact!AD25","v":"M: Drilling"},{"$f":"Impact!AE25","v":9.3000000000000007},{"$f":"IF(MethodRes[[#This Row],[Impact]]=-999,\"No\",\"Yes\")","v":"Yes"}]
[null,null,null,null,null,null,null,null,null,null,null,null,null,null,null,null,null,null,{"$f":"Impact!AD26","v":"M: Hydrokinetic Cleaning"},{"$f":"Impact!AE26","v":6.3000000000000007},{"$f":"IF(MethodRes[[#This Row],[Impact]]=-999,\"No\",\"Yes\")","v":"Yes"}]
[null,null,null,null,null,null,null,null,null,null,null,null,null,null,null,null,null,null,{"$f":"Impact!AD27","v":"M: Manway Canons"},{"$f":"Impact!AE27","v":-6},{"$f":"IF(MethodRes[[#This Row],[Impact]]=-999,\"No\",\"Yes\")","v":"Yes"}]
[null,null,null,null,null,null,null,null,null,null,null,null,null,null,null,null,null,null,{"$f":"Impact!AD28","v":"M: Remotely Operated Vehicles"},{"$f":"Impact!AE28","v":-8.1},{"$f":"IF(MethodRes[[#This Row],[Impact]]=-999,\"No\",\"Yes\")","v":"Yes"}]
[null,null,null,null,null,null,null,null,null,null,null,null,null,null,null,null,null,null,{"$f":"Impact!AD29","v":"M: CO2 Blasting"},{"$f":"Impact!AE29","v":-4.1999999999999993},{"$f":"IF(MethodRes[[#This Row],[Impact]]=-999,\"No\",\"Yes\")","v":"Yes"}]
[null,null,null,null,null,null,null,null,null,null,null,null,null,null,null,null,null,null,{"$f":"Impact!AD30","v":"M: Flushing"},{"$f":"Impact!AE30","v":-6},{"$f":"IF(MethodRes[[#This Row],[Impact]]=-999,\"No\",\"Yes\")","v":"Yes"}]
[null,null,null,null,null,null,null,null,null,null,null,null,null,null,null,null,null,null,{"$f":"Impact!AD31","v":"M: Brushing"},{"$f":"Impact!AE31","v":-3.5999999999999996},{"$f":"IF(MethodRes[[#This Row],[Impact]]=-999,\"No\",\"Yes\")","v":"Yes"}]
[null,null,null,null,null,null,null,null,null,null,null,null,null,null,null,null,null,null,{"$f":"Impact!AD32","v":"M: Air Lancing"},{"$f":"Impact!AE32","v":-52.800000000000004},{"$f":"IF(MethodRes[[#This Row],[Impact]]=-999,\"No\",\"Yes\")","v":"Yes"}]
[null,null,null,null,null,null,null,null,null,null,null,null,null,null,null,null,null,null,{"$f":"Impact!AD33","v":"M: Sodium Bi-Carbonate Blasting"},{"$f":"Impact!AE33","v":-5.9999999999999982},{"$f":"IF(MethodRes[[#This Row],[Impact]]=-999,\"No\",\"Yes\")","v":"Yes"}]
[null,null,null,null,null,null,null,null,null,null,null,null,null,null,null,null,null,null,{"$f":"Impact!AD34","v":"M: Vacuum, Blowing, Suction Techniques"},{"$f":"Impact!AE34","v":6.8999999999999995},{"$f":"IF(MethodRes[[#This Row],[Impact]]=-999,\"No\",\"Yes\")","v":"Yes"}]
[null,null,null,null,null,null,null,null,null,null,null,null,null,null,null,null,null,null,{"$f":"Impact!AD35","v":"T: Liquid Nitrogen Jetting"},{"$f":"Impact!AE35","v":-4.7999999999999972},{"$f":"IF(MethodRes[[#This Row],[Impact]]=-999,\"No\",\"Yes\")","v":"Yes"}]
[null,null,null,null,null,null,null,null,null,null,null,null,null,null,null,null,null,null,{"$f":"Impact!AD36","v":"T: Laser Cleaning"},{"$f":"Impact!AE36","v":2.6999999999999993},{"$f":"IF(MethodRes[[#This Row],[Impact]]=-999,\"No\",\"Yes\")","v":"Yes"}]
[null,null,null,null,null,null,null,null,null,null,null,null,null,null,null,null,null,null,{"$f":"Impact!AD37","v":"T: Pyrolysis"},{"$f":"Impact!AE37","v":12.6},{"$f":"IF(MethodRes[[#This Row],[Impact]]=-999,\"No\",\"Yes\")","v":"Yes"}]
[null,null,null,null,null,null,null,null,null,null,null,null,null,null,null,null,null,null,{"$f":"Impact!AD38","v":"C: Acidizing"},{"$f":"Impact!AE38","v":-8.6999999999999993},{"$f":"IF(MethodRes[[#This Row],[Impact]]=-999,\"No\",\"Yes\")","v":"Yes"}]
[null,null,null,null,null,null,null,null,null,null,null,null,null,null,null,null,null,null,{"$f":"Impact!AD39","v":"C: Degreasing"},{"$f":"Impact!AE39","v":-8.6999999999999993},{"$f":"IF(MethodRes[[#This Row],[Impact]]=-999,\"No\",\"Yes\")","v":"Yes"}]
[null,null,null,null,null,null,null,null,null,null,null,null,null,null,null,null,null,null,{"$f":"Impact!AD40","v":"C: Decontamination"},{"$f":"Impact!AE40","v":-6.9},{"$f":"IF(MethodRes[[#This Row],[Impact]]=-999,\"No\",\"Yes\")","v":"Yes"}]

{"sheet":"Beslissingsstructuur","index":1,"n_rows":152,"n_cols":18,"rows_kept":152,"cut":false,"hidden":false,"merged":[]}
[]
["Overall Proces"]
[]
["Figuur 1 geeft het volledige beslissings proces weer "]
[]
[]
[]
[]
[]
[null,null,null,null,null,null,null,null,null,null,null,null,null,null,null,"Figuur 1"]
[]
[]
[]
[]
[]
[]
[]
[]
[]
[]
[]
[]
[]
["Het type van equipment is een eerste filter ten aanzien van de technisch mogelijke reinigingsmethoden"]
["De bepaling van equipment is weergegeven in Figuur 2"]
[]
[]
[]
[]
[]
[]
[null,null,null,null,null,null,null,null,null,null,null,null,null,null,null,null,null,"Figuur 2"]
[]
[]
[]
[]
[]
[]
[]
[]
[]
[]
[]
[]
[]
["Het type van vervuiling geeft een tweede filter laag"]
[]
[]
[]
[]
[]
[]
[]
[]
[]
[null,null,null,null,null,null,null,null,null,null,null,null,null,null,null,null,null,"Figuur 3"]
[]
[]
[]
[]
[]
[]
[]
[]
[]
[]
[]
[]
["De keuze waar te reinigen zal een derde filter laag creeeren. Een aantal aandachtspunten voor deze keuze zijn weergegeven in figuur 4"]
[]
[]
[]
[]
[]
[]
[]
[null,null,null,null,null,null,null,null,null,null,null,null,null,null,null,null,null,"Figuur 4"]
[]
[]
[]
[]
[]
[]
[]
[]
[]
[]
[]
[]
[]
[]
[]
[]
[]
["Het materiaal waarvan de equipment gemaakt is zal een vierde filter creeeren. Chemische maar ook mechanische competibiliteit  zal deze keuze bepalen"]
[]
[]
[]
[]
[]
[]
[]
[]
[]
[]
[null,null,null,null,null,null,null,null,null,null,null,null,null,null,null,null,null,"Figuur 5"]
[]
[]
[]
[]
[]
[]
[]
[]
[]
[]
[]
[]
[]
[]
[]
[]
[]
[]
[]
["Gebaseerd op de prioriteiten zal de waarde van de impact factoren van belang zijn (figuur 6 geeft de hoofd waarden aan)"]
[]
[]
[]
[]
[]
[]
[]
[null,null,null,null,null,null,null,null,null,null,null,null,null,null,null,null,null,"Figuur 6"]
[]
[]
[]
[]
[]
[]
[]
[]
[]
[]
[]
[]
[]
[]
[]
[]
[]
["Bovengenoemde zal leiden tot een reinigingsmethode. Vanuit het tab blad 'Leveranciers'  kan worden vastgesteld wie de gekozen methode kan uitvoeren",null,null,null,null,null,null,null,null,null,null,null,null,null,null,"Link naar leveranciers"]

{"sheet":"Equipment-Method Choice","index":2,"n_rows":43,"n_cols":27,"rows_kept":43,"cut":false,"hidden":false,"merged":[]}
["Level 1","Equipment","Type","Part","M: Tube Darting & Scraping","M: 3D- Nozzle (Butterworth / Tankwas kop)","M: Rotating Hose Devices","M: Water Jetting (UHP)","M: Pigging","M: Ultrasonic Baths (Chemical Cleaning)","M: Abrasive Blasting","M: Drilling","M: Hydrokinetic Cleaning","M: Manway Canons","M: Remotely Operated Vehicles","M: CO2 Blasting","M: Flushing","M: Brushing","M: Air Lancing","M: Sodium Bi-Carbonate Blasting","M: Vacuum, Blowing, Suction Techniques","T: Liquid Nitrogen Jetting","T: Laser Cleaning","T: Pyrolysis","C: Acidizing","C: Degreasing","C: Decontamination"]
["Equipment","Heat Exchangers","Shell and Tube","- Bundle (inside tubes)",1,null,null,1,null,1,null,1,1,null,null,null,1,1,null,null,null,1,null,1,1,1,1]
["Equipment","Heat Exchangers","Shell and Tube","- Bundle (external)",null,null,null,1,null,1,1,null,null,null,null,1,1,null,null,1,null,1,null,1,1,1,1]
["Equipment","Heat Exchangers","Shell and Tube","- Shell",null,1,1,1,null,null,1,null,null,null,null,1,1,null,null,1,null,1,1,1,1,1,1]
["Equipment","Heat Exchangers","Shell and Tube","- Heads & Channels",null,null,null,1,null,null,1,null,null,null,null,1,1,null,null,1,null,1,1,1,1,1,1]
["Equipment","Heat Exchangers","Shell and Tube (Fixed)","- Bundle (inside tubes)",1,null,null,1,null,1,null,1,1,null,null,null,1,1,null,null,null,1,null,1,1,1,1]
["Equipment","Heat Exchangers","Shell and Tube (Fixed)","- Bundle (External) + Shell",null,null,null,null,null,1,null,null,null,null,null,null,1,null,null,null,null,null,null,1,1,1,1]
["Equipment","Heat Exchangers","Shell and Tube (Fixed)","- Heads & Channels",null,null,null,1,null,null,1,null,null,null,null,1,1,null,null,1,null,1,1,1,1,1,1]
["Equipment","Heat Exchangers","Shell and Tube U-Bundle","- Bundle (inside tubes)",1,null,null,1,null,1,null,null,1,null,null,null,1,1,null,null,null,1,null,1,1,1,1]
["Equipment","Heat Exchangers","Shell and Tube U-Bundle","- Bundle (external)",null,null,null,1,null,1,1,null,null,null,null,1,1,null,null,1,null,1,null,1,1,1,1]
["Equipment","Heat Exchangers","Shell and Tube U-Bundle","- Shell",null,1,1,1,null,null,1,null,null,null,null,1,1,null,null,1,null,1,1,1,1,1,1]
["Equipment","Heat Exchangers","Shell and Tube U-Bundle","- Heads & Channels",null,null,null,1,null,null,1,null,null,null,null,1,1,null,null,1,null,1,1,1,1,1,1]
["Equipment","Heat Exchangers","Fin Fan / Aircoolers","- Tubes (inside)",1,null,null,1,null,null,null,1,1,null,null,null,null,1,null,null,null,null,null,null,1,1,1]
["Equipment","Heat Exchangers","Fin Fan / Aircoolers","- Fined tubes external",null,null,null,1,null,null,null,null,null,null,null,null,1,null,null,1,null,null,null,null,null,1]
["Equipment","Heat Exchangers","Fin Fan / Aircoolers","- Collector",null,null,null,1,null,null,1,null,null,null,null,1,1,null,null,1,null,1,1,null,1,1,1]
["Equipment","Heat Exchangers","Fin Fan / Aircoolers","- Collector Plate",null,null,null,1,null,1,1,null,null,null,null,1,1,null,null,1,null,1,1,1,1,1,1]
["Equipment","Heat Exchangers","Compablock/Plate Exchanger","- Plates",null,null,null,1,null,1,1,null,null,null,null,1,1,null,null,1,null,1,1,1,1,1,1]
["Equipment","Heat Exchangers","Compablock/Plate Exchanger","- Housing",null,null,null,1,null,1,1,null,null,null,null,1,1,null,null,1,null,1,1]
["Equipment","Heat Exchangers","Compablock/Plate Exchanger (Welded)","- Plates + Housing",null,null,null,1,null,1,null,null,null,null,null,null,1,null,null,null,null,null,null,1,1,1,1]
["Equipment","Tanks / Vessels","Tank","Tank, diameter < 12 m",null,1,null,1,null,null,1,null,null,null,null,1,1,null,null,1,null,1,1,null,1,1,1]
["Equipment","Tanks / Vessels","Tank","Tank, diameter >12 m, < 25 m",null,null,null,1,null,null,1,null,null,1,1,1,null,null,null,1,null,1,1,null,1,1,1]
["Equipment","Tanks / Vessels","Tank","Tank, diameter > 25 m",null,null,null,1,null,null,1,null,null,1,1,1,null,null,null,1,null,1,1,null,1,1,1]
["Equipment","Columns","Packed Column","- Packed Material",null,null,null,null,null,1,null,null,null,null,null,null,null,null,null,null,null,null,null,1,1,1,1]
["Equipment","Columns","Packed Column","- Column",null,1,1,1,null,null,1,null,null,null,null,1,1,null,null,1,1,1,1,null,1,1,1]
["Equipment","Columns","Trayed Column","- Trays",null,null,null,1,null,1,1,null,null,null,null,1,1,null,null,1,null,1,1,1,1,1,1]
["Equipment","Columns","Trayed Column","- Column",null,1,1,1,null,null,1,null,null,null,null,1,1,null,null,1,1,1,1,null,1,1,1]
["Equipment","Boilers/Furnances","Fired Heater","- Radiant Section",null,null,null,1,null,null,null,null,null,null,null,null,null,1,1,null,null,null,null,null,1,1,1]
["Equipment","Boilers/Furnances","Fired Heater","- Convection Section",null,null,null,1]
["Equipment","Boilers/Furnances","Fired Heater","- TLE's",null,null,null,1,1,null,1,null,1,null,null,null,null,1]
["Equipment","Boilers/Furnances","Boilers","- Heater section",null,null,null,1,null,null,null,null,null,null,null,null,null,null,1,null,null,null,null,null,1,1,1]
["Equipment","Boilers/Furnances","Boilers","- Boiler Drum",null,1,null,1,null,null,null,null,null,null,null,1,1,null,null,1,null,1,1,null,1,1,1]
["Equipment","Boilers/Furnances","Boilers","- Boiler Tubes",1,null,null,1,null,1,null,null,1,null,null,null,1,1,null,null,null,1,null,null,1,1,1]
["Equipment","Piping","Piping","Piping < 1\" internal",1,null,1,1,1,null,1,null,1,null,null,null,1,1,null,null,1,1,null,null,1,1,1]
["Equipment","Piping","Piping","Piping >1\" <4\" internal",null,null,1,1,1,null,1,null,1,null,null,null,1,null,null,null,1,null,null,null,1,1,1]
["Equipment","Piping","Piping","Piping >4\", <20\" internal",null,null,1,1,1,null,1,null,1,null,null,null,1,null,null,null,1,null,1,null,1,1,1]
["Equipment","Piping","Piping","Piping >20\" internal",null,1,1,1,1,null,1,null,null,null,1,null,1,null,null,null,1,null,1,null,1,1,1]
["Equipment","Cooling Towers","Cooling Towers","- Basin",null,1,null,1,null,null,1,null,null,null,1,null,1,null,null,1,1,null,null,null,1,1,1]
["Equipment","Cooling Towers","Cooling Towers","- Fans",null,null,null,1,null,null,1,null,null,null,null,1,1,null,null,1,null,null,1,null,1,1,1]
["Equipment","Cooling Towers","Cooling Towers","- Structure",null,null,null,1,null,null,null,null,null,null,null,1,1,null,null,1,null,1]
["Equipment","Other equipment","Other equipment","Filters",null,null,null,1,null,1,null,null,null,null,null,null,1,1,null,null,null,null,1,1,1,1,1]
["Equipment","Other equipment","Other equipment","Floors",null,null,null,1,null,null,1,null,null,null,1,1,1,null,null,1,1,1,1,null,1,1,1]
["Equipment","Other equipment","Other equipment","Tube Reactor Pipes",null,null,null,null,null,null,null,null,null,null,null,null,null,null,1]
[null,null,null,null,{"$f":"IF(SUBTOTAL(109,Equipment[M: Tube Darting & Scraping])<>0,1,\"\")","v":1},{"$f":"IF(SUBTOTAL(109,Equipment[M: 3D- Nozzle (Butterworth / Tankwas kop)])<>0,1,\"\")","v":1},{"$f":"IF(SUBTOTAL(109,Equipment[M: Rotating Hose Devices])<>0,1,\"\")","v":1},{"$f":"IF(SUBTOTAL(109,Equipment[M: Water Jetting (UHP)])<>0,1,\"\")","v":1},{"$f":"IF(SUBTOTAL(109,Equipment[M: Pigging])<>0,1,\"\")","v":1},{"$f":"IF(SUBTOTAL(109,Equipment[M: Ultrasonic Baths (Chemical Cleaning)])<>0,1,\"\")","v":1},{"$f":"IF(SUBTOTAL(109,Equipment[M: Abrasive Blasting])<>0,1,\"\")","v":1},{"$f":"IF(SUBTOTAL(109,Equipment[M: Drilling])<>0,1,\"\")","v":1},{"$f":"IF(SUBTOTAL(109,Equipment[M: Hydrokinetic Cleaning])<>0,1,\"\")","v":1},{"$f":"IF(SUBTOTAL(109,Equipment[M: Manway Canons])<>0,1,\"\")","v":1},{"$f":"IF(SUBTOTAL(109,Equipment[M: Remotely Operated Vehicles])<>0,1,\"\")","v":1},{"$f":"IF(SUBTOTAL(109,Equipment[M: CO2 Blasting])<>0,1,\"\")","v":1},{"$f":"IF(SUBTOTAL(109,Equipment[M: Flushing])<>0,1,\"\")","v":1},{"$f":"IF(SUBTOTAL(109,Equipment[M: Brushing])<>0,1,\"\")","v":1},{"$f":"IF(SUBTOTAL(109,Equipment[M: Air Lancing])<>0,1,\"\")","v":1},{"$f":"IF(SUBTOTAL(109,Equipment[M: Sodium Bi-Carbonate Blasting])<>0,1,\"\")","v":1},{"$f":"IF(SUBTOTAL(109,Equipment[M: Vacuum, Blowing, Suction Techniques])<>0,1,\"\")","v":1},{"$f":"IF(SUBTOTAL(109,Equipment[T: Liquid Nitrogen Jetting])<>0,1,\"\")","v":1},{"$f":"IF(SUBTOTAL(109,Equipment[T: Laser Cleaning])<>0,1,\"\")","v":1},{"$f":"IF(SUBTOTAL(109,Equipment[T: Pyrolysis])<>0,1,\"\")","v":1},{"$f":"IF(SUBTOTAL(109,Equipment[C: Acidizing])<>0,1,\"\")","v":1},{"$f":"IF(SUBTOTAL(109,Equipment[C: Degreasing])<>0,1,\"\")","v":1},{"$f":"IF(SUBTOTAL(109,Equipment[C: Decontamination])<>0,1,\"\")","v":1}]

{"sheet":"Method_Desc","index":3,"n_rows":27,"n_cols":3,"rows_kept":27,"cut":false,"hidden":false,"merged":[]}
[]
[]
[]
[null,"Method","Click on cleaning method in Method table to see description"]
[null,"M: Tube Darting & Scraping",{"$f":"_xlfn.CONCAT(\"Description \",B5,\"  XXXXX. QWERTY, LKJJSKASKK. Www.dkdkdkdk.com\")","v":"Description M: Tube Darting & Scraping  XXXXX. QWERTY, LKJJSKASKK. Www.dkdkdkdk.com"}]
[null,"M: 3D- Nozzle (Butterworth / Tankwas kop)",{"$f":"_xlfn.CONCAT(\"Description \",B6,\"  XXXXX. QWERTY, LKJJSKASKK. Www.dkdkdkdk.com\")","v":"Description M: 3D- Nozzle (Butterworth / Tankwas kop)  XXXXX. QWERTY, LKJJSKASKK. Www.dkdkdkdk.com"}]
[null,"M: Rotating Hose Devices","Description M: Rotating Hose Devices  XXXXX. QWERTY, LKJJSKASKK. Www.dkdkdkdk.com"]
[null,"M: Water Jetting (UHP)","Description M: Water Jetting (UHP)  XXXXX. QWERTY, LKJJSKASKK. Www.dkdkdkdk.com"]
[null,"M: Pigging","Description M: Pigging  XXXXX. QWERTY, LKJJSKASKK. Www.dkdkdkdk.com"]
[null,"M: Ultrasonic Baths (Chemical Cleaning)","Description M: Ultrasonic Baths (Chemical Cleaning)  XXXXX. QWERTY, LKJJSKASKK. Www.dkdkdkdk.com"]
[null,"M: Abrasive Blasting","Description M: Abrasive Blasting  XXXXX. QWERTY, LKJJSKASKK. Www.dkdkdkdk.com"]
[null,"M: Drilling","Description M: Drilling  XXXXX. QWERTY, LKJJSKASKK. Www.dkdkdkdk.com"]
[null,"M: Hydrokinetic Cleaning","Description M: Hydrokinetic Cleaning  XXXXX. QWERTY, LKJJSKASKK. Www.dkdkdkdk.com"]
[null,"M: Manway Canons","Description M: Manway Canons  XXXXX. QWERTY, LKJJSKASKK. Www.dkdkdkdk.com"]
[null,"M: Remotely Operated Vehicles","Description M: Remotely Operated Vehicles  XXXXX. QWERTY, LKJJSKASKK. Www.dkdkdkdk.com"]
[null,"M: CO2 Blasting","Description M: CO2 Blasting  XXXXX. QWERTY, LKJJSKASKK. Www.dkdkdkdk.com"]
[null,"M: Flushing","Description M: Flushing  XXXXX. QWERTY, LKJJSKASKK. Www.dkdkdkdk.com"]
[null,"M: Brushing","Description M: Brushing  XXXXX. QWERTY, LKJJSKASKK. Www.dkdkdkdk.com"]
[null,"M: Air Lancing","Description M: Air Lancing  XXXXX. QWERTY, LKJJSKASKK. Www.dkdkdkdk.com"]
[null,"M: Sodium Bi-Carbonate Blasting","Description M: Sodium Bi-Carbonate Blasting  XXXXX. QWERTY, LKJJSKASKK. Www.dkdkdkdk.com"]
[null,"M: Vacuum, Blowing, Suction Techniques","Description M: Vacuum, Blowing, Suction Techniques  XXXXX. QWERTY, LKJJSKASKK. Www.dkdkdkdk.com"]
[null,"T: Liquid Nitrogen Jetting","Description T: Liquid Nitrogen Jetting  XXXXX. QWERTY, LKJJSKASKK. Www.dkdkdkdk.com"]
[null,"T: Laser Cleaning","Description T: Laser Cleaning  XXXXX. QWERTY, LKJJSKASKK. Www.dkdkdkdk.com"]
[null,"T: Pyrolysis","Description T: Pyrolysis  XXXXX. QWERTY, LKJJSKASKK. Www.dkdkdkdk.com"]
[null,"C: Acidizing","Description C: Acidizing  XXXXX. QWERTY, LKJJSKASKK. Www.dkdkdkdk.com"]
[null,"C: Degreasing","Description C: Degreasing  XXXXX. QWERTY, LKJJSKASKK. Www.dkdkdkdk.com"]
[null,"C: Decontamination","Description C: Decontamination  XXXXX. QWERTY, LKJJSKASKK. Www.dkdkdkdk.com"]

{"sheet":"Fouling","index":4,"n_rows":14,"n_cols":27,"rows_kept":14,"cut":false,"hidden":false,"merged":[]}
["Level 1","Vervuiling","Type","Organic of nature","M: Tube Darting & Scraping","M: 3D- Nozzle (Butterworth / Tankwas kop)","M: Rotating Hose Devices","M: Water Jetting (UHP)","M: Pigging","M: Ultrasonic Baths (Chemical Cleaning)","M: Abrasive Blasting","M: Drilling","M: Hydrokinetic Cleaning","M: Manway Canons","M: Remotely Operated Vehicles","M: CO2 Blasting","M: Flushing","M: Brushing","M: Air Lancing","M: Sodium Bi-Carbonate Blasting","M: Vacuum, Blowing, Suction Techniques","T: Liquid Nitrogen Jetting","T: Laser Cleaning","T: Pyrolysis","C: Acidizing","C: Degreasing","C: Decontamination"]
["Vervuiling","Vervuiling","Asphaltine","Organic of nature",null,1,1,1,null,1,1,1,null,null,1,null,null,null,null,1,null,1,1,1,null,1,1]
["Vervuiling","Vervuiling","Cokes","Organic of nature",null,null,1,1,1,null,1,1,null,null,1,null,null,null,null,1,null,1,1,1]
["Vervuiling","Vervuiling","Coolingwater Products","Unknown",1,1,1,1,1,1,1,1,null,null,1,null,null,null,null,null,null,1,1,null,1]
["Vervuiling","Vervuiling","Corrosion","Unknown",null,1,1,1,1,1,1,1,null,null,1,null,null,null,null,1,null,1,1,null,1]
["Vervuiling","Vervuiling","Dust","Unknown",1,1,1,1,1,1,null,1,null,null,1,1,1,1,null,1,1,1,1]
["Vervuiling","Vervuiling","Oil","Organic of nature",1,1,1,1,1,1,1,1,1,1,1,1,1,1,null,1,null,1,1,1,null,1,1]
["Vervuiling","Vervuiling","Paraffin","Organic of nature",1,1,1,1,1,1,1,1,1,1,1,1,1,1,null,1,null,1,1,1,null,1,1]
["Vervuiling","Vervuiling","PolyEthylene","Organic of nature",null,1,1,1,null,null,null,1,1,null,1,null,null,null,null,null,null,null,1,1]
[null,"Vervuiling","Catalyst","Organic of nature",null,null,null,null,null,null,null,null,null,null,null,null,null,null,1]
["Vervuiling","Vervuiling","Organic Scale","Organic of nature",null,1,1,1,null,1,1,1,null,null,1,null,null,null,null,1,null,1,1,null,1]
["Vervuiling","Vervuiling","Anorganic Scale","Inorganic"]
["Vervuiling","Vervuiling","Waxes","Organic of nature",1,1,1,1,1,1,null,1,1,1,1,1,1,1,null,1,1,1,1,1,null,1,1]
[null,null,null,null,{"$f":"IF(AND(SUBTOTAL(109,Vervuiling[M: Tube Darting & Scraping])>0.5),1,\"\")","v":1},{"$f":"IF(AND(SUBTOTAL(109,Vervuiling[M: 3D- Nozzle (Butterworth / Tankwas kop)])>0.5),1,\"\")","v":1},{"$f":"IF(AND(SUBTOTAL(109,Vervuiling[M: Rotating Hose Devices])>0.5),1,\"\")","v":1},{"$f":"IF(AND(SUBTOTAL(109,Vervuiling[M: Water Jetting (UHP)])>0.5),1,\"\")","v":1},{"$f":"IF(AND(SUBTOTAL(109,Vervuiling[M: Pigging])>0.5),1,\"\")","v":1},{"$f":"IF(AND(SUBTOTAL(109,Vervuiling[M: Ultrasonic Baths (Chemical Cleaning)])>0.5),1,\"\")","v":1},{"$f":"IF(AND(SUBTOTAL(109,Vervuiling[M: Abrasive Blasting])>0.5),1,\"\")","v":1},{"$f":"IF(AND(SUBTOTAL(109,Vervuiling[M: Drilling])>0.5),1,\"\")","v":1},{"$f":"IF(AND(SUBTOTAL(109,Vervuiling[M: Hydrokinetic Cleaning])>0.5),1,\"\")","v":1},{"$f":"IF(AND(SUBTOTAL(109,Vervuiling[M: Manway Canons])>0.5),1,\"\")","v":1},{"$f":"IF(AND(SUBTOTAL(109,Vervuiling[M: Remotely Operated Vehicles])>0.5),1,\"\")","v":1},{"$f":"IF(AND(SUBTOTAL(109,Vervuiling[M: CO2 Blasting])>0.5),1,\"\")","v":1},{"$f":"IF(AND(SUBTOTAL(109,Vervuiling[M: Flushing])>0.5),1,\"\")","v":1},{"$f":"IF(AND(SUBTOTAL(109,Vervuiling[M: Brushing])>0.5),1,\"\")","v":1},{"$f":"IF(AND(SUBTOTAL(109,Vervuiling[M: Air Lancing])>0.5),1,\"\")","v":1},{"$f":"IF(AND(SUBTOTAL(109,Vervuiling[M: Sodium Bi-Carbonate Blasting])>0.5),1,\"\")","v":1},{"$f":"IF(AND(SUBTOTAL(109,Vervuiling[M: Vacuum, Blowing, Suction Techniques])>0.5),1,\"\")","v":1},{"$f":"IF(AND(SUBTOTAL(109,Vervuiling[T: Liquid Nitrogen Jetting])>0.5),1,\"\")","v":1},{"$f":"IF(AND(SUBTOTAL(109,Vervuiling[T: Laser Cleaning])>0.5),1,\"\")","v":1},{"$f":"IF(AND(SUBTOTAL(109,Vervuiling[T: Pyrolysis])>0.5),1,\"\")","v":1},{"$f":"IF(AND(SUBTOTAL(109,Vervuiling[C: Acidizing])>0.5),1,\"\")","v":1},{"$f":"IF(AND(SUBTOTAL(109,Vervuiling[C: Degreasing])>0.5),1,\"\")","v":1},{"$f":"IF(AND(SUBTOTAL(109,Vervuiling[C: Decontamination])>0.5),1,\"\")","v":1}]

{"sheet":"OnOff Site","index":5,"n_rows":5,"n_cols":28,"rows_kept":5,"cut":false,"hidden":false,"merged":[]}
["Level 1","On/Off site","Locatie","In/Off/Plant","M: Tube Darting & Scraping","M: 3D- Nozzle (Butterworth / Tankwas kop)","M: Rotating Hose Devices","M: Water Jetting (UHP)","M: Pigging","M: Ultrasonic Baths (Chemical Cleaning)","M: Abrasive Blasting","M: Drilling","M: Hydrokinetic Cleaning","M: Manway Canons","M: Remotely Operated Vehicles","M: CO2 Blasting","M: Flushing","M: Brushing","M: Air Lancing","M: Sodium Bi-Carbonate Blasting","M: Vacuum, Blowing, Suction Techniques","T: Liquid Nitrogen Jetting","T: Laser Cleaning","T: Pyrolysis","C: Acidizing","C: Degreasing","C: Decontamination","Actie"]
["On/Off site","On/Off site","On-site","In-plant",1,1,1,1,1,{"$f":"IF(AND(Vervuiling[[#Totals],[M: Ultrasonic Baths (Chemical Cleaning)]]=1,Leveranciers!H18=1),2,\"\")","v":""},1,1,1,1,1,1,1,1,1,1,1,1,1,{"$f":"IF(AND(Vervuiling[[#Totals],[T: Pyrolysis]]=1,Leveranciers!V18=1),2,\"\")","v":""},1,1,1]
["On/Off site","On/Off site","On-site","Out of Plant",1,1,1,1,null,null,1,1,1,null,null,1,1,1,1,1,1,1,1,null,1,1,1,"Action: Horizontal/Vertical transport to Cleaning yard - Cleaning - Horizontal/Vertical transport to Plant"]
["On/Off site","On/Off site","Off-Site","Off-site",1,1,1,1,null,1,1,null,null,null,null,1,1,1,1,1,null,null,1,1,1,1,1,"Action: Horizontal/Vertical transport to Cleaning Company - Cleaning - Horizontal/Vertical transport to Plant"]
[null,null,null,null,{"$f":"IF(SUBTOTAL(109,OnOffSite[M: Tube Darting & Scraping])>0.5,1,\"\")","v":1},{"$f":"IF(SUBTOTAL(109,OnOffSite[M: 3D- Nozzle (Butterworth / Tankwas kop)])>0.5,1,\"\")","v":1},{"$f":"IF(SUBTOTAL(109,OnOffSite[M: Rotating Hose Devices])>0.5,1,\"\")","v":1},{"$f":"IF(SUBTOTAL(109,OnOffSite[M: Water Jetting (UHP)])>0.5,1,\"\")","v":1},{"$f":"IF(SUBTOTAL(109,OnOffSite[M: Pigging])>0.5,1,\"\")","v":1},{"$f":"IF(SUBTOTAL(109,OnOffSite[M: Ultrasonic Baths (Chemical Cleaning)])>0.5,1,\"\")","v":1},{"$f":"IF(SUBTOTAL(109,OnOffSite[M: Abrasive Blasting])>0.5,1,\"\")","v":1},{"$f":"IF(SUBTOTAL(109,OnOffSite[M: Drilling])>0.5,1,\"\")","v":1},{"$f":"IF(SUBTOTAL(109,OnOffSite[M: Hydrokinetic Cleaning])>0.5,1,\"\")","v":1},{"$f":"IF(SUBTOTAL(109,OnOffSite[M: Manway Canons])>0.5,1,\"\")","v":1},{"$f":"IF(SUBTOTAL(109,OnOffSite[M: Remotely Operated Vehicles])>0.5,1,\"\")","v":1},{"$f":"IF(SUBTOTAL(109,OnOffSite[M: CO2 Blasting])>0.5,1,\"\")","v":1},{"$f":"IF(SUBTOTAL(109,OnOffSite[M: Flushing])>0.5,1,\"\")","v":1},{"$f":"IF(SUBTOTAL(109,OnOffSite[M: Brushing])>0.5,1,\"\")","v":1},{"$f":"IF(SUBTOTAL(109,OnOffSite[M: Air Lancing])>0.5,1,\"\")","v":1},{"$f":"IF(SUBTOTAL(109,OnOffSite[M: Sodium Bi-Carbonate Blasting])>0.5,1,\"\")","v":1},{"$f":"IF(SUBTOTAL(109,OnOffSite[M: Vacuum, Blowing, Suction Techniques])>0.5,1,\"\")","v":1},{"$f":"IF(SUBTOTAL(109,OnOffSite[T: Liquid Nitrogen Jetting])>0.5,1,\"\")","v":1},{"$f":"IF(SUBTOTAL(109,OnOffSite[T: Laser Cleaning])>0.5,1,\"\")","v":1},{"$f":"IF(SUBTOTAL(109,OnOffSite[T: Pyrolysis])>0.5,1,\"\")","v":1},{"$f":"IF(SUBTOTAL(109,OnOffSite[C: Acidizing])>0.5,1,\"\")","v":1},{"$f":"IF(SUBTOTAL(109,OnOffSite[C: Degreasing])>0.5,1,\"\")","v":1},{"$f":"IF(SUBTOTAL(109,OnOffSite[C: Decontamination])>0.5,1,\"\")","v":1}]

{"sheet":"Supplier","index":6,"n_rows":16,"n_cols":30,"rows_kept":16,"cut":false,"hidden":false,"merged":[]}
["Level 1","Supplier","Bedrijf","M: Tube Darting & Scraping","M: 3D- Nozzle (Butterworth / Tankwas kop)","M: Rotating Hose Devices","M: Water Jetting (UHP)","M: Pigging","M: Ultrasonic Baths (Chemical Cleaning)","M: Abrasive Blasting","M: Drilling","M: Hydrokinetic Cleaning","M: Manway Canons","M: Remotely Operated Vehicles","M: CO2 Blasting","M: Flushing","M: Brushing","M: Air Lancing","M: Sodium Bi-Carbonate Blasting","M: Vacuum, Blowing, Suction Techniques","T: Liquid Nitrogen Jetting","T: Laser Cleaning","T: Pyrolysis","C: Acidizing","C: Degreasing","C: Decontamination","SumLev","Contact No.","Address","Contact Person"]
["Supplier",1,{"$f":"IF(SUM(Leverancier[[#This Row],[M: Tube Darting & Scraping]:[C: Decontamination]])>0,Leveranciers!A2,\"\")","v":"Supplier A"},{"$f":"IF(AND(Equipment[[#Totals],[M: Tube Darting & Scraping]]=1,Vervuiling[[#Totals],[M: Tube Darting & Scraping]]=1,OnOffSite[[#Totals],[M: Tube Darting & Scraping]]=1),Leveranciers!C2,\"\")","v":1},{"$f":"IF(AND(Equipment[[#Totals],[M: 3D- Nozzle (Butterworth / Tankwas kop)]]=1,Vervuiling[[#Totals],[M: 3D- Nozzle (Butterworth / Tankwas kop)]]=1,OnOffSite[[#Totals],[M: 3D- Nozzle (Butterworth / Tankwas kop)]]=1),Leveranciers!D2,\"\")","v":1},{"$f":"IF(AND(Equipment[[#Totals],[M: Rotating Hose Devices]]=1,Vervuiling[[#Totals],[M: Rotating Hose Devices]]=1,OnOffSite[[#Totals],[M: Rotating Hose Devices]]=1),Leveranciers!E2,\"\")","v":1},{"$f":"IF(AND(Equipment[[#Totals],[M: Water Jetting (UHP)]]=1,Vervuiling[[#Totals],[M: Water Jetting (UHP)]]=1,OnOffSite[[#Totals],[M: Water Jetting (UHP)]]=1),Leveranciers!F2,\"\")","v":1},{"$f":"IF(AND(Equipment[[#Totals],[M: Pigging]]=1,Vervuiling[[#Totals],[M: Pigging]]=1,OnOffSite[[#Totals],[M: Pigging]]=1),Leveranciers!G2,\"\")","v":1},{"$f":"IF(AND(Equipment[[#Totals],[M: Ultrasonic Baths (Chemical Cleaning)]]=1,Vervuiling[[#Totals],[M: Ultrasonic Baths (Chemical Cleaning)]]=1,OnOffSite[[#Totals],[M: Ultrasonic Baths (Chemical Cleaning)]]=1),Leveranciers!H2,\"\")","v":0},{"$f":"IF(AND(Equipment[[#Totals],[M: Abrasive Blasting]]=1,Vervuiling[[#Totals],[M: Abrasive Blasting]]=1,OnOffSite[[#Totals],[M: Abrasive Blasting]]=1),Leveranciers!I2,\"\")","v":1},{"$f":"IF(AND(Equipment[[#Totals],[M: Drilling]]=1,Vervuiling[[#Totals],[M: Drilling]]=1,OnOffSite[[#Totals],[M: Drilling]]=1),Leveranciers!J2,\"\")","v":0},{"$f":"IF(AND(Equipment[[#Totals],[M: Hydrokinetic Cleaning]]=1,Vervuiling[[#Totals],[M: Hydrokinetic Cleaning]]=1,OnOffSite[[#Totals],[M: Hydrokinetic Cleaning]]=1),Leveranciers!K2,\"\")","v":0},{"$f":"IF(AND(Equipment[[#Totals],[M: Manway Canons]]=1,Vervuiling[[#Totals],[M: Manway Canons]]=1,OnOffSite[[#Totals],[M: Manway Canons]]=1),Leveranciers!L2,\"\")","v":1},{"$f":"IF(AND(Equipment[[#Totals],[M: Remotely Operated Vehicles]]=1,Vervuiling[[#Totals],[M: Remotely Operated Vehicles]]=1,OnOffSite[[#Totals],[M: Remotely Operated Vehicles]]=1),Leveranciers!M2,\"\")","v":1},{"$f":"IF(AND(Equipment[[#Totals],[M: CO2 Blasting]]=1,Vervuiling[[#Totals],[M: CO2 Blasting]]=1,OnOffSite[[#Totals],[M: CO2 Blasting]]=1),Leveranciers!N2,\"\")","v":1},{"$f":"IF(AND(Equipment[[#Totals],[M: Flushing]]=1,Vervuiling[[#Totals],[M: Flushing]]=1,OnOffSite[[#Totals],[M: Flushing]]=1),Leveranciers!O2,\"\")","v":1},{"$f":"IF(AND(Equipment[[#Totals],[M: Brushing]]=1,Vervuiling[[#Totals],[M: Brushing]]=1,OnOffSite[[#Totals],[M: Brushing]]=1),Leveranciers!P2,\"\")","v":1},{"$f":"IF(AND(Equipment[[#Totals],[M: Air Lancing]]=1,Vervuiling[[#Totals],[M: Air Lancing]]=1,OnOffSite[[#Totals],[M: Air Lancing]]=1),Leveranciers!Q2,\"\")","v":0},{"$f":"IF(AND(Equipment[[#Totals],[M: Sodium Bi-Carbonate Blasting]]=1,Vervuiling[[#Totals],[M: Sodium Bi-Carbonate Blasting]]=1,OnOffSite[[#Totals],[M: Sodium Bi-Carbonate Blasting]]=1),Leveranciers!R2,\"\")","v":1},{"$f":"IF(AND(Equipment[[#Totals],[M: Vacuum, Blowing, Suction Techniques]]=1,Vervuiling[[#Totals],[M: Vacuum, Blowing, Suction Techniques]]=1,OnOffSite[[#Totals],[M: Vacuum, Blowing, Suction Techniques]]=1),Leveranciers!S2,\"\")","v":1},{"$f":"IF(AND(Equipment[[#Totals],[T: Liquid Nitrogen Jetting]]=1,Vervuiling[[#Totals],[T: Liquid Nitrogen Jetting]]=1,OnOffSite[[#Totals],[T: Liquid Nitrogen Jetting]]=1),Leveranciers!T2,\"\")","v":0},{"$f":"IF(AND(Equipment[[#Totals],[T: Laser Cleaning]]=1,Vervuiling[[#Totals],[T: Laser Cleaning]]=1,OnOffSite[[#Totals],[T: Laser Cleaning]]=1),Leveranciers!U2,\"\")","v":1},{"$f":"IF(AND(Equipment[[#Totals],[T: Pyrolysis]]=1,Vervuiling[[#Totals],[T: Pyrolysis]]=1,OnOffSite[[#Totals],[T: Pyrolysis]]=1),Leveranciers!V2,\"\")","v":0},{"$f":"IF(AND(Equipment[[#Totals],[C: Acidizing]]=1,Vervuiling[[#Totals],[C: Acidizing]]=1,OnOffSite[[#Totals],[C: Acidizing]]=1),Leveranciers!W2,\"\")","v":1},{"$f":"IF(AND(Equipment[[#Totals],[C: Degreasing]]=1,Vervuiling[[#Totals],[C: Degreasing]]=1,OnOffSite[[#Totals],[C: Degreasing]]=1),Leveranciers!X2,\"\")","v":1},{"$f":"IF(AND(Equipment[[#Totals],[C: Decontamination]]=1,Vervuiling[[#Totals],[C: Decontamination]]=1,OnOffSite[[#Totals],[C: Decontamination]]=1),Leveranciers!Y2,\"\")","v":1},{"$f":"IF(SUM(Leverancier[[#This Row],[M: Tube Darting & Scraping]:[C: Decontamination]])>0,\"Yes\",\"No\")","v":"Yes"},"+xxx xxx xxxxxxx1","Street1, Pcode City, Land","Person A"]
["Supplier",2,{"$f":"IF(SUM(Leverancier[[#This Row],[M: Tube Darting & Scraping]:[C: Decontamination]])>0,Leveranciers!A3,\"\")","v":"Supplier B"},{"$f":"IF(AND(Equipment[[#Totals],[M: Tube Darting & Scraping]]=1,Vervuiling[[#Totals],[M: Tube Darting & Scraping]]=1,OnOffSite[[#Totals],[M: Tube Darting & Scraping]]=1),Leveranciers!C3,\"\")","v":0},{"$f":"IF(AND(Equipment[[#Totals],[M: 3D- Nozzle (Butterworth / Tankwas kop)]]=1,Vervuiling[[#Totals],[M: 3D- Nozzle (Butterworth / Tankwas kop)]]=1,OnOffSite[[#Totals],[M: 3D- Nozzle (Butterworth / Tankwas kop)]]=1),Leveranciers!D3,\"\")","v":1},{"$f":"IF(AND(Equipment[[#Totals],[M: Rotating Hose Devices]]=1,Vervuiling[[#Totals],[M: Rotating Hose Devices]]=1,OnOffSite[[#Totals],[M: Rotating Hose Devices]]=1),Leveranciers!E3,\"\")","v":1},{"$f":"IF(AND(Equipment[[#Totals],[M: Water Jetting (UHP)]]=1,Vervuiling[[#Totals],[M: Water Jetting (UHP)]]=1,OnOffSite[[#Totals],[M: Water Jetting (UHP)]]=1),Leveranciers!F3,\"\")","v":1},{"$f":"IF(AND(Equipment[[#Totals],[M: Pigging]]=1,Vervuiling[[#Totals],[M: Pigging]]=1,OnOffSite[[#Totals],[M: Pigging]]=1),Leveranciers!G3,\"\")","v":1},{"$f":"IF(AND(Equipment[[#Totals],[M: Ultrasonic Baths (Chemical Cleaning)]]=1,Vervuiling[[#Totals],[M: Ultrasonic Baths (Chemical Cleaning)]]=1,OnOffSite[[#Totals],[M: Ultrasonic Baths (Chemical Cleaning)]]=1),Leveranciers!H3,\"\")","v":1},{"$f":"IF(AND(Equipment[[#Totals],[M: Abrasive Blasting]]=1,Vervuiling[[#Totals],[M: Abrasive Blasting]]=1,OnOffSite[[#Totals],[M: Abrasive Blasting]]=1),Leveranciers!I3,\"\")","v":1},{"$f":"IF(AND(Equipment[[#Totals],[M: Drilling]]=1,Vervuiling[[#Totals],[M: Drilling]]=1,OnOffSite[[#Totals],[M: Drilling]]=1),Leveranciers!J3,\"\")","v":0},{"$f":"IF(AND(Equipment[[#Totals],[M: Hydrokinetic Cleaning]]=1,Vervuiling[[#Totals],[M: Hydrokinetic Cleaning]]=1,OnOffSite[[#Totals],[M: Hydrokinetic Cleaning]]=1),Leveranciers!K3,\"\")","v":0},{"$f":"IF(AND(Equipment[[#Totals],[M: Manway Canons]]=1,Vervuiling[[#Totals],[M: Manway Canons]]=1,OnOffSite[[#Totals],[M: Manway Canons]]=1),Leveranciers!L3,\"\")","v":1},{"$f":"IF(AND(Equipment[[#Totals],[M: Remotely Operated Vehicles]]=1,Vervuiling[[#Totals],[M: Remotely Operated Vehicles]]=1,OnOffSite[[#Totals],[M: Remotely Operated Vehicles]]=1),Leveranciers!M3,\"\")","v":1},{"$f":"IF(AND(Equipment[[#Totals],[M: CO2 Blasting]]=1,Vervuiling[[#Totals],[M: CO2 Blasting]]=1,OnOffSite[[#Totals],[M: CO2 Blasting]]=1),Leveranciers!N3,\"\")","v":1},{"$f":"IF(AND(Equipment[[#Totals],[M: Flushing]]=1,Vervuiling[[#Totals],[M: Flushing]]=1,OnOffSite[[#Totals],[M: Flushing]]=1),Leveranciers!O3,\"\")","v":1},{"$f":"IF(AND(Equipment[[#Totals],[M: Brushing]]=1,Vervuiling[[#Totals],[M: Brushing]]=1,OnOffSite[[#Totals],[M: Brushing]]=1),Leveranciers!P3,\"\")","v":0},{"$f":"IF(AND(Equipment[[#Totals],[M: Air Lancing]]=1,Vervuiling[[#Totals],[M: Air Lancing]]=1,OnOffSite[[#Totals],[M: Air Lancing]]=1),Leveranciers!Q3,\"\")","v":0},{"$f":"IF(AND(Equipment[[#Totals],[M: Sodium Bi-Carbonate Blasting]]=1,Vervuiling[[#Totals],[M: Sodium Bi-Carbonate Blasting]]=1,OnOffSite[[#Totals],[M: Sodium Bi-Carbonate Blasting]]=1),Leveranciers!R3,\"\")","v":1},{"$f":"IF(AND(Equipment[[#Totals],[M: Vacuum, Blowing, Suction Techniques]]=1,Vervuiling[[#Totals],[M: Vacuum, Blowing, Suction Techniques]]=1,OnOffSite[[#Totals],[M: Vacuum, Blowing, Suction Techniques]]=1),Leveranciers!S3,\"\")","v":1},{"$f":"IF(AND(Equipment[[#Totals],[T: Liquid Nitrogen Jetting]]=1,Vervuiling[[#Totals],[T: Liquid Nitrogen Jetting]]=1,OnOffSite[[#Totals],[T: Liquid Nitrogen Jetting]]=1),Leveranciers!T3,\"\")","v":0},{"$f":"IF(AND(Equipment[[#Totals],[T: Laser Cleaning]]=1,Vervuiling[[#Totals],[T: Laser Cleaning]]=1,OnOffSite[[#Totals],[T: Laser Cleaning]]=1),Leveranciers!U3,\"\")","v":1},{"$f":"IF(AND(Equipment[[#Totals],[T: Pyrolysis]]=1,Vervuiling[[#Totals],[T: Pyrolysis]]=1,OnOffSite[[#Totals],[T: Pyrolysis]]=1),Leveranciers!V3,\"\")","v":0},{"$f":"IF(AND(Equipment[[#Totals],[C: Acidizing]]=1,Vervuiling[[#Totals],[C: Acidizing]]=1,OnOffSite[[#Totals],[C: Acidizing]]=1),Leveranciers!W3,\"\")","v":1},{"$f":"IF(AND(Equipment[[#Totals],[C: Degreasing]]=1,Vervuiling[[#Totals],[C: Degreasing]]=1,OnOffSite[[#Totals],[C: Degreasing]]=1),Leveranciers!X3,\"\")","v":1},{"$f":"IF(AND(Equipment[[#Totals],[C: Decontamination]]=1,Vervuiling[[#Totals],[C: Decontamination]]=1,OnOffSite[[#Totals],[C: Decontamination]]=1),Leveranciers!Y3,\"\")","v":1},{"$f":"IF(SUM(Leverancier[[#This Row],[M: Tube Darting & Scraping]:[C: Decontamination]])>0,\"Yes\",\"No\")","v":"Yes"},"+xxx xxx xxxxxxx2","Street2, Pcode City, Land","Person B"]
["Supplier",3,{"$f":"IF(SUM(Leverancier[[#This Row],[M: Tube Darting & Scraping]:[C: Decontamination]])>0,Leveranciers!A4,\"\")","v":"Supplier C"},{"$f":"IF(AND(Equipment[[#Totals],[M: Tube Darting & Scraping]]=1,Vervuiling[[#Totals],[M: Tube Darting & Scraping]]=1,OnOffSite[[#Totals],[M: Tube Darting & Scraping]]=1),Leveranciers!C4,\"\")","v":0},{"$f":"IF(AND(Equipment[[#Totals],[M: 3D- Nozzle (Butterworth / Tankwas kop)]]=1,Vervuiling[[#Totals],[M: 3D- Nozzle (Butterworth / Tankwas kop)]]=1,OnOffSite[[#Totals],[M: 3D- Nozzle (Butterworth / Tankwas kop)]]=1),Leveranciers!D4,\"\")","v":1},{"$f":"IF(AND(Equipment[[#Totals],[M: Rotating Hose Devices]]=1,Vervuiling[[#Totals],[M: Rotating Hose Devices]]=1,OnOffSite[[#Totals],[M: Rotating Hose Devices]]=1),Leveranciers!E4,\"\")","v":1},{"$f":"IF(AND(Equipment[[#Totals],[M: Water Jetting (UHP)]]=1,Vervuiling[[#Totals],[M: Water Jetting (UHP)]]=1,OnOffSite[[#Totals],[M: Water Jetting (UHP)]]=1),Leveranciers!F4,\"\")","v":1},{"$f":"IF(AND(Equipment[[#Totals],[M: Pigging]]=1,Vervuiling[[#Totals],[M: Pigging]]=1,OnOffSite[[#Totals],[M: Pigging]]=1),Leveranciers!G4,\"\")","v":1},{"$f":"IF(AND(Equipment[[#Totals],[M: Ultrasonic Baths (Chemical Cleaning)]]=1,Vervuiling[[#Totals],[M: Ultrasonic Baths (Chemical Cleaning)]]=1,OnOffSite[[#Totals],[M: Ultrasonic Baths (Chemical Cleaning)]]=1),Leveranciers!H4,\"\")","v":0},{"$f":"IF(AND(Equipment[[#Totals],[M: Abrasive Blasting]]=1,Vervuiling[[#Totals],[M: Abrasive Blasting]]=1,OnOffSite[[#Totals],[M: Abrasive Blasting]]=1),Leveranciers!I4,\"\")","v":0},{"$f":"IF(AND(Equipment[[#Totals],[M: Drilling]]=1,Vervuiling[[#Totals],[M: Drilling]]=1,OnOffSite[[#Totals],[M: Drilling]]=1),Leveranciers!J4,\"\")","v":0},{"$f":"IF(AND(Equipment[[#Totals],[M: Hydrokinetic Cleaning]]=1,Vervuiling[[#Totals],[M: Hydrokinetic Cleaning]]=1,OnOffSite[[#Totals],[M: Hydrokinetic Cleaning]]=1),Leveranciers!K4,\"\")","v":0},{"$f":"IF(AND(Equipment[[#Totals],[M: Manway Canons]]=1,Vervuiling[[#Totals],[M: Manway Canons]]=1,OnOffSite[[#Totals],[M: Manway Canons]]=1),Leveranciers!L4,\"\")","v":1},{"$f":"IF(AND(Equipment[[#Totals],[M: Remotely Operated Vehicles]]=1,Vervuiling[[#Totals],[M: Remotely Operated Vehicles]]=1,OnOffSite[[#Totals],[M: Remotely Operated Vehicles]]=1),Leveranciers!M4,\"\")","v":1},{"$f":"IF(AND(Equipment[[#Totals],[M: CO2 Blasting]]=1,Vervuiling[[#Totals],[M: CO2 Blasting]]=1,OnOffSite[[#Totals],[M: CO2 Blasting]]=1),Leveranciers!N4,\"\")","v":1},{"$f":"IF(AND(Equipment[[#Totals],[M: Flushing]]=1,Vervuiling[[#Totals],[M: Flushing]]=1,OnOffSite[[#Totals],[M: Flushing]]=1),Leveranciers!O4,\"\")","v":1},{"$f":"IF(AND(Equipment[[#Totals],[M: Brushing]]=1,Vervuiling[[#Totals],[M: Brushing]]=1,OnOffSite[[#Totals],[M: Brushing]]=1),Leveranciers!P4,\"\")","v":0},{"$f":"IF(AND(Equipment[[#Totals],[M: Air Lancing]]=1,Vervuiling[[#Totals],[M: Air Lancing]]=1,OnOffSite[[#Totals],[M: Air Lancing]]=1),Leveranciers!Q4,\"\")","v":0},{"$f":"IF(AND(Equipment[[#Totals],[M: Sodium Bi-Carbonate Blasting]]=1,Vervuiling[[#Totals],[M: Sodium Bi-Carbonate Blasting]]=1,OnOffSite[[#Totals],[M: Sodium Bi-Carbonate Blasting]]=1),Leveranciers!R4,\"\")","v":1},{"$f":"IF(AND(Equipment[[#Totals],[M: Vacuum, Blowing, Suction Techniques]]=1,Vervuiling[[#Totals],[M: Vacuum, Blowing, Suction Techniques]]=1,OnOffSite[[#Totals],[M: Vacuum, Blowing, Suction Techniques]]=1),Leveranciers!S4,\"\")","v":1},{"$f":"IF(AND(Equipment[[#Totals],[T: Liquid Nitrogen Jetting]]=1,Vervuiling[[#Totals],[T: Liquid Nitrogen Jetting]]=1,OnOffSite[[#Totals],[T: Liquid Nitrogen Jetting]]=1),Leveranciers!T4,\"\")","v":0},{"$f":"IF(AND(Equipment[[#Totals],[T: Laser Cleaning]]=1,Vervuiling[[#Totals],[T: Laser Cleaning]]=1,OnOffSite[[#Totals],[T: Laser Cleaning]]=1),Leveranciers!U4,\"\")","v":0},{"$f":"IF(AND(Equipment[[#Totals],[T: Pyrolysis]]=1,Vervuiling[[#Totals],[T: Pyrolysis]]=1,OnOffSite[[#Totals],[T: Pyrolysis]]=1),Leveranciers!V4,\"\")","v":0},{"$f":"IF(AND(Equipment[[#Totals],[C: Acidizing]]=1,Vervuiling[[#Totals],[C: Acidizing]]=1,OnOffSite[[#Totals],[C: Acidizing]]=1),Leveranciers!W4,\"\")","v":1},{"$f":"IF(AND(Equipment[[#Totals],[C: Degreasing]]=1,Vervuiling[[#Totals],[C: Degreasing]]=1,OnOffSite[[#Totals],[C: Degreasing]]=1),Leveranciers!X4,\"\")","v":1},{"$f":"IF(AND(Equipment[[#Totals],[C: Decontamination]]=1,Vervuiling[[#Totals],[C: Decontamination]]=1,OnOffSite[[#Totals],[C: Decontamination]]=1),Leveranciers!Y4,\"\")","v":1},{"$f":"IF(SUM(Leverancier[[#This Row],[M: Tube Darting & Scraping]:[C: Decontamination]])>0,\"Yes\",\"No\")","v":"Yes"},"+xxx xxx xxxxxxx3","Street3, Pcode City, Land","Person C"]
["Supplier",4,{"$f":"IF(SUM(Leverancier[[#This Row],[M: Tube Darting & Scraping]:[C: Decontamination]])>0,Leveranciers!A5,\"\")","v":"Supplier D"},{"$f":"IF(AND(Equipment[[#Totals],[M: Tube Darting & Scraping]]=1,Vervuiling[[#Totals],[M: Tube Darting & Scraping]]=1,OnOffSite[[#Totals],[M: Tube Darting & Scraping]]=1),Leveranciers!C5,\"\")","v":0},{"$f":"IF(AND(Equipment[[#Totals],[M: 3D- Nozzle (Butterworth / Tankwas kop)]]=1,Vervuiling[[#Totals],[M: 3D- Nozzle (Butterworth / Tankwas kop)]]=1,OnOffSite[[#Totals],[M: 3D- Nozzle (Butterworth / Tankwas kop)]]=1),Leveranciers!D5,\"\")","v":1},{"$f":"IF(AND(Equipment[[#Totals],[M: Rotating Hose Devices]]=1,Vervuiling[[#Totals],[M: Rotating Hose Devices]]=1,OnOffSite[[#Totals],[M: Rotating Hose Devices]]=1),Leveranciers!E5,\"\")","v":1},{"$f":"IF(AND(Equipment[[#Totals],[M: Water Jetting (UHP)]]=1,Vervuiling[[#Totals],[M: Water Jetting (UHP)]]=1,OnOffSite[[#Totals],[M: Water Jetting (UHP)]]=1),Leveranciers!F5,\"\")","v":1},{"$f":"IF(AND(Equipment[[#Totals],[M: Pigging]]=1,Vervuiling[[#Totals],[M: Pigging]]=1,OnOffSite[[#Totals],[M: Pigging]]=1),Leveranciers!G5,\"\")","v":1},{"$f":"IF(AND(Equipment[[#Totals],[M: Ultrasonic Baths (Chemical Cleaning)]]=1,Vervuiling[[#Totals],[M: Ultrasonic Baths (Chemical Cleaning)]]=1,OnOffSite[[#Totals],[M: Ultrasonic Baths (Chemical Cleaning)]]=1),Leveranciers!H5,\"\")","v":0},{"$f":"IF(AND(Equipment[[#Totals],[M: Abrasive Blasting]]=1,Vervuiling[[#Totals],[M: Abrasive Blasting]]=1,OnOffSite[[#Totals],[M: Abrasive Blasting]]=1),Leveranciers!I5,\"\")","v":1},{"$f":"IF(AND(Equipment[[#Totals],[M: Drilling]]=1,Vervuiling[[#Totals],[M: Drilling]]=1,OnOffSite[[#Totals],[M: Drilling]]=1),Leveranciers!J5,\"\")","v":0},{"$f":"IF(AND(Equipment[[#Totals],[M: Hydrokinetic Cleaning]]=1,Vervuiling[[#Totals],[M: Hydrokinetic Cleaning]]=1,OnOffSite[[#Totals],[M: Hydrokinetic Cleaning]]=1),Leveranciers!K5,\"\")","v":0},{"$f":"IF(AND(Equipment[[#Totals],[M: Manway Canons]]=1,Vervuiling[[#Totals],[M: Manway Canons]]=1,OnOffSite[[#Totals],[M: Manway Canons]]=1),Leveranciers!L5,\"\")","v":1},{"$f":"IF(AND(Equipment[[#Totals],[M: Remotely Operated Vehicles]]=1,Vervuiling[[#Totals],[M: Remotely Operated Vehicles]]=1,OnOffSite[[#Totals],[M: Remotely Operated Vehicles]]=1),Leveranciers!M5,\"\")","v":1},{"$f":"IF(AND(Equipment[[#Totals],[M: CO2 Blasting]]=1,Vervuiling[[#Totals],[M: CO2 Blasting]]=1,OnOffSite[[#Totals],[M: CO2 Blasting]]=1),Leveranciers!N5,\"\")","v":1},{"$f":"IF(AND(Equipment[[#Totals],[M: Flushing]]=1,Vervuiling[[#Totals],[M: Flushing]]=1,OnOffSite[[#Totals],[M: Flushing]]=1),Leveranciers!O5,\"\")","v":1},{"$f":"IF(AND(Equipment[[#Totals],[M: Brushing]]=1,Vervuiling[[#Totals],[M: Brushing]]=1,OnOffSite[[#Totals],[M: Brushing]]=1),Leveranciers!P5,\"\")","v":0},{"$f":"IF(AND(Equipment[[#Totals],[M: Air Lancing]]=1,Vervuiling[[#Totals],[M: Air Lancing]]=1,OnOffSite[[#Totals],[M: Air Lancing]]=1),Leveranciers!Q5,\"\")","v":0},{"$f":"IF(AND(Equipment[[#Totals],[M: Sodium Bi-Carbonate Blasting]]=1,Vervuiling[[#Totals],[M: Sodium Bi-Carbonate Blasting]]=1,OnOffSite[[#Totals],[M: Sodium Bi-Carbonate Blasting]]=1),Leveranciers!R5,\"\")","v":1},{"$f":"IF(AND(Equipment[[#Totals],[M: Vacuum, Blowing, Suction Techniques]]=1,Vervuiling[[#Totals],[M: Vacuum, Blowing, Suction Techniques]]=1,OnOffSite[[#Totals],[M: Vacuum, Blowing, Suction Techniques]]=1),Leveranciers!S5,\"\")","v":1},{"$f":"IF(AND(Equipment[[#Totals],[T: Liquid Nitrogen Jetting]]=1,Vervuiling[[#Totals],[T: Liquid Nitrogen Jetting]]=1,OnOffSite[[#Totals],[T: Liquid Nitrogen Jetting]]=1),Leveranciers!T5,\"\")","v":0},{"$f":"IF(AND(Equipment[[#Totals],[T: Laser Cleaning]]=1,Vervuiling[[#Totals],[T: Laser Cleaning]]=1,OnOffSite[[#Totals],[T: Laser Cleaning]]=1),Leveranciers!U5,\"\")","v":1},{"$f":"IF(AND(Equipment[[#Totals],[T: Pyrolysis]]=1,Vervuiling[[#Totals],[T: Pyrolysis]]=1,OnOffSite[[#Totals],[T: Pyrolysis]]=1),Leveranciers!V5,\"\")","v":0},{"$f":"IF(AND(Equipment[[#Totals],[C: Acidizing]]=1,Vervuiling[[#Totals],[C: Acidizing]]=1,OnOffSite[[#Totals],[C: Acidizing]]=1),Leveranciers!W5,\"\")","v":1},{"$f":"IF(AND(Equipment[[#Totals],[C: Degreasing]]=1,Vervuiling[[#Totals],[C: Degreasing]]=1,OnOffSite[[#Totals],[C: Degreasing]]=1),Leveranciers!X5,\"\")","v":1},{"$f":"IF(AND(Equipment[[#Totals],[C: Decontamination]]=1,Vervuiling[[#Totals],[C: Decontamination]]=1,OnOffSite[[#Totals],[C: Decontamination]]=1),Leveranciers!Y5,\"\")","v":1},{"$f":"IF(SUM(Leverancier[[#This Row],[M: Tube Darting & Scraping]:[C: Decontamination]])>0,\"Yes\",\"No\")","v":"Yes"},"+xxx xxx xxxxxxx4","Street4, Pcode City, Land","Person D"]
["Supplier",5,{"$f":"IF(SUM(Leverancier[[#This Row],[M: Tube Darting & Scraping]:[C: Decontamination]])>0,Leveranciers!A6,\"\")","v":"Supplier E"},{"$f":"IF(AND(Equipment[[#Totals],[M: Tube Darting & Scraping]]=1,Vervuiling[[#Totals],[M: Tube Darting & Scraping]]=1,OnOffSite[[#Totals],[M: Tube Darting & Scraping]]=1),Leveranciers!C6,\"\")","v":0},{"$f":"IF(AND(Equipment[[#Totals],[M: 3D- Nozzle (Butterworth / Tankwas kop)]]=1,Vervuiling[[#Totals],[M: 3D- Nozzle (Butterworth / Tankwas kop)]]=1,OnOffSite[[#Totals],[M: 3D- Nozzle (Butterworth / Tankwas kop)]]=1),Leveranciers!D6,\"\")","v":0},{"$f":"IF(AND(Equipment[[#Totals],[M: Rotating Hose Devices]]=1,Vervuiling[[#Totals],[M: Rotating Hose Devices]]=1,OnOffSite[[#Totals],[M: Rotating Hose Devices]]=1),Leveranciers!E6,\"\")","v":0},{"$f":"IF(AND(Equipment[[#Totals],[M: Water Jetting (UHP)]]=1,Vervuiling[[#Totals],[M: Water Jetting (UHP)]]=1,OnOffSite[[#Totals],[M: Water Jetting (UHP)]]=1),Leveranciers!F6,\"\")","v":0},{"$f":"IF(AND(Equipment[[#Totals],[M: Pigging]]=1,Vervuiling[[#Totals],[M: Pigging]]=1,OnOffSite[[#Totals],[M: Pigging]]=1),Leveranciers!G6,\"\")","v":0},{"$f":"IF(AND(Equipment[[#Totals],[M: Ultrasonic Baths (Chemical Cleaning)]]=1,Vervuiling[[#Totals],[M: Ultrasonic Baths (Chemical Cleaning)]]=1,OnOffSite[[#Totals],[M: Ultrasonic Baths (Chemical Cleaning)]]=1),Leveranciers!H6,\"\")","v":0},{"$f":"IF(AND(Equipment[[#Totals],[M: Abrasive Blasting]]=1,Vervuiling[[#Totals],[M: Abrasive Blasting]]=1,OnOffSite[[#Totals],[M: Abrasive Blasting]]=1),Leveranciers!I6,\"\")","v":0},{"$f":"IF(AND(Equipment[[#Totals],[M: Drilling]]=1,Vervuiling[[#Totals],[M: Drilling]]=1,OnOffSite[[#Totals],[M: Drilling]]=1),Leveranciers!J6,\"\")","v":0},{"$f":"IF(AND(Equipment[[#Totals],[M: Hydrokinetic Cleaning]]=1,Vervuiling[[#Totals],[M: Hydrokinetic Cleaning]]=1,OnOffSite[[#Totals],[M: Hydrokinetic Cleaning]]=1),Leveranciers!K6,\"\")","v":0},{"$f":"IF(AND(Equipment[[#Totals],[M: Manway Canons]]=1,Vervuiling[[#Totals],[M: Manway Canons]]=1,OnOffSite[[#Totals],[M: Manway Canons]]=1),Leveranciers!L6,\"\")","v":0},{"$f":"IF(AND(Equipment[[#Totals],[M: Remotely Operated Vehicles]]=1,Vervuiling[[#Totals],[M: Remotely Operated Vehicles]]=1,OnOffSite[[#Totals],[M: Remotely Operated Vehicles]]=1),Leveranciers!M6,\"\")","v":0},{"$f":"IF(AND(Equipment[[#Totals],[M: CO2 Blasting]]=1,Vervuiling[[#Totals],[M: CO2 Blasting]]=1,OnOffSite[[#Totals],[M: CO2 Blasting]]=1),Leveranciers!N6,\"\")","v":0},{"$f":"IF(AND(Equipment[[#Totals],[M: Flushing]]=1,Vervuiling[[#Totals],[M: Flushing]]=1,OnOffSite[[#Totals],[M: Flushing]]=1),Leveranciers!O6,\"\")","v":0},{"$f":"IF(AND(Equipment[[#Totals],[M: Brushing]]=1,Vervuiling[[#Totals],[M: Brushing]]=1,OnOffSite[[#Totals],[M: Brushing]]=1),Leveranciers!P6,\"\")","v":0},{"$f":"IF(AND(Equipment[[#Totals],[M: Air Lancing]]=1,Vervuiling[[#Totals],[M: Air Lancing]]=1,OnOffSite[[#Totals],[M: Air Lancing]]=1),Leveranciers!Q6,\"\")","v":0},{"$f":"IF(AND(Equipment[[#Totals],[M: Sodium Bi-Carbonate Blasting]]=1,Vervuiling[[#Totals],[M: Sodium Bi-Carbonate Blasting]]=1,OnOffSite[[#Totals],[M: Sodium Bi-Carbonate Blasting]]=1),Leveranciers!R6,\"\")","v":0},{"$f":"IF(AND(Equipment[[#Totals],[M: Vacuum, Blowing, Suction Techniques]]=1,Vervuiling[[#Totals],[M: Vacuum, Blowing, Suction Techniques]]=1,OnOffSite[[#Totals],[M: Vacuum, Blowing, Suction Techniques]]=1),Leveranciers!S6,\"\")","v":0},{"$f":"IF(AND(Equipment[[#Totals],[T: Liquid Nitrogen Jetting]]=1,Vervuiling[[#Totals],[T: Liquid Nitrogen Jetting]]=1,OnOffSite[[#Totals],[T: Liquid Nitrogen Jetting]]=1),Leveranciers!T6,\"\")","v":0},{"$f":"IF(AND(Equipment[[#Totals],[T: Laser Cleaning]]=1,Vervuiling[[#Totals],[T: Laser Cleaning]]=1,OnOffSite[[#Totals],[T: Laser Cleaning]]=1),Leveranciers!U6,\"\")","v":1},{"$f":"IF(AND(Equipment[[#Totals],[T: Pyrolysis]]=1,Vervuiling[[#Totals],[T: Pyrolysis]]=1,OnOffSite[[#Totals],[T: Pyrolysis]]=1),Leveranciers!V6,\"\")","v":0},{"$f":"IF(AND(Equipment[[#Totals],[C: Acidizing]]=1,Vervuiling[[#Totals],[C: Acidizing]]=1,OnOffSite[[#Totals],[C: Acidizing]]=1),Leveranciers!W6,\"\")","v":0},{"$f":"IF(AND(Equipment[[#Totals],[C: Degreasing]]=1,Vervuiling[[#Totals],[C: Degreasing]]=1,OnOffSite[[#Totals],[C: Degreasing]]=1),Leveranciers!X6,\"\")","v":0},{"$f":"IF(AND(Equipment[[#Totals],[C: Decontamination]]=1,Vervuiling[[#Totals],[C: Decontamination]]=1,OnOffSite[[#Totals],[C: Decontamination]]=1),Leveranciers!Y6,\"\")","v":0},{"$f":"IF(SUM(Leverancier[[#This Row],[M: Tube Darting & Scraping]:[C: Decontamination]])>0,\"Yes\",\"No\")","v":"Yes"},"+xxx xxx xxxxxxx5","Street5, Pcode City, Land","Person E"]
["Supplier",6,{"$f":"IF(SUM(Leverancier[[#This Row],[M: Tube Darting & Scraping]:[C: Decontamination]])>0,Leveranciers!A7,\"\")","v":"Supplier F"},{"$f":"IF(AND(Equipment[[#Totals],[M: Tube Darting & Scraping]]=1,Vervuiling[[#Totals],[M: Tube Darting & Scraping]]=1,OnOffSite[[#Totals],[M: Tube Darting & Scraping]]=1),Leveranciers!C7,\"\")","v":0},{"$f":"IF(AND(Equipment[[#Totals],[M: 3D- Nozzle (Butterworth / Tankwas kop)]]=1,Vervuiling[[#Totals],[M: 3D- Nozzle (Butterworth / Tankwas kop)]]=1,OnOffSite[[#Totals],[M: 3D- Nozzle (Butterworth / Tankwas kop)]]=1),Leveranciers!D7,\"\")","v":0},{"$f":"IF(AND(Equipment[[#Totals],[M: Rotating Hose Devices]]=1,Vervuiling[[#Totals],[M: Rotating Hose Devices]]=1,OnOffSite[[#Totals],[M: Rotating Hose Devices]]=1),Leveranciers!E7,\"\")","v":0},{"$f":"IF(AND(Equipment[[#Totals],[M: Water Jetting (UHP)]]=1,Vervuiling[[#Totals],[M: Water Jetting (UHP)]]=1,OnOffSite[[#Totals],[M: Water Jetting (UHP)]]=1),Leveranciers!F7,\"\")","v":0},{"$f":"IF(AND(Equipment[[#Totals],[M: Pigging]]=1,Vervuiling[[#Totals],[M: Pigging]]=1,OnOffSite[[#Totals],[M: Pigging]]=1),Leveranciers!G7,\"\")","v":0},{"$f":"IF(AND(Equipment[[#Totals],[M: Ultrasonic Baths (Chemical Cleaning)]]=1,Vervuiling[[#Totals],[M: Ultrasonic Baths (Chemical Cleaning)]]=1,OnOffSite[[#Totals],[M: Ultrasonic Baths (Chemical Cleaning)]]=1),Leveranciers!H7,\"\")","v":0},{"$f":"IF(AND(Equipment[[#Totals],[M: Abrasive Blasting]]=1,Vervuiling[[#Totals],[M: Abrasive Blasting]]=1,OnOffSite[[#Totals],[M: Abrasive Blasting]]=1),Leveranciers!I7,\"\")","v":0},{"$f":"IF(AND(Equipment[[#Totals],[M: Drilling]]=1,Vervuiling[[#Totals],[M: Drilling]]=1,OnOffSite[[#Totals],[M: Drilling]]=1),Leveranciers!J7,\"\")","v":1},{"$f":"IF(AND(Equipment[[#Totals],[M: Hydrokinetic Cleaning]]=1,Vervuiling[[#Totals],[M: Hydrokinetic Cleaning]]=1,OnOffSite[[#Totals],[M: Hydrokinetic Cleaning]]=1),Leveranciers!K7,\"\")","v":0},{"$f":"IF(AND(Equipment[[#Totals],[M: Manway Canons]]=1,Vervuiling[[#Totals],[M: Manway Canons]]=1,OnOffSite[[#Totals],[M: Manway Canons]]=1),Leveranciers!L7,\"\")","v":0},{"$f":"IF(AND(Equipment[[#Totals],[M: Remotely Operated Vehicles]]=1,Vervuiling[[#Totals],[M: Remotely Operated Vehicles]]=1,OnOffSite[[#Totals],[M: Remotely Operated Vehicles]]=1),Leveranciers!M7,\"\")","v":0},{"$f":"IF(AND(Equipment[[#Totals],[M: CO2 Blasting]]=1,Vervuiling[[#Totals],[M: CO2 Blasting]]=1,OnOffSite[[#Totals],[M: CO2 Blasting]]=1),Leveranciers!N7,\"\")","v":0},{"$f":"IF(AND(Equipment[[#Totals],[M: Flushing]]=1,Vervuiling[[#Totals],[M: Flushing]]=1,OnOffSite[[#Totals],[M: Flushing]]=1),Leveranciers!O7,\"\")","v":0},{"$f":"IF(AND(Equipment[[#Totals],[M: Brushing]]=1,Vervuiling[[#Totals],[M: Brushing]]=1,OnOffSite[[#Totals],[M: Brushing]]=1),Leveranciers!P7,\"\")","v":0},{"$f":"IF(AND(Equipment[[#Totals],[M: Air Lancing]]=1,Vervuiling[[#Totals],[M: Air Lancing]]=1,OnOffSite[[#Totals],[M: Air Lancing]]=1),Leveranciers!Q7,\"\")","v":0},{"$f":"IF(AND(Equipment[[#Totals],[M: Sodium Bi-Carbonate Blasting]]=1,Vervuiling[[#Totals],[M: Sodium Bi-Carbonate Blasting]]=1,OnOffSite[[#Totals],[M: Sodium Bi-Carbonate Blasting]]=1),Leveranciers!R7,\"\")","v":0},{"$f":"IF(AND(Equipment[[#Totals],[M: Vacuum, Blowing, Suction Techniques]]=1,Vervuiling[[#Totals],[M: Vacuum, Blowing, Suction Techniques]]=1,OnOffSite[[#Totals],[M: Vacuum, Blowing, Suction Techniques]]=1),Leveranciers!S7,\"\")","v":0},{"$f":"IF(AND(Equipment[[#Totals],[T: Liquid Nitrogen Jetting]]=1,Vervuiling[[#Totals],[T: Liquid Nitrogen Jetting]]=1,OnOffSite[[#Totals],[T: Liquid Nitrogen Jetting]]=1),Leveranciers!T7,\"\")","v":0},{"$f":"IF(AND(Equipment[[#Totals],[T: Laser Cleaning]]=1,Vervuiling[[#Totals],[T: Laser Cleaning]]=1,OnOffSite[[#Totals],[T: Laser Cleaning]]=1),Leveranciers!U7,\"\")","v":0},{"$f":"IF(AND(Equipment[[#Totals],[T: Pyrolysis]]=1,Vervuiling[[#Totals],[T: Pyrolysis]]=1,OnOffSite[[#Totals],[T: Pyrolysis]]=1),Leveranciers!V7,\"\")","v":0},{"$f":"IF(AND(Equipment[[#Totals],[C: Acidizing]]=1,Vervuiling[[#Totals],[C: Acidizing]]=1,OnOffSite[[#Totals],[C: Acidizing]]=1),Leveranciers!W7,\"\")","v":0},{"$f":"IF(AND(Equipment[[#Totals],[C: Degreasing]]=1,Vervuiling[[#Totals],[C: Degreasing]]=1,OnOffSite[[#Totals],[C: Degreasing]]=1),Leveranciers!X7,\"\")","v":0},{"$f":"IF(AND(Equipment[[#Totals],[C: Decontamination]]=1,Vervuiling[[#Totals],[C: Decontamination]]=1,OnOffSite[[#Totals],[C: Decontamination]]=1),Leveranciers!Y7,\"\")","v":0},{"$f":"IF(SUM(Leverancier[[#This Row],[M: Tube Darting & Scraping]:[C: Decontamination]])>0,\"Yes\",\"No\")","v":"Yes"},"+xxx xxx xxxxxxx6","Street6, Pcode City, Land","Person F"]
["Supplier",7,{"$f":"IF(SUM(Leverancier[[#This Row],[M: Tube Darting & Scraping]:[C: Decontamination]])>0,Leveranciers!A8,\"\")","v":"Supplier G"},{"$f":"IF(AND(Equipment[[#Totals],[M: Tube Darting & Scraping]]=1,Vervuiling[[#Totals],[M: Tube Darting & Scraping]]=1,OnOffSite[[#Totals],[M: Tube Darting & Scraping]]=1),Leveranciers!C8,\"\")","v":0},{"$f":"IF(AND(Equipment[[#Totals],[M: 3D- Nozzle (Butterworth / Tankwas kop)]]=1,Vervuiling[[#Totals],[M: 3D- Nozzle (Butterworth / Tankwas kop)]]=1,OnOffSite[[#Totals],[M: 3D- Nozzle (Butterworth / Tankwas kop)]]=1),Leveranciers!D8,\"\")","v":0},{"$f":"IF(AND(Equipment[[#Totals],[M: Rotating Hose Devices]]=1,Vervuiling[[#Totals],[M: Rotating Hose Devices]]=1,OnOffSite[[#Totals],[M: Rotating Hose Devices]]=1),Leveranciers!E8,\"\")","v":0},{"$f":"IF(AND(Equipment[[#Totals],[M: Water Jetting (UHP)]]=1,Vervuiling[[#Totals],[M: Water Jetting (UHP)]]=1,OnOffSite[[#Totals],[M: Water Jetting (UHP)]]=1),Leveranciers!F8,\"\")","v":0},{"$f":"IF(AND(Equipment[[#Totals],[M: Pigging]]=1,Vervuiling[[#Totals],[M: Pigging]]=1,OnOffSite[[#Totals],[M: Pigging]]=1),Leveranciers!G8,\"\")","v":0},{"$f":"IF(AND(Equipment[[#Totals],[M: Ultrasonic Baths (Chemical Cleaning)]]=1,Vervuiling[[#Totals],[M: Ultrasonic Baths (Chemical Cleaning)]]=1,OnOffSite[[#Totals],[M: Ultrasonic Baths (Chemical Cleaning)]]=1),Leveranciers!H8,\"\")","v":1},{"$f":"IF(AND(Equipment[[#Totals],[M: Abrasive Blasting]]=1,Vervuiling[[#Totals],[M: Abrasive Blasting]]=1,OnOffSite[[#Totals],[M: Abrasive Blasting]]=1),Leveranciers!I8,\"\")","v":0},{"$f":"IF(AND(Equipment[[#Totals],[M: Drilling]]=1,Vervuiling[[#Totals],[M: Drilling]]=1,OnOffSite[[#Totals],[M: Drilling]]=1),Leveranciers!J8,\"\")","v":0},{"$f":"IF(AND(Equipment[[#Totals],[M: Hydrokinetic Cleaning]]=1,Vervuiling[[#Totals],[M: Hydrokinetic Cleaning]]=1,OnOffSite[[#Totals],[M: Hydrokinetic Cleaning]]=1),Leveranciers!K8,\"\")","v":0},{"$f":"IF(AND(Equipment[[#Totals],[M: Manway Canons]]=1,Vervuiling[[#Totals],[M: Manway Canons]]=1,OnOffSite[[#Totals],[M: Manway Canons]]=1),Leveranciers!L8,\"\")","v":0},{"$f":"IF(AND(Equipment[[#Totals],[M: Remotely Operated Vehicles]]=1,Vervuiling[[#Totals],[M: Remotely Operated Vehicles]]=1,OnOffSite[[#Totals],[M: Remotely Operated Vehicles]]=1),Leveranciers!M8,\"\")","v":0},{"$f":"IF(AND(Equipment[[#Totals],[M: CO2 Blasting]]=1,Vervuiling[[#Totals],[M: CO2 Blasting]]=1,OnOffSite[[#Totals],[M: CO2 Blasting]]=1),Leveranciers!N8,\"\")","v":1},{"$f":"IF(AND(Equipment[[#Totals],[M: Flushing]]=1,Vervuiling[[#Totals],[M: Flushing]]=1,OnOffSite[[#Totals],[M: Flushing]]=1),Leveranciers!O8,\"\")","v":1},{"$f":"IF(AND(Equipment[[#Totals],[M: Brushing]]=1,Vervuiling[[#Totals],[M: Brushing]]=1,OnOffSite[[#Totals],[M: Brushing]]=1),Leveranciers!P8,\"\")","v":0},{"$f":"IF(AND(Equipment[[#Totals],[M: Air Lancing]]=1,Vervuiling[[#Totals],[M: Air Lancing]]=1,OnOffSite[[#Totals],[M: Air Lancing]]=1),Leveranciers!Q8,\"\")","v":0},{"$f":"IF(AND(Equipment[[#Totals],[M: Sodium Bi-Carbonate Blasting]]=1,Vervuiling[[#Totals],[M: Sodium Bi-Carbonate Blasting]]=1,OnOffSite[[#Totals],[M: Sodium Bi-Carbonate Blasting]]=1),Leveranciers!R8,\"\")","v":0},{"$f":"IF(AND(Equipment[[#Totals],[M: Vacuum, Blowing, Suction Techniques]]=1,Vervuiling[[#Totals],[M: Vacuum, Blowing, Suction Techniques]]=1,OnOffSite[[#Totals],[M: Vacuum, Blowing, Suction Techniques]]=1),Leveranciers!S8,\"\")","v":0},{"$f":"IF(AND(Equipment[[#Totals],[T: Liquid Nitrogen Jetting]]=1,Vervuiling[[#Totals],[T: Liquid Nitrogen Jetting]]=1,OnOffSite[[#Totals],[T: Liquid Nitrogen Jetting]]=1),Leveranciers!T8,\"\")","v":0},{"$f":"IF(AND(Equipment[[#Totals],[T: Laser Cleaning]]=1,Vervuiling[[#Totals],[T: Laser Cleaning]]=1,OnOffSite[[#Totals],[T: Laser Cleaning]]=1),Leveranciers!U8,\"\")","v":0},{"$f":"IF(AND(Equipment[[#Totals],[T: Pyrolysis]]=1,Vervuiling[[#Totals],[T: Pyrolysis]]=1,OnOffSite[[#Totals],[T: Pyrolysis]]=1),Leveranciers!V8,\"\")","v":1},{"$f":"IF(AND(Equipment[[#Totals],[C: Acidizing]]=1,Vervuiling[[#Totals],[C: Acidizing]]=1,OnOffSite[[#Totals],[C: Acidizing]]=1),Leveranciers!W8,\"\")","v":0},{"$f":"IF(AND(Equipment[[#Totals],[C: Degreasing]]=1,Vervuiling[[#Totals],[C: Degreasing]]=1,OnOffSite[[#Totals],[C: Degreasing]]=1),Leveranciers!X8,\"\")","v":0},{"$f":"IF(AND(Equipment[[#Totals],[C: Decontamination]]=1,Vervuiling[[#Totals],[C: Decontamination]]=1,OnOffSite[[#Totals],[C: Decontamination]]=1),Leveranciers!Y8,\"\")","v":0},{"$f":"IF(SUM(Leverancier[[#This Row],[M: Tube Darting & Scraping]:[C: Decontamination]])>0,\"Yes\",\"No\")","v":"Yes"},"+xxx xxx xxxxxxx7","Street7, Pcode City, Land","Person G"]
["Supplier",8,{"$f":"IF(SUM(Leverancier[[#This Row],[M: Tube Darting & Scraping]:[C: Decontamination]])>0,Leveranciers!A9,\"\")","v":"Supplier H"},{"$f":"IF(AND(Equipment[[#Totals],[M: Tube Darting & Scraping]]=1,Vervuiling[[#Totals],[M: Tube Darting & Scraping]]=1,OnOffSite[[#Totals],[M: Tube Darting & Scraping]]=1),Leveranciers!C9,\"\")","v":0},{"$f":"IF(AND(Equipment[[#Totals],[M: 3D- Nozzle (Butterworth / Tankwas kop)]]=1,Vervuiling[[#Totals],[M: 3D- Nozzle (Butterworth / Tankwas kop)]]=1,OnOffSite[[#Totals],[M: 3D- Nozzle (Butterworth / Tankwas kop)]]=1),Leveranciers!D9,\"\")","v":0},{"$f":"IF(AND(Equipment[[#Totals],[M: Rotating Hose Devices]]=1,Vervuiling[[#Totals],[M: Rotating Hose Devices]]=1,OnOffSite[[#Totals],[M: Rotating Hose Devices]]=1),Leveranciers!E9,\"\")","v":0},{"$f":"IF(AND(Equipment[[#Totals],[M: Water Jetting (UHP)]]=1,Vervuiling[[#Totals],[M: Water Jetting (UHP)]]=1,OnOffSite[[#Totals],[M: Water Jetting (UHP)]]=1),Leveranciers!F9,\"\")","v":0},{"$f":"IF(AND(Equipment[[#Totals],[M: Pigging]]=1,Vervuiling[[#Totals],[M: Pigging]]=1,OnOffSite[[#Totals],[M: Pigging]]=1),Leveranciers!G9,\"\")","v":0},{"$f":"IF(AND(Equipment[[#Totals],[M: Ultrasonic Baths (Chemical Cleaning)]]=1,Vervuiling[[#Totals],[M: Ultrasonic Baths (Chemical Cleaning)]]=1,OnOffSite[[#Totals],[M: Ultrasonic Baths (Chemical Cleaning)]]=1),Leveranciers!H9,\"\")","v":0},{"$f":"IF(AND(Equipment[[#Totals],[M: Abrasive Blasting]]=1,Vervuiling[[#Totals],[M: Abrasive Blasting]]=1,OnOffSite[[#Totals],[M: Abrasive Blasting]]=1),Leveranciers!I9,\"\")","v":0},{"$f":"IF(AND(Equipment[[#Totals],[M: Drilling]]=1,Vervuiling[[#Totals],[M: Drilling]]=1,OnOffSite[[#Totals],[M: Drilling]]=1),Leveranciers!J9,\"\")","v":0},{"$f":"IF(AND(Equipment[[#Totals],[M: Hydrokinetic Cleaning]]=1,Vervuiling[[#Totals],[M: Hydrokinetic Cleaning]]=1,OnOffSite[[#Totals],[M: Hydrokinetic Cleaning]]=1),Leveranciers!K9,\"\")","v":1},{"$f":"IF(AND(Equipment[[#Totals],[M: Manway Canons]]=1,Vervuiling[[#Totals],[M: Manway Canons]]=1,OnOffSite[[#Totals],[M: Manway Canons]]=1),Leveranciers!L9,\"\")","v":0},{"$f":"IF(AND(Equipment[[#Totals],[M: Remotely Operated Vehicles]]=1,Vervuiling[[#Totals],[M: Remotely Operated Vehicles]]=1,OnOffSite[[#Totals],[M: Remotely Operated Vehicles]]=1),Leveranciers!M9,\"\")","v":0},{"$f":"IF(AND(Equipment[[#Totals],[M: CO2 Blasting]]=1,Vervuiling[[#Totals],[M: CO2 Blasting]]=1,OnOffSite[[#Totals],[M: CO2 Blasting]]=1),Leveranciers!N9,\"\")","v":0},{"$f":"IF(AND(Equipment[[#Totals],[M: Flushing]]=1,Vervuiling[[#Totals],[M: Flushing]]=1,OnOffSite[[#Totals],[M: Flushing]]=1),Leveranciers!O9,\"\")","v":0},{"$f":"IF(AND(Equipment[[#Totals],[M: Brushing]]=1,Vervuiling[[#Totals],[M: Brushing]]=1,OnOffSite[[#Totals],[M: Brushing]]=1),Leveranciers!P9,\"\")","v":0},{"$f":"IF(AND(Equipment[[#Totals],[M: Air Lancing]]=1,Vervuiling[[#Totals],[M: Air Lancing]]=1,OnOffSite[[#Totals],[M: Air Lancing]]=1),Leveranciers!Q9,\"\")","v":0},{"$f":"IF(AND(Equipment[[#Totals],[M: Sodium Bi-Carbonate Blasting]]=1,Vervuiling[[#Totals],[M: Sodium Bi-Carbonate Blasting]]=1,OnOffSite[[#Totals],[M: Sodium Bi-Carbonate Blasting]]=1),Leveranciers!R9,\"\")","v":0},{"$f":"IF(AND(Equipment[[#Totals],[M: Vacuum, Blowing, Suction Techniques]]=1,Vervuiling[[#Totals],[M: Vacuum, Blowing, Suction Techniques]]=1,OnOffSite[[#Totals],[M: Vacuum, Blowing, Suction Techniques]]=1),Leveranciers!S9,\"\")","v":0},{"$f":"IF(AND(Equipment[[#Totals],[T: Liquid Nitrogen Jetting]]=1,Vervuiling[[#Totals],[T: Liquid Nitrogen Jetting]]=1,OnOffSite[[#Totals],[T: Liquid Nitrogen Jetting]]=1),Leveranciers!T9,\"\")","v":0},{"$f":"IF(AND(Equipment[[#Totals],[T: Laser Cleaning]]=1,Vervuiling[[#Totals],[T: Laser Cleaning]]=1,OnOffSite[[#Totals],[T: Laser Cleaning]]=1),Leveranciers!U9,\"\")","v":0},{"$f":"IF(AND(Equipment[[#Totals],[T: Pyrolysis]]=1,Vervuiling[[#Totals],[T: Pyrolysis]]=1,OnOffSite[[#Totals],[T: Pyrolysis]]=1),Leveranciers!V9,\"\")","v":0},{"$f":"IF(AND(Equipment[[#Totals],[C: Acidizing]]=1,Vervuiling[[#Totals],[C: Acidizing]]=1,OnOffSite[[#Totals],[C: Acidizing]]=1),Leveranciers!W9,\"\")","v":0},{"$f":"IF(AND(Equipment[[#Totals],[C: Degreasing]]=1,Vervuiling[[#Totals],[C: Degreasing]]=1,OnOffSite[[#Totals],[C: Degreasing]]=1),Leveranciers!X9,\"\")","v":0},{"$f":"IF(AND(Equipment[[#Totals],[C: Decontamination]]=1,Vervuiling[[#Totals],[C: Decontamination]]=1,OnOffSite[[#Totals],[C: Decontamination]]=1),Leveranciers!Y9,\"\")","v":0},{"$f":"IF(SUM(Leverancier[[#This Row],[M: Tube Darting & Scraping]:[C: Decontamination]])>0,\"Yes\",\"No\")","v":"Yes"},"+xxx xxx xxxxxxx8","Street8, Pcode City, Land","Person H"]
["Supplier",9,{"$f":"IF(SUM(Leverancier[[#This Row],[M: Tube Darting & Scraping]:[C: Decontamination]])>0,Leveranciers!A10,\"\")","v":"Supplier I"},{"$f":"IF(AND(Equipment[[#Totals],[M: Tube Darting & Scraping]]=1,Vervuiling[[#Totals],[M: Tube Darting & Scraping]]=1,OnOffSite[[#Totals],[M: Tube Darting & Scraping]]=1),Leveranciers!C10,\"\")","v":0},{"$f":"IF(AND(Equipment[[#Totals],[M: 3D- Nozzle (Butterworth / Tankwas kop)]]=1,Vervuiling[[#Totals],[M: 3D- Nozzle (Butterworth / Tankwas kop)]]=1,OnOffSite[[#Totals],[M: 3D- Nozzle (Butterworth / Tankwas kop)]]=1),Leveranciers!D10,\"\")","v":0},{"$f":"IF(AND(Equipment[[#Totals],[M: Rotating Hose Devices]]=1,Vervuiling[[#Totals],[M: Rotating Hose Devices]]=1,OnOffSite[[#Totals],[M: Rotating Hose Devices]]=1),Leveranciers!E10,\"\")","v":0},{"$f":"IF(AND(Equipment[[#Totals],[M: Water Jetting (UHP)]]=1,Vervuiling[[#Totals],[M: Water Jetting (UHP)]]=1,OnOffSite[[#Totals],[M: Water Jetting (UHP)]]=1),Leveranciers!F10,\"\")","v":0},{"$f":"IF(AND(Equipment[[#Totals],[M: Pigging]]=1,Vervuiling[[#Totals],[M: Pigging]]=1,OnOffSite[[#Totals],[M: Pigging]]=1),Leveranciers!G10,\"\")","v":0},{"$f":"IF(AND(Equipment[[#Totals],[M: Ultrasonic Baths (Chemical Cleaning)]]=1,Vervuiling[[#Totals],[M: Ultrasonic Baths (Chemical Cleaning)]]=1,OnOffSite[[#Totals],[M: Ultrasonic Baths (Chemical Cleaning)]]=1),Leveranciers!H10,\"\")","v":0},{"$f":"IF(AND(Equipment[[#Totals],[M: Abrasive Blasting]]=1,Vervuiling[[#Totals],[M: Abrasive Blasting]]=1,OnOffSite[[#Totals],[M: Abrasive Blasting]]=1),Leveranciers!I10,\"\")","v":0},{"$f":"IF(AND(Equipment[[#Totals],[M: Drilling]]=1,Vervuiling[[#Totals],[M: Drilling]]=1,OnOffSite[[#Totals],[M: Drilling]]=1),Leveranciers!J10,\"\")","v":0},{"$f":"IF(AND(Equipment[[#Totals],[M: Hydrokinetic Cleaning]]=1,Vervuiling[[#Totals],[M: Hydrokinetic Cleaning]]=1,OnOffSite[[#Totals],[M: Hydrokinetic Cleaning]]=1),Leveranciers!K10,\"\")","v":0},{"$f":"IF(AND(Equipment[[#Totals],[M: Manway Canons]]=1,Vervuiling[[#Totals],[M: Manway Canons]]=1,OnOffSite[[#Totals],[M: Manway Canons]]=1),Leveranciers!L10,\"\")","v":0},{"$f":"IF(AND(Equipment[[#Totals],[M: Remotely Operated Vehicles]]=1,Vervuiling[[#Totals],[M: Remotely Operated Vehicles]]=1,OnOffSite[[#Totals],[M: Remotely Operated Vehicles]]=1),Leveranciers!M10,\"\")","v":0},{"$f":"IF(AND(Equipment[[#Totals],[M: CO2 Blasting]]=1,Vervuiling[[#Totals],[M: CO2 Blasting]]=1,OnOffSite[[#Totals],[M: CO2 Blasting]]=1),Leveranciers!N10,\"\")","v":0},{"$f":"IF(AND(Equipment[[#Totals],[M: Flushing]]=1,Vervuiling[[#Totals],[M: Flushing]]=1,OnOffSite[[#Totals],[M: Flushing]]=1),Leveranciers!O10,\"\")","v":0},{"$f":"IF(AND(Equipment[[#Totals],[M: Brushing]]=1,Vervuiling[[#Totals],[M: Brushing]]=1,OnOffSite[[#Totals],[M: Brushing]]=1),Leveranciers!P10,\"\")","v":0},{"$f":"IF(AND(Equipment[[#Totals],[M: Air Lancing]]=1,Vervuiling[[#Totals],[M: Air Lancing]]=1,OnOffSite[[#Totals],[M: Air Lancing]]=1),Leveranciers!Q10,\"\")","v":0},{"$f":"IF(AND(Equipment[[#Totals],[M: Sodium Bi-Carbonate Blasting]]=1,Vervuiling[[#Totals],[M: Sodium Bi-Carbonate Blasting]]=1,OnOffSite[[#Totals],[M: Sodium Bi-Carbonate Blasting]]=1),Leveranciers!R10,\"\")","v":0},{"$f":"IF(AND(Equipment[[#Totals],[M: Vacuum, Blowing, Suction Techniques]]=1,Vervuiling[[#Totals],[M: Vacuum, Blowing, Suction Techniques]]=1,OnOffSite[[#Totals],[M: Vacuum, Blowing, Suction Techniques]]=1),Leveranciers!S10,\"\")","v":0},{"$f":"IF(AND(Equipment[[#Totals],[T: Liquid Nitrogen Jetting]]=1,Vervuiling[[#Totals],[T: Liquid Nitrogen Jetting]]=1,OnOffSite[[#Totals],[T: Liquid Nitrogen Jetting]]=1),Leveranciers!T10,\"\")","v":0},{"$f":"IF(AND(Equipment[[#Totals],[T: Laser Cleaning]]=1,Vervuiling[[#Totals],[T: Laser Cleaning]]=1,OnOffSite[[#Totals],[T: Laser Cleaning]]=1),Leveranciers!U10,\"\")","v":0},{"$f":"IF(AND(Equipment[[#Totals],[T: Pyrolysis]]=1,Vervuiling[[#Totals],[T: Pyrolysis]]=1,OnOffSite[[#Totals],[T: Pyrolysis]]=1),Leveranciers!V10,\"\")","v":1},{"$f":"IF(AND(Equipment[[#Totals],[C: Acidizing]]=1,Vervuiling[[#Totals],[C: Acidizing]]=1,OnOffSite[[#Totals],[C: Acidizing]]=1),Leveranciers!W10,\"\")","v":0},{"$f":"IF(AND(Equipment[[#Totals],[C: Degreasing]]=1,Vervuiling[[#Totals],[C: Degreasing]]=1,OnOffSite[[#Totals],[C: Degreasing]]=1),Leveranciers!X10,\"\")","v":0},{"$f":"IF(AND(Equipment[[#Totals],[C: Decontamination]]=1,Vervuiling[[#Totals],[C: Decontamination]]=1,OnOffSite[[#Totals],[C: Decontamination]]=1),Leveranciers!Y10,\"\")","v":0},{"$f":"IF(SUM(Leverancier[[#This Row],[M: Tube Darting & Scraping]:[C: Decontamination]])>0,\"Yes\",\"No\")","v":"Yes"},"+xxx xxx xxxxxxx9","Street9, Pcode City, Land","Person I"]
["Supplier",10,{"$f":"IF(SUM(Leverancier[[#This Row],[M: Tube Darting & Scraping]:[C: Decontamination]])>0,Leveranciers!A11,\"\")","v":"Supplier J"},{"$f":"IF(AND(Equipment[[#Totals],[M: Tube Darting & Scraping]]=1,Vervuiling[[#Totals],[M: Tube Darting & Scraping]]=1,OnOffSite[[#Totals],[M: Tube Darting & Scraping]]=1),Leveranciers!C11,\"\")","v":0},{"$f":"IF(AND(Equipment[[#Totals],[M: 3D- Nozzle (Butterworth / Tankwas kop)]]=1,Vervuiling[[#Totals],[M: 3D- Nozzle (Butterworth / Tankwas kop)]]=1,OnOffSite[[#Totals],[M: 3D- Nozzle (Butterworth / Tankwas kop)]]=1),Leveranciers!D11,\"\")","v":0},{"$f":"IF(AND(Equipment[[#Totals],[M: Rotating Hose Devices]]=1,Vervuiling[[#Totals],[M: Rotating Hose Devices]]=1,OnOffSite[[#Totals],[M: Rotating Hose Devices]]=1),Leveranciers!E11,\"\")","v":0},{"$f":"IF(AND(Equipment[[#Totals],[M: Water Jetting (UHP)]]=1,Vervuiling[[#Totals],[M: Water Jetting (UHP)]]=1,OnOffSite[[#Totals],[M: Water Jetting (UHP)]]=1),Leveranciers!F11,\"\")","v":0},{"$f":"IF(AND(Equipment[[#Totals],[M: Pigging]]=1,Vervuiling[[#Totals],[M: Pigging]]=1,OnOffSite[[#Totals],[M: Pigging]]=1),Leveranciers!G11,\"\")","v":0},{"$f":"IF(AND(Equipment[[#Totals],[M: Ultrasonic Baths (Chemical Cleaning)]]=1,Vervuiling[[#Totals],[M: Ultrasonic Baths (Chemical Cleaning)]]=1,OnOffSite[[#Totals],[M: Ultrasonic Baths (Chemical Cleaning)]]=1),Leveranciers!H11,\"\")","v":0},{"$f":"IF(AND(Equipment[[#Totals],[M: Abrasive Blasting]]=1,Vervuiling[[#Totals],[M: Abrasive Blasting]]=1,OnOffSite[[#Totals],[M: Abrasive Blasting]]=1),Leveranciers!I11,\"\")","v":0},{"$f":"IF(AND(Equipment[[#Totals],[M: Drilling]]=1,Vervuiling[[#Totals],[M: Drilling]]=1,OnOffSite[[#Totals],[M: Drilling]]=1),Leveranciers!J11,\"\")","v":0},{"$f":"IF(AND(Equipment[[#Totals],[M: Hydrokinetic Cleaning]]=1,Vervuiling[[#Totals],[M: Hydrokinetic Cleaning]]=1,OnOffSite[[#Totals],[M: Hydrokinetic Cleaning]]=1),Leveranciers!K11,\"\")","v":0},{"$f":"IF(AND(Equipment[[#Totals],[M: Manway Canons]]=1,Vervuiling[[#Totals],[M: Manway Canons]]=1,OnOffSite[[#Totals],[M: Manway Canons]]=1),Leveranciers!L11,\"\")","v":0},{"$f":"IF(AND(Equipment[[#Totals],[M: Remotely Operated Vehicles]]=1,Vervuiling[[#Totals],[M: Remotely Operated Vehicles]]=1,OnOffSite[[#Totals],[M: Remotely Operated Vehicles]]=1),Leveranciers!M11,\"\")","v":0},{"$f":"IF(AND(Equipment[[#Totals],[M: CO2 Blasting]]=1,Vervuiling[[#Totals],[M: CO2 Blasting]]=1,OnOffSite[[#Totals],[M: CO2 Blasting]]=1),Leveranciers!N11,\"\")","v":0},{"$f":"IF(AND(Equipment[[#Totals],[M: Flushing]]=1,Vervuiling[[#Totals],[M: Flushing]]=1,OnOffSite[[#Totals],[M: Flushing]]=1),Leveranciers!O11,\"\")","v":0},{"$f":"IF(AND(Equipment[[#Totals],[M: Brushing]]=1,Vervuiling[[#Totals],[M: Brushing]]=1,OnOffSite[[#Totals],[M: Brushing]]=1),Leveranciers!P11,\"\")","v":0},{"$f":"IF(AND(Equipment[[#Totals],[M: Air Lancing]]=1,Vervuiling[[#Totals],[M: Air Lancing]]=1,OnOffSite[[#Totals],[M: Air Lancing]]=1),Leveranciers!Q11,\"\")","v":0},{"$f":"IF(AND(Equipment[[#Totals],[M: Sodium Bi-Carbonate Blasting]]=1,Vervuiling[[#Totals],[M: Sodium Bi-Carbonate Blasting]]=1,OnOffSite[[#Totals],[M: Sodium Bi-Carbonate Blasting]]=1),Leveranciers!R11,\"\")","v":0},{"$f":"IF(AND(Equipment[[#Totals],[M: Vacuum, Blowing, Suction Techniques]]=1,Vervuiling[[#Totals],[M: Vacuum, Blowing, Suction Techniques]]=1,OnOffSite[[#Totals],[M: Vacuum, Blowing, Suction Techniques]]=1),Leveranciers!S11,\"\")","v":0},{"$f":"IF(AND(Equipment[[#Totals],[T: Liquid Nitrogen Jetting]]=1,Vervuiling[[#Totals],[T: Liquid Nitrogen Jetting]]=1,OnOffSite[[#Totals],[T: Liquid Nitrogen Jetting]]=1),Leveranciers!T11,\"\")","v":0},{"$f":"IF(AND(Equipment[[#Totals],[T: Laser Cleaning]]=1,Vervuiling[[#Totals],[T: Laser Cleaning]]=1,OnOffSite[[#Totals],[T: Laser Cleaning]]=1),Leveranciers!U11,\"\")","v":0},{"$f":"IF(AND(Equipment[[#Totals],[T: Pyrolysis]]=1,Vervuiling[[#Totals],[T: Pyrolysis]]=1,OnOffSite[[#Totals],[T: Pyrolysis]]=1),Leveranciers!V11,\"\")","v":1},{"$f":"IF(AND(Equipment[[#Totals],[C: Acidizing]]=1,Vervuiling[[#Totals],[C: Acidizing]]=1,OnOffSite[[#Totals],[C: Acidizing]]=1),Leveranciers!W11,\"\")","v":0},{"$f":"IF(AND(Equipment[[#Totals],[C: Degreasing]]=1,Vervuiling[[#Totals],[C: Degreasing]]=1,OnOffSite[[#Totals],[C: Degreasing]]=1),Leveranciers!X11,\"\")","v":0},{"$f":"IF(AND(Equipment[[#Totals],[C: Decontamination]]=1,Vervuiling[[#Totals],[C: Decontamination]]=1,OnOffSite[[#Totals],[C: Decontamination]]=1),Leveranciers!Y11,\"\")","v":0},{"$f":"IF(SUM(Leverancier[[#This Row],[M: Tube Darting & Scraping]:[C: Decontamination]])>0,\"Yes\",\"No\")","v":"Yes"},"+xxx xxx xxxxxxx10","Street10, Pcode City, Land","Person J"]
["Supplier",11,{"$f":"IF(SUM(Leverancier[[#This Row],[M: Tube Darting & Scraping]:[C: Decontamination]])>0,Leveranciers!A12,\"\")","v":"Supplier K"},{"$f":"IF(AND(Equipment[[#Totals],[M: Tube Darting & Scraping]]=1,Vervuiling[[#Totals],[M: Tube Darting & Scraping]]=1,OnOffSite[[#Totals],[M: Tube Darting & Scraping]]=1),Leveranciers!C12,\"\")","v":1},{"$f":"IF(AND(Equipment[[#Totals],[M: 3D- Nozzle (Butterworth / Tankwas kop)]]=1,Vervuiling[[#Totals],[M: 3D- Nozzle (Butterworth / Tankwas kop)]]=1,OnOffSite[[#Totals],[M: 3D- Nozzle (Butterworth / Tankwas kop)]]=1),Leveranciers!D12,\"\")","v":0},{"$f":"IF(AND(Equipment[[#Totals],[M: Rotating Hose Devices]]=1,Vervuiling[[#Totals],[M: Rotating Hose Devices]]=1,OnOffSite[[#Totals],[M: Rotating Hose Devices]]=1),Leveranciers!E12,\"\")","v":0},{"$f":"IF(AND(Equipment[[#Totals],[M: Water Jetting (UHP)]]=1,Vervuiling[[#Totals],[M: Water Jetting (UHP)]]=1,OnOffSite[[#Totals],[M: Water Jetting (UHP)]]=1),Leveranciers!F12,\"\")","v":0},{"$f":"IF(AND(Equipment[[#Totals],[M: Pigging]]=1,Vervuiling[[#Totals],[M: Pigging]]=1,OnOffSite[[#Totals],[M: Pigging]]=1),Leveranciers!G12,\"\")","v":0},{"$f":"IF(AND(Equipment[[#Totals],[M: Ultrasonic Baths (Chemical Cleaning)]]=1,Vervuiling[[#Totals],[M: Ultrasonic Baths (Chemical Cleaning)]]=1,OnOffSite[[#Totals],[M: Ultrasonic Baths (Chemical Cleaning)]]=1),Leveranciers!H12,\"\")","v":0},{"$f":"IF(AND(Equipment[[#Totals],[M: Abrasive Blasting]]=1,Vervuiling[[#Totals],[M: Abrasive Blasting]]=1,OnOffSite[[#Totals],[M: Abrasive Blasting]]=1),Leveranciers!I12,\"\")","v":0},{"$f":"IF(AND(Equipment[[#Totals],[M: Drilling]]=1,Vervuiling[[#Totals],[M: Drilling]]=1,OnOffSite[[#Totals],[M: Drilling]]=1),Leveranciers!J12,\"\")","v":0},{"$f":"IF(AND(Equipment[[#Totals],[M: Hydrokinetic Cleaning]]=1,Vervuiling[[#Totals],[M: Hydrokinetic Cleaning]]=1,OnOffSite[[#Totals],[M: Hydrokinetic Cleaning]]=1),Leveranciers!K12,\"\")","v":0},{"$f":"IF(AND(Equipment[[#Totals],[M: Manway Canons]]=1,Vervuiling[[#Totals],[M: Manway Canons]]=1,OnOffSite[[#Totals],[M: Manway Canons]]=1),Leveranciers!L12,\"\")","v":0},{"$f":"IF(AND(Equipment[[#Totals],[M: Remotely Operated Vehicles]]=1,Vervuiling[[#Totals],[M: Remotely Operated Vehicles]]=1,OnOffSite[[#Totals],[M: Remotely Operated Vehicles]]=1),Leveranciers!M12,\"\")","v":0},{"$f":"IF(AND(Equipment[[#Totals],[M: CO2 Blasting]]=1,Vervuiling[[#Totals],[M: CO2 Blasting]]=1,OnOffSite[[#Totals],[M: CO2 Blasting]]=1),Leveranciers!N12,\"\")","v":0},{"$f":"IF(AND(Equipment[[#Totals],[M: Flushing]]=1,Vervuiling[[#Totals],[M: Flushing]]=1,OnOffSite[[#Totals],[M: Flushing]]=1),Leveranciers!O12,\"\")","v":0},{"$f":"IF(AND(Equipment[[#Totals],[M: Brushing]]=1,Vervuiling[[#Totals],[M: Brushing]]=1,OnOffSite[[#Totals],[M: Brushing]]=1),Leveranciers!P12,\"\")","v":1},{"$f":"IF(AND(Equipment[[#Totals],[M: Air Lancing]]=1,Vervuiling[[#Totals],[M: Air Lancing]]=1,OnOffSite[[#Totals],[M: Air Lancing]]=1),Leveranciers!Q12,\"\")","v":0},{"$f":"IF(AND(Equipment[[#Totals],[M: Sodium Bi-Carbonate Blasting]]=1,Vervuiling[[#Totals],[M: Sodium Bi-Carbonate Blasting]]=1,OnOffSite[[#Totals],[M: Sodium Bi-Carbonate Blasting]]=1),Leveranciers!R12,\"\")","v":0},{"$f":"IF(AND(Equipment[[#Totals],[M: Vacuum, Blowing, Suction Techniques]]=1,Vervuiling[[#Totals],[M: Vacuum, Blowing, Suction Techniques]]=1,OnOffSite[[#Totals],[M: Vacuum, Blowing, Suction Techniques]]=1),Leveranciers!S12,\"\")","v":0},{"$f":"IF(AND(Equipment[[#Totals],[T: Liquid Nitrogen Jetting]]=1,Vervuiling[[#Totals],[T: Liquid Nitrogen Jetting]]=1,OnOffSite[[#Totals],[T: Liquid Nitrogen Jetting]]=1),Leveranciers!T12,\"\")","v":1},{"$f":"IF(AND(Equipment[[#Totals],[T: Laser Cleaning]]=1,Vervuiling[[#Totals],[T: Laser Cleaning]]=1,OnOffSite[[#Totals],[T: Laser Cleaning]]=1),Leveranciers!U12,\"\")","v":0},{"$f":"IF(AND(Equipment[[#Totals],[T: Pyrolysis]]=1,Vervuiling[[#Totals],[T: Pyrolysis]]=1,OnOffSite[[#Totals],[T: Pyrolysis]]=1),Leveranciers!V12,\"\")","v":0},{"$f":"IF(AND(Equipment[[#Totals],[C: Acidizing]]=1,Vervuiling[[#Totals],[C: Acidizing]]=1,OnOffSite[[#Totals],[C: Acidizing]]=1),Leveranciers!W12,\"\")","v":0},{"$f":"IF(AND(Equipment[[#Totals],[C: Degreasing]]=1,Vervuiling[[#Totals],[C: Degreasing]]=1,OnOffSite[[#Totals],[C: Degreasing]]=1),Leveranciers!X12,\"\")","v":0},{"$f":"IF(AND(Equipment[[#Totals],[C: Decontamination]]=1,Vervuiling[[#Totals],[C: Decontamination]]=1,OnOffSite[[#Totals],[C: Decontamination]]=1),Leveranciers!Y12,\"\")","v":0},{"$f":"IF(SUM(Leverancier[[#This Row],[M: Tube Darting & Scraping]:[C: Decontamination]])>0,\"Yes\",\"No\")","v":"Yes"},"+xxx xxx xxxxxxx11","Street11, Pcode City, Land","Person K"]
["Supplier",12,{"$f":"IF(SUM(Leverancier[[#This Row],[M: Tube Darting & Scraping]:[C: Decontamination]])>0,Leveranciers!A13,\"\")","v":"Supplier L"},{"$f":"IF(AND(Equipment[[#Totals],[M: Tube Darting & Scraping]]=1,Vervuiling[[#Totals],[M: Tube Darting & Scraping]]=1,OnOffSite[[#Totals],[M: Tube Darting & Scraping]]=1),Leveranciers!C13,\"\")","v":0},{"$f":"IF(AND(Equipment[[#Totals],[M: 3D- Nozzle (Butterworth / Tankwas kop)]]=1,Vervuiling[[#Totals],[M: 3D- Nozzle (Butterworth / Tankwas kop)]]=1,OnOffSite[[#Totals],[M: 3D- Nozzle (Butterworth / Tankwas kop)]]=1),Leveranciers!D13,\"\")","v":0},{"$f":"IF(AND(Equipment[[#Totals],[M: Rotating Hose Devices]]=1,Vervuiling[[#Totals],[M: Rotating Hose Devices]]=1,OnOffSite[[#Totals],[M: Rotating Hose Devices]]=1),Leveranciers!E13,\"\")","v":0},{"$f":"IF(AND(Equipment[[#Totals],[M: Water Jetting (UHP)]]=1,Vervuiling[[#Totals],[M: Water Jetting (UHP)]]=1,OnOffSite[[#Totals],[M: Water Jetting (UHP)]]=1),Leveranciers!F13,\"\")","v":0},{"$f":"IF(AND(Equipment[[#Totals],[M: Pigging]]=1,Vervuiling[[#Totals],[M: Pigging]]=1,OnOffSite[[#Totals],[M: Pigging]]=1),Leveranciers!G13,\"\")","v":0},{"$f":"IF(AND(Equipment[[#Totals],[M: Ultrasonic Baths (Chemical Cleaning)]]=1,Vervuiling[[#Totals],[M: Ultrasonic Baths (Chemical Cleaning)]]=1,OnOffSite[[#Totals],[M: Ultrasonic Baths (Chemical Cleaning)]]=1),Leveranciers!H13,\"\")","v":1},{"$f":"IF(AND(Equipment[[#Totals],[M: Abrasive Blasting]]=1,Vervuiling[[#Totals],[M: Abrasive Blasting]]=1,OnOffSite[[#Totals],[M: Abrasive Blasting]]=1),Leveranciers!I13,\"\")","v":0},{"$f":"IF(AND(Equipment[[#Totals],[M: Drilling]]=1,Vervuiling[[#Totals],[M: Drilling]]=1,OnOffSite[[#Totals],[M: Drilling]]=1),Leveranciers!J13,\"\")","v":0},{"$f":"IF(AND(Equipment[[#Totals],[M: Hydrokinetic Cleaning]]=1,Vervuiling[[#Totals],[M: Hydrokinetic Cleaning]]=1,OnOffSite[[#Totals],[M: Hydrokinetic Cleaning]]=1),Leveranciers!K13,\"\")","v":0},{"$f":"IF(AND(Equipment[[#Totals],[M: Manway Canons]]=1,Vervuiling[[#Totals],[M: Manway Canons]]=1,OnOffSite[[#Totals],[M: Manway Canons]]=1),Leveranciers!L13,\"\")","v":0},{"$f":"IF(AND(Equipment[[#Totals],[M: Remotely Operated Vehicles]]=1,Vervuiling[[#Totals],[M: Remotely Operated Vehicles]]=1,OnOffSite[[#Totals],[M: Remotely Operated Vehicles]]=1),Leveranciers!M13,\"\")","v":0},{"$f":"IF(AND(Equipment[[#Totals],[M: CO2 Blasting]]=1,Vervuiling[[#Totals],[M: CO2 Blasting]]=1,OnOffSite[[#Totals],[M: CO2 Blasting]]=1),Leveranciers!N13,\"\")","v":0},{"$f":"IF(AND(Equipment[[#Totals],[M: Flushing]]=1,Vervuiling[[#Totals],[M: Flushing]]=1,OnOffSite[[#Totals],[M: Flushing]]=1),Leveranciers!O13,\"\")","v":1},{"$f":"IF(AND(Equipment[[#Totals],[M: Brushing]]=1,Vervuiling[[#Totals],[M: Brushing]]=1,OnOffSite[[#Totals],[M: Brushing]]=1),Leveranciers!P13,\"\")","v":0},{"$f":"IF(AND(Equipment[[#Totals],[M: Air Lancing]]=1,Vervuiling[[#Totals],[M: Air Lancing]]=1,OnOffSite[[#Totals],[M: Air Lancing]]=1),Leveranciers!Q13,\"\")","v":0},{"$f":"IF(AND(Equipment[[#Totals],[M: Sodium Bi-Carbonate Blasting]]=1,Vervuiling[[#Totals],[M: Sodium Bi-Carbonate Blasting]]=1,OnOffSite[[#Totals],[M: Sodium Bi-Carbonate Blasting]]=1),Leveranciers!R13,\"\")","v":0},{"$f":"IF(AND(Equipment[[#Totals],[M: Vacuum, Blowing, Suction Techniques]]=1,Vervuiling[[#Totals],[M: Vacuum, Blowing, Suction Techniques]]=1,OnOffSite[[#Totals],[M: Vacuum, Blowing, Suction Techniques]]=1),Leveranciers!S13,\"\")","v":0},{"$f":"IF(AND(Equipment[[#Totals],[T: Liquid Nitrogen Jetting]]=1,Vervuiling[[#Totals],[T: Liquid Nitrogen Jetting]]=1,OnOffSite[[#Totals],[T: Liquid Nitrogen Jetting]]=1),Leveranciers!T13,\"\")","v":0},{"$f":"IF(AND(Equipment[[#Totals],[T: Laser Cleaning]]=1,Vervuiling[[#Totals],[T: Laser Cleaning]]=1,OnOffSite[[#Totals],[T: Laser Cleaning]]=1),Leveranciers!U13,\"\")","v":0},{"$f":"IF(AND(Equipment[[#Totals],[T: Pyrolysis]]=1,Vervuiling[[#Totals],[T: Pyrolysis]]=1,OnOffSite[[#Totals],[T: Pyrolysis]]=1),Leveranciers!V13,\"\")","v":0},{"$f":"IF(AND(Equipment[[#Totals],[C: Acidizing]]=1,Vervuiling[[#Totals],[C: Acidizing]]=1,OnOffSite[[#Totals],[C: Acidizing]]=1),Leveranciers!W13,\"\")","v":1},{"$f":"IF(AND(Equipment[[#Totals],[C: Degreasing]]=1,Vervuiling[[#Totals],[C: Degreasing]]=1,OnOffSite[[#Totals],[C: Degreasing]]=1),Leveranciers!X13,\"\")","v":1},{"$f":"IF(AND(Equipment[[#Totals],[C: Decontamination]]=1,Vervuiling[[#Totals],[C: Decontamination]]=1,OnOffSite[[#Totals],[C: Decontamination]]=1),Leveranciers!Y13,\"\")","v":1},{"$f":"IF(SUM(Leverancier[[#This Row],[M: Tube Darting & Scraping]:[C: Decontamination]])>0,\"Yes\",\"No\")","v":"Yes"},"+xxx xxx xxxxxxx12","Street12, Pcode City, Land","Person L"]
["Supplier",13,{"$f":"IF(SUM(Leverancier[[#This Row],[M: Tube Darting & Scraping]:[C: Decontamination]])>0,Leveranciers!A14,\"\")","v":"Supplier M"},{"$f":"IF(AND(Equipment[[#Totals],[M: Tube Darting & Scraping]]=1,Vervuiling[[#Totals],[M: Tube Darting & Scraping]]=1,OnOffSite[[#Totals],[M: Tube Darting & Scraping]]=1),Leveranciers!C14,\"\")","v":0},{"$f":"IF(AND(Equipment[[#Totals],[M: 3D- Nozzle (Butterworth / Tankwas kop)]]=1,Vervuiling[[#Totals],[M: 3D- Nozzle (Butterworth / Tankwas kop)]]=1,OnOffSite[[#Totals],[M: 3D- Nozzle (Butterworth / Tankwas kop)]]=1),Leveranciers!D14,\"\")","v":0},{"$f":"IF(AND(Equipment[[#Totals],[M: Rotating Hose Devices]]=1,Vervuiling[[#Totals],[M: Rotating Hose Devices]]=1,OnOffSite[[#Totals],[M: Rotating Hose Devices]]=1),Leveranciers!E14,\"\")","v":0},{"$f":"IF(AND(Equipment[[#Totals],[M: Water Jetting (UHP)]]=1,Vervuiling[[#Totals],[M: Water Jetting (UHP)]]=1,OnOffSite[[#Totals],[M: Water Jetting (UHP)]]=1),Leveranciers!F14,\"\")","v":0},{"$f":"IF(AND(Equipment[[#Totals],[M: Pigging]]=1,Vervuiling[[#Totals],[M: Pigging]]=1,OnOffSite[[#Totals],[M: Pigging]]=1),Leveranciers!G14,\"\")","v":0},{"$f":"IF(AND(Equipment[[#Totals],[M: Ultrasonic Baths (Chemical Cleaning)]]=1,Vervuiling[[#Totals],[M: Ultrasonic Baths (Chemical Cleaning)]]=1,OnOffSite[[#Totals],[M: Ultrasonic Baths (Chemical Cleaning)]]=1),Leveranciers!H14,\"\")","v":1},{"$f":"IF(AND(Equipment[[#Totals],[M: Abrasive Blasting]]=1,Vervuiling[[#Totals],[M: Abrasive Blasting]]=1,OnOffSite[[#Totals],[M: Abrasive Blasting]]=1),Leveranciers!I14,\"\")","v":0},{"$f":"IF(AND(Equipment[[#Totals],[M: Drilling]]=1,Vervuiling[[#Totals],[M: Drilling]]=1,OnOffSite[[#Totals],[M: Drilling]]=1),Leveranciers!J14,\"\")","v":0},{"$f":"IF(AND(Equipment[[#Totals],[M: Hydrokinetic Cleaning]]=1,Vervuiling[[#Totals],[M: Hydrokinetic Cleaning]]=1,OnOffSite[[#Totals],[M: Hydrokinetic Cleaning]]=1),Leveranciers!K14,\"\")","v":0},{"$f":"IF(AND(Equipment[[#Totals],[M: Manway Canons]]=1,Vervuiling[[#Totals],[M: Manway Canons]]=1,OnOffSite[[#Totals],[M: Manway Canons]]=1),Leveranciers!L14,\"\")","v":0},{"$f":"IF(AND(Equipment[[#Totals],[M: Remotely Operated Vehicles]]=1,Vervuiling[[#Totals],[M: Remotely Operated Vehicles]]=1,OnOffSite[[#Totals],[M: Remotely Operated Vehicles]]=1),Leveranciers!M14,\"\")","v":0},{"$f":"IF(AND(Equipment[[#Totals],[M: CO2 Blasting]]=1,Vervuiling[[#Totals],[M: CO2 Blasting]]=1,OnOffSite[[#Totals],[M: CO2 Blasting]]=1),Leveranciers!N14,\"\")","v":1},{"$f":"IF(AND(Equipment[[#Totals],[M: Flushing]]=1,Vervuiling[[#Totals],[M: Flushing]]=1,OnOffSite[[#Totals],[M: Flushing]]=1),Leveranciers!O14,\"\")","v":1},{"$f":"IF(AND(Equipment[[#Totals],[M: Brushing]]=1,Vervuiling[[#Totals],[M: Brushing]]=1,OnOffSite[[#Totals],[M: Brushing]]=1),Leveranciers!P14,\"\")","v":0},{"$f":"IF(AND(Equipment[[#Totals],[M: Air Lancing]]=1,Vervuiling[[#Totals],[M: Air Lancing]]=1,OnOffSite[[#Totals],[M: Air Lancing]]=1),Leveranciers!Q14,\"\")","v":0},{"$f":"IF(AND(Equipment[[#Totals],[M: Sodium Bi-Carbonate Blasting]]=1,Vervuiling[[#Totals],[M: Sodium Bi-Carbonate Blasting]]=1,OnOffSite[[#Totals],[M: Sodium Bi-Carbonate Blasting]]=1),Leveranciers!R14,\"\")","v":0},{"$f":"IF(AND(Equipment[[#Totals],[M: Vacuum, Blowing, Suction Techniques]]=1,Vervuiling[[#Totals],[M: Vacuum, Blowing, Suction Techniques]]=1,OnOffSite[[#Totals],[M: Vacuum, Blowing, Suction Techniques]]=1),Leveranciers!S14,\"\")","v":0},{"$f":"IF(AND(Equipment[[#Totals],[T: Liquid Nitrogen Jetting]]=1,Vervuiling[[#Totals],[T: Liquid Nitrogen Jetting]]=1,OnOffSite[[#Totals],[T: Liquid Nitrogen Jetting]]=1),Leveranciers!T14,\"\")","v":0},{"$f":"IF(AND(Equipment[[#Totals],[T: Laser Cleaning]]=1,Vervuiling[[#Totals],[T: Laser Cleaning]]=1,OnOffSite[[#Totals],[T: Laser Cleaning]]=1),Leveranciers!U14,\"\")","v":0},{"$f":"IF(AND(Equipment[[#Totals],[T: Pyrolysis]]=1,Vervuiling[[#Totals],[T: Pyrolysis]]=1,OnOffSite[[#Totals],[T: Pyrolysis]]=1),Leveranciers!V14,\"\")","v":0},{"$f":"IF(AND(Equipment[[#Totals],[C: Acidizing]]=1,Vervuiling[[#Totals],[C: Acidizing]]=1,OnOffSite[[#Totals],[C: Acidizing]]=1),Leveranciers!W14,\"\")","v":1},{"$f":"IF(AND(Equipment[[#Totals],[C: Degreasing]]=1,Vervuiling[[#Totals],[C: Degreasing]]=1,OnOffSite[[#Totals],[C: Degreasing]]=1),Leveranciers!X14,\"\")","v":1},{"$f":"IF(AND(Equipment[[#Totals],[C: Decontamination]]=1,Vervuiling[[#Totals],[C: Decontamination]]=1,OnOffSite[[#Totals],[C: Decontamination]]=1),Leveranciers!Y14,\"\")","v":1},{"$f":"IF(SUM(Leverancier[[#This Row],[M: Tube Darting & Scraping]:[C: Decontamination]])>0,\"Yes\",\"No\")","v":"Yes"},"+xxx xxx xxxxxxx13","Street13, Pcode City, Land","Person M"]
[null,14,"Supplier N",{"$f":"IF(AND(Equipment[[#Totals],[M: Tube Darting & Scraping]]=1,Vervuiling[[#Totals],[M: Tube Darting & Scraping]]=1,OnOffSite[[#Totals],[M: Tube Darting & Scraping]]=1),Leveranciers!C15,\"\")","v":0},{"$f":"IF(AND(Equipment[[#Totals],[M: 3D- Nozzle (Butterworth / Tankwas kop)]]=1,Vervuiling[[#Totals],[M: 3D- Nozzle (Butterworth / Tankwas kop)]]=1,OnOffSite[[#Totals],[M: 3D- Nozzle (Butterworth / Tankwas kop)]]=1),Leveranciers!D15,\"\")","v":0},{"$f":"IF(AND(Equipment[[#Totals],[M: Rotating Hose Devices]]=1,Vervuiling[[#Totals],[M: Rotating Hose Devices]]=1,OnOffSite[[#Totals],[M: Rotating Hose Devices]]=1),Leveranciers!E15,\"\")","v":0},{"$f":"IF(AND(Equipment[[#Totals],[M: Water Jetting (UHP)]]=1,Vervuiling[[#Totals],[M: Water Jetting (UHP)]]=1,OnOffSite[[#Totals],[M: Water Jetting (UHP)]]=1),Leveranciers!F15,\"\")","v":0},{"$f":"IF(AND(Equipment[[#Totals],[M: Pigging]]=1,Vervuiling[[#Totals],[M: Pigging]]=1,OnOffSite[[#Totals],[M: Pigging]]=1),Leveranciers!G15,\"\")","v":0},{"$f":"IF(AND(Equipment[[#Totals],[M: Ultrasonic Baths (Chemical Cleaning)]]=1,Vervuiling[[#Totals],[M: Ultrasonic Baths (Chemical Cleaning)]]=1,OnOffSite[[#Totals],[M: Ultrasonic Baths (Chemical Cleaning)]]=1),Leveranciers!H15,\"\")","v":0},{"$f":"IF(AND(Equipment[[#Totals],[M: Abrasive Blasting]]=1,Vervuiling[[#Totals],[M: Abrasive Blasting]]=1,OnOffSite[[#Totals],[M: Abrasive Blasting]]=1),Leveranciers!I15,\"\")","v":0},{"$f":"IF(AND(Equipment[[#Totals],[M: Drilling]]=1,Vervuiling[[#Totals],[M: Drilling]]=1,OnOffSite[[#Totals],[M: Drilling]]=1),Leveranciers!J15,\"\")","v":0},{"$f":"IF(AND(Equipment[[#Totals],[M: Hydrokinetic Cleaning]]=1,Vervuiling[[#Totals],[M: Hydrokinetic Cleaning]]=1,OnOffSite[[#Totals],[M: Hydrokinetic Cleaning]]=1),Leveranciers!K15,\"\")","v":0},{"$f":"IF(AND(Equipment[[#Totals],[M: Manway Canons]]=1,Vervuiling[[#Totals],[M: Manway Canons]]=1,OnOffSite[[#Totals],[M: Manway Canons]]=1),Leveranciers!L15,\"\")","v":0},{"$f":"IF(AND(Equipment[[#Totals],[M: Remotely Operated Vehicles]]=1,Vervuiling[[#Totals],[M: Remotely Operated Vehicles]]=1,OnOffSite[[#Totals],[M: Remotely Operated Vehicles]]=1),Leveranciers!M15,\"\")","v":0},{"$f":"IF(AND(Equipment[[#Totals],[M: CO2 Blasting]]=1,Vervuiling[[#Totals],[M: CO2 Blasting]]=1,OnOffSite[[#Totals],[M: CO2 Blasting]]=1),Leveranciers!N15,\"\")","v":0},{"$f":"IF(AND(Equipment[[#Totals],[M: Flushing]]=1,Vervuiling[[#Totals],[M: Flushing]]=1,OnOffSite[[#Totals],[M: Flushing]]=1),Leveranciers!O15,\"\")","v":0},{"$f":"IF(AND(Equipment[[#Totals],[M: Brushing]]=1,Vervuiling[[#Totals],[M: Brushing]]=1,OnOffSite[[#Totals],[M: Brushing]]=1),Leveranciers!P15,\"\")","v":0},1,{"$f":"IF(AND(Equipment[[#Totals],[M: Sodium Bi-Carbonate Blasting]]=1,Vervuiling[[#Totals],[M: Sodium Bi-Carbonate Blasting]]=1,OnOffSite[[#Totals],[M: Sodium Bi-Carbonate Blasting]]=1),Leveranciers!R15,\"\")","v":0},{"$f":"IF(AND(Equipment[[#Totals],[M: Vacuum, Blowing, Suction Techniques]]=1,Vervuiling[[#Totals],[M: Vacuum, Blowing, Suction Techniques]]=1,OnOffSite[[#Totals],[M: Vacuum, Blowing, Suction Techniques]]=1),Leveranciers!S15,\"\")","v":0},{"$f":"IF(AND(Equipment[[#Totals],[T: Liquid Nitrogen Jetting]]=1,Vervuiling[[#Totals],[T: Liquid Nitrogen Jetting]]=1,OnOffSite[[#Totals],[T: Liquid Nitrogen Jetting]]=1),Leveranciers!T15,\"\")","v":0},{"$f":"IF(AND(Equipment[[#Totals],[T: Laser Cleaning]]=1,Vervuiling[[#Totals],[T: Laser Cleaning]]=1,OnOffSite[[#Totals],[T: Laser Cleaning]]=1),Leveranciers!U15,\"\")","v":0},{"$f":"IF(AND(Equipment[[#Totals],[T: Pyrolysis]]=1,Vervuiling[[#Totals],[T: Pyrolysis]]=1,OnOffSite[[#Totals],[T: Pyrolysis]]=1),Leveranciers!V15,\"\")","v":0},{"$f":"IF(AND(Equipment[[#Totals],[C: Acidizing]]=1,Vervuiling[[#Totals],[C: Acidizing]]=1,OnOffSite[[#Totals],[C: Acidizing]]=1),Leveranciers!W15,\"\")","v":0},{"$f":"IF(AND(Equipment[[#Totals],[C: Degreasing]]=1,Vervuiling[[#Totals],[C: Degreasing]]=1,OnOffSite[[#Totals],[C: Degreasing]]=1),Leveranciers!X15,\"\")","v":0},{"$f":"IF(AND(Equipment[[#Totals],[C: Decontamination]]=1,Vervuiling[[#Totals],[C: Decontamination]]=1,OnOffSite[[#Totals],[C: Decontamination]]=1),Leveranciers!Y15,\"\")","v":0},{"$f":"IF(SUM(Leverancier[[#This Row],[M: Tube Darting & Scraping]:[C: Decontamination]])>0,\"Yes\",\"No\")","v":"Yes"},"+xxx xxx xxxxxxx14","Street14, Pcode City, Land","Person N"]
[null,null,null,{"$f":"IF(AND(SUBTOTAL(109,Leverancier[M: Tube Darting & Scraping])>0.5,Equipment[[#Totals],[M: Tube Darting & Scraping]]=1,Vervuiling[[#Totals],[M: Tube Darting & Scraping]]=1,OnOffSite[[#Totals],[M: Tube Darting & Scraping]]=1),1,\"\")","v":1},{"$f":"IF(AND(SUBTOTAL(109,Leverancier[M: 3D- Nozzle (Butterworth / Tankwas kop)])>0.5,Equipment[[#Totals],[M: 3D- Nozzle (Butterworth / Tankwas kop)]]=1,Vervuiling[[#Totals],[M: 3D- Nozzle (Butterworth / Tankwas kop)]]=1,OnOffSite[[#Totals],[M: 3D- Nozzle (Butterworth / Tankwas kop)]]=1),1,\"\")","v":1},{"$f":"IF(AND(SUBTOTAL(109,Leverancier[M: Rotating Hose Devices])>0.5,Equipment[[#Totals],[M: Rotating Hose Devices]]=1,Vervuiling[[#Totals],[M: Rotating Hose Devices]]=1,OnOffSite[[#Totals],[M: Rotating Hose Devices]]=1),1,\"\")","v":1},{"$f":"IF(AND(SUBTOTAL(109,Leverancier[M: Water Jetting (UHP)])>0.5,Equipment[[#Totals],[M: Water Jetting (UHP)]]=1,Vervuiling[[#Totals],[M: Water Jetting (UHP)]]=1,OnOffSite[[#Totals],[M: Water Jetting (UHP)]]=1),1,\"\")","v":1},{"$f":"IF(AND(SUBTOTAL(109,Leverancier[M: Pigging])>0.5,Equipment[[#Totals],[M: Pigging]]=1,Vervuiling[[#Totals],[M: Pigging]]=1,OnOffSite[[#Totals],[M: Pigging]]=1),1,\"\")","v":1},{"$f":"IF(AND(SUBTOTAL(109,Leverancier[M: Ultrasonic Baths (Chemical Cleaning)])>0.5,Equipment[[#Totals],[M: Ultrasonic Baths (Chemical Cleaning)]]=1,Vervuiling[[#Totals],[M: Ultrasonic Baths (Chemical Cleaning)]]=1,OnOffSite[[#Totals],[M: Ultrasonic Baths (Chemical Cleaning)]]=1),1,\"\")","v":1},{"$f":"IF(AND(SUBTOTAL(109,Leverancier[M: Abrasive Blasting])>0.5,Equipment[[#Totals],[M: Abrasive Blasting]]=1,Vervuiling[[#Totals],[M: Abrasive Blasting]]=1,OnOffSite[[#Totals],[M: Abrasive Blasting]]=1),1,\"\")","v":1},{"$f":"IF(AND(SUBTOTAL(109,Leverancier[M: Drilling])>0.5,Equipment[[#Totals],[M: Drilling]]=1,Vervuiling[[#Totals],[M: Drilling]]=1,OnOffSite[[#Totals],[M: Drilling]]=1),1,\"\")","v":1},{"$f":"IF(AND(SUBTOTAL(109,Leverancier[M: Hydrokinetic Cleaning])>0.5,Equipment[[#Totals],[M: Hydrokinetic Cleaning]]=1,Vervuiling[[#Totals],[M: Hydrokinetic Cleaning]]=1,OnOffSite[[#Totals],[M: Hydrokinetic Cleaning]]=1),1,\"\")","v":1},{"$f":"IF(AND(SUBTOTAL(109,Leverancier[M: Manway Canons])>0.5,Equipment[[#Totals],[M: Manway Canons]]=1,Vervuiling[[#Totals],[M: Manway Canons]]=1,OnOffSite[[#Totals],[M: Manway Canons]]=1),1,\"\")","v":1},{"$f":"IF(AND(SUBTOTAL(109,Leverancier[M: Remotely Operated Vehicles])>0.5,Equipment[[#Totals],[M: Remotely Operated Vehicles]]=1,Vervuiling[[#Totals],[M: Remotely Operated Vehicles]]=1,OnOffSite[[#Totals],[M: Remotely Operated Vehicles]]=1),1,\"\")","v":1},{"$f":"IF(AND(SUBTOTAL(109,Leverancier[M: CO2 Blasting])>0.5,Equipment[[#Totals],[M: CO2 Blasting]]=1,Vervuiling[[#Totals],[M: CO2 Blasting]]=1,OnOffSite[[#Totals],[M: CO2 Blasting]]=1),1,\"\")","v":1},{"$f":"IF(AND(SUBTOTAL(109,Leverancier[M: Flushing])>0.5,Equipment[[#Totals],[M: Flushing]]=1,Vervuiling[[#Totals],[M: Flushing]]=1,OnOffSite[[#Totals],[M: Flushing]]=1),1,\"\")","v":1},{"$f":"IF(AND(SUBTOTAL(109,Leverancier[M: Brushing])>0.5,Equipment[[#Totals],[M: Brushing]]=1,Vervuiling[[#Totals],[M: Brushing]]=1,OnOffSite[[#Totals],[M: Brushing]]=1),1,\"\")","v":1},{"$f":"IF(AND(SUBTOTAL(109,Leverancier[M: Air Lancing])>0.5,Equipment[[#Totals],[M: Air Lancing]]=1,Vervuiling[[#Totals],[M: Air Lancing]]=1,OnOffSite[[#Totals],[M: Air Lancing]]=1),1,\"\")","v":1},{"$f":"IF(AND(SUBTOTAL(109,Leverancier[M: Sodium Bi-Carbonate Blasting])>0.5,Equipment[[#Totals],[M: Sodium Bi-Carbonate Blasting]]=1,Vervuiling[[#Totals],[M: Sodium Bi-Carbonate Blasting]]=1,OnOffSite[[#Totals],[M: Sodium Bi-Carbonate Blasting]]=1),1,\"\")","v":1},{"$f":"IF(AND(SUBTOTAL(109,Leverancier[M: Vacuum, Blowing, Suction Techniques])>0.5,Equipment[[#Totals],[M: Vacuum, Blowing, Suction Techniques]]=1,Vervuiling[[#Totals],[M: Vacuum, Blowing, Suction Techniques]]=1,OnOffSite[[#Totals],[M: Vacuum, Blowing, Suction Techniques]]=1),1,\"\")","v":1},{"$f":"IF(AND(SUBTOTAL(109,Leverancier[T: Liquid Nitrogen Jetting])>0.5,Equipment[[#Totals],[T: Liquid Nitrogen Jetting]]=1,Vervuiling[[#Totals],[T: Liquid Nitrogen Jetting]]=1,OnOffSite[[#Totals],[T: Liquid Nitrogen Jetting]]=1),1,\"\")","v":1},{"$f":"IF(AND(SUBTOTAL(109,Leverancier[T: Laser Cleaning])>0.5,Equipment[[#Totals],[T: Laser Cleaning]]=1,Vervuiling[[#Totals],[T: Laser Cleaning]]=1,OnOffSite[[#Totals],[T: Laser Cleaning]]=1),1,\"\")","v":1},{"$f":"IF(AND(SUBTOTAL(109,Leverancier[T: Pyrolysis])>0.5,Equipment[[#Totals],[T: Pyrolysis]]=1,Vervuiling[[#Totals],[T: Pyrolysis]]=1,OnOffSite[[#Totals],[T: Pyrolysis]]=1),1,\"\")","v":1},{"$f":"IF(AND(SUBTOTAL(109,Leverancier[C: Acidizing])>0.5,Equipment[[#Totals],[C: Acidizing]]=1,Vervuiling[[#Totals],[C: Acidizing]]=1,OnOffSite[[#Totals],[C: Acidizing]]=1),1,\"\")","v":1},{"$f":"IF(AND(SUBTOTAL(109,Leverancier[C: Degreasing])>0.5,Equipment[[#Totals],[C: Degreasing]]=1,Vervuiling[[#Totals],[C: Degreasing]]=1,OnOffSite[[#Totals],[C: Degreasing]]=1),1,\"\")","v":1},{"$f":"IF(AND(SUBTOTAL(109,Leverancier[C: Decontamination])>0.5,Equipment[[#Totals],[C: Decontamination]]=1,Vervuiling[[#Totals],[C: Decontamination]]=1,OnOffSite[[#Totals],[C: Decontamination]]=1),1,\"\")","v":1}]

{"sheet":"Impact","index":7,"n_rows":41,"n_cols":31,"rows_kept":41,"cut":false,"hidden":false,"merged":[]}
["Level 1","Impact Factor","Factor","Weging","M: Tube Darting & Scraping","M: 3D- Nozzle (Butterworth / Tankwas kop)","M: Rotating Hose Devices","M: Water Jetting (UHP)","M: Pigging","M: Ultrasonic Baths (Chemical Cleaning)","M: Abrasive Blasting","M: Drilling","M: Hydrokinetic Cleaning","M: Manway Canons","M: Remotely Operated Vehicles","M: CO2 Blasting","M: Flushing","M: Brushing","M: Air Lancing","M: Sodium Bi-Carbonate Blasting","M: Vacuum, Blowing, Suction Techniques","T: Liquid Nitrogen Jetting","T: Laser Cleaning","T: Pyrolysis","C: Acidizing","C: Degreasing","C: Decontamination"]
["Impact","Impact Factor","EH&S Risk",{"$f":"Model!H9","v":9},{"$f":"IF(AND(Equipment[[#Totals],[M: Tube Darting & Scraping]]=1,Vervuiling[[#Totals],[M: Tube Darting & Scraping]]=1,OnOffSite[[#Totals],[M: Tube Darting & Scraping]]=1,Leverancier[[#Totals],[M: Tube Darting & Scraping]]=1),'Impact per Methode'!B2,\"\")","v":-0.2},{"$f":"IF(AND(Equipment[[#Totals],[M: 3D- Nozzle (Butterworth / Tankwas kop)]]=1,Vervuiling[[#Totals],[M: 3D- Nozzle (Butterworth / Tankwas kop)]]=1,OnOffSite[[#Totals],[M: 3D- Nozzle (Butterworth / Tankwas kop)]]=1,Leverancier[[#Totals],[M: 3D- Nozzle (Butterworth / Tankwas kop)]]=1),'Impact per Methode'!C2,\"\")","v":-1},{"$f":"IF(AND(Equipment[[#Totals],[M: Rotating Hose Devices]]=1,Vervuiling[[#Totals],[M: Rotating Hose Devices]]=1,OnOffSite[[#Totals],[M: Rotating Hose Devices]]=1,Leverancier[[#Totals],[M: Rotating Hose Devices]]=1),'Impact per Methode'!D2,\"\")","v":-1},{"$f":"IF(AND(Equipment[[#Totals],[M: Water Jetting (UHP)]]=1,Vervuiling[[#Totals],[M: Water Jetting (UHP)]]=1,OnOffSite[[#Totals],[M: Water Jetting (UHP)]]=1,Leverancier[[#Totals],[M: Water Jetting (UHP)]]=1),'Impact per Methode'!E2,\"\")","v":-1},{"$f":"IF(AND(Equipment[[#Totals],[M: Pigging]]=1,Vervuiling[[#Totals],[M: Pigging]]=1,OnOffSite[[#Totals],[M: Pigging]]=1,Leverancier[[#Totals],[M: Pigging]]=1),'Impact per Methode'!F2,\"\")","v":-0.8},{"$f":"IF(AND(Equipment[[#Totals],[M: Ultrasonic Baths (Chemical Cleaning)]]=1,Vervuiling[[#Totals],[M: Ultrasonic Baths (Chemical Cleaning)]]=1,OnOffSite[[#Totals],[M: Ultrasonic Baths (Chemical Cleaning)]]=1,Leverancier[[#Totals],[M: Ultrasonic Baths (Chemical Cleaning)]]=1),'Impact per Methode'!G2,\"\")","v":-0.5},{"$f":"IF(AND(Equipment[[#Totals],[M: Abrasive Blasting]]=1,Vervuiling[[#Totals],[M: Abrasive Blasting]]=1,OnOffSite[[#Totals],[M: Abrasive Blasting]]=1,Leverancier[[#Totals],[M: Abrasive Blasting]]=1),'Impact per Methode'!H2,\"\")","v":-1.2},{"$f":"IF(AND(Equipment[[#Totals],[M: Drilling]]=1,Vervuiling[[#Totals],[M: Drilling]]=1,OnOffSite[[#Totals],[M: Drilling]]=1,Leverancier[[#Totals],[M: Drilling]]=1),'Impact per Methode'!I2,\"\")","v":-1.2},{"$f":"IF(AND(Equipment[[#Totals],[M: Hydrokinetic Cleaning]]=1,Vervuiling[[#Totals],[M: Hydrokinetic Cleaning]]=1,OnOffSite[[#Totals],[M: Hydrokinetic Cleaning]]=1,Leverancier[[#Totals],[M: Hydrokinetic Cleaning]]=1),'Impact per Methode'!J2,\"\")","v":-1.2},{"$f":"IF(AND(Equipment[[#Totals],[M: Manway Canons]]=1,Vervuiling[[#Totals],[M: Manway Canons]]=1,OnOffSite[[#Totals],[M: Manway Canons]]=1,Leverancier[[#Totals],[M: Manway Canons]]=1),'Impact per Methode'!K2,\"\")","v":-1},{"$f":"IF(AND(Equipment[[#Totals],[M: Remotely Operated Vehicles]]=1,Vervuiling[[#Totals],[M: Remotely Operated Vehicles]]=1,OnOffSite[[#Totals],[M: Remotely Operated Vehicles]]=1,Leverancier[[#Totals],[M: Remotely Operated Vehicles]]=1),'Impact per Methode'!L2,\"\")","v":-0.5},{"$f":"IF(AND(Equipment[[#Totals],[M: CO2 Blasting]]=1,Vervuiling[[#Totals],[M: CO2 Blasting]]=1,OnOffSite[[#Totals],[M: CO2 Blasting]]=1,Leverancier[[#Totals],[M: CO2 Blasting]]=1),'Impact per Methode'!M2,\"\")","v":-0.8},{"$f":"IF(AND(Equipment[[#Totals],[M: Flushing]]=1,Vervuiling[[#Totals],[M: Flushing]]=1,OnOffSite[[#Totals],[M: Flushing]]=1,Leverancier[[#Totals],[M: Flushing]]=1),'Impact per Methode'!N2,\"\")","v":-1},{"$f":"IF(AND(Equipment[[#Totals],[M: Brushing]]=1,Vervuiling[[#Totals],[M: Brushing]]=1,OnOffSite[[#Totals],[M: Brushing]]=1,Leverancier[[#Totals],[M: Brushing]]=1),'Impact per Methode'!O2,\"\")","v":-0.8},{"$f":"IF(AND(Equipment[[#Totals],[M: Air Lancing]]=1,Vervuiling[[#Totals],[M: Air Lancing]]=1,OnOffSite[[#Totals],[M: Air Lancing]]=1,Leverancier[[#Totals],[M: Air Lancing]]=1),'Impact per Methode'!P2,\"\")","v":-3},{"$f":"IF(AND(Equipment[[#Totals],[M: Sodium Bi-Carbonate Blasting]]=1,Vervuiling[[#Totals],[M: Sodium Bi-Carbonate Blasting]]=1,OnOffSite[[#Totals],[M: Sodium Bi-Carbonate Blasting]]=1,Leverancier[[#Totals],[M: Sodium Bi-Carbonate Blasting]]=1),'Impact per Methode'!Q2,\"\")","v":-0.8},{"$f":"IF(AND(Equipment[[#Totals],[M: Vacuum, Blowing, Suction Techniques]]=1,Vervuiling[[#Totals],[M: Vacuum, Blowing, Suction Techniques]]=1,OnOffSite[[#Totals],[M: Vacuum, Blowing, Suction Techniques]]=1,Leverancier[[#Totals],[M: Vacuum, Blowing, Suction Techniques]]=1),'Impact per Methode'!R2,\"\")","v":-1.1000000000000001},{"$f":"IF(AND(Equipment[[#Totals],[T: Liquid Nitrogen Jetting]]=1,Vervuiling[[#Totals],[T: Liquid Nitrogen Jetting]]=1,OnOffSite[[#Totals],[T: Liquid Nitrogen Jetting]]=1,Leverancier[[#Totals],[T: Liquid Nitrogen Jetting]]=1),'Impact per Methode'!S2,\"\")","v":-1.2},{"$f":"IF(AND(Equipment[[#Totals],[T: Laser Cleaning]]=1,Vervuiling[[#Totals],[T: Laser Cleaning]]=1,OnOffSite[[#Totals],[T: Laser Cleaning]]=1,Leverancier[[#Totals],[T: Laser Cleaning]]=1),'Impact per Methode'!T2,\"\")","v":-0.2},{"$f":"IF(AND(Equipment[[#Totals],[T: Pyrolysis]]=1,Vervuiling[[#Totals],[T: Pyrolysis]]=1,OnOffSite[[#Totals],[T: Pyrolysis]]=1,Leverancier[[#Totals],[T: Pyrolysis]]=1),'Impact per Methode'!U2,\"\")","v":-0.1},{"$f":"IF(AND(Equipment[[#Totals],[C: Acidizing]]=1,Vervuiling[[#Totals],[C: Acidizing]]=1,OnOffSite[[#Totals],[C: Acidizing]]=1,Leverancier[[#Totals],[C: Acidizing]]=1),'Impact per Methode'!V2,\"\")","v":-1},{"$f":"IF(AND(Equipment[[#Totals],[C: Degreasing]]=1,Vervuiling[[#Totals],[C: Degreasing]]=1,OnOffSite[[#Totals],[C: Degreasing]]=1,Leverancier[[#Totals],[C: Degreasing]]=1),'Impact per Methode'!W2,\"\")","v":-1},{"$f":"IF(AND(Equipment[[#Totals],[C: Decontamination]]=1,Vervuiling[[#Totals],[C: Decontamination]]=1,OnOffSite[[#Totals],[C: Decontamination]]=1,Leverancier[[#Totals],[C: Decontamination]]=1),'Impact per Methode'!X2,\"\")","v":-0.8}]
["Impact","Impact Factor","Waste",{"$f":"Model!H5","v":3},{"$f":"IF(AND(Equipment[[#Totals],[M: Tube Darting & Scraping]]=1,Vervuiling[[#Totals],[M: Tube Darting & Scraping]]=1,OnOffSite[[#Totals],[M: Tube Darting & Scraping]]=1,Leverancier[[#Totals],[M: Tube Darting & Scraping]]=1),'Impact per Methode'!B3,\"\")","v":-0.3},{"$f":"IF(AND(Equipment[[#Totals],[M: 3D- Nozzle (Butterworth / Tankwas kop)]]=1,Vervuiling[[#Totals],[M: 3D- Nozzle (Butterworth / Tankwas kop)]]=1,OnOffSite[[#Totals],[M: 3D- Nozzle (Butterworth / Tankwas kop)]]=1,Leverancier[[#Totals],[M: 3D- Nozzle (Butterworth / Tankwas kop)]]=1),'Impact per Methode'!C3,\"\")","v":-1},{"$f":"IF(AND(Equipment[[#Totals],[M: Rotating Hose Devices]]=1,Vervuiling[[#Totals],[M: Rotating Hose Devices]]=1,OnOffSite[[#Totals],[M: Rotating Hose Devices]]=1,Leverancier[[#Totals],[M: Rotating Hose Devices]]=1),'Impact per Methode'!D3,\"\")","v":-1},{"$f":"IF(AND(Equipment[[#Totals],[M: Water Jetting (UHP)]]=1,Vervuiling[[#Totals],[M: Water Jetting (UHP)]]=1,OnOffSite[[#Totals],[M: Water Jetting (UHP)]]=1,Leverancier[[#Totals],[M: Water Jetting (UHP)]]=1),'Impact per Methode'!E3,\"\")","v":-1},{"$f":"IF(AND(Equipment[[#Totals],[M: Pigging]]=1,Vervuiling[[#Totals],[M: Pigging]]=1,OnOffSite[[#Totals],[M: Pigging]]=1,Leverancier[[#Totals],[M: Pigging]]=1),'Impact per Methode'!F3,\"\")","v":-0.3},{"$f":"IF(AND(Equipment[[#Totals],[M: Ultrasonic Baths (Chemical Cleaning)]]=1,Vervuiling[[#Totals],[M: Ultrasonic Baths (Chemical Cleaning)]]=1,OnOffSite[[#Totals],[M: Ultrasonic Baths (Chemical Cleaning)]]=1,Leverancier[[#Totals],[M: Ultrasonic Baths (Chemical Cleaning)]]=1),'Impact per Methode'!G3,\"\")","v":-2},{"$f":"IF(AND(Equipment[[#Totals],[M: Abrasive Blasting]]=1,Vervuiling[[#Totals],[M: Abrasive Blasting]]=1,OnOffSite[[#Totals],[M: Abrasive Blasting]]=1,Leverancier[[#Totals],[M: Abrasive Blasting]]=1),'Impact per Methode'!H3,\"\")","v":-1},{"$f":"IF(AND(Equipment[[#Totals],[M: Drilling]]=1,Vervuiling[[#Totals],[M: Drilling]]=1,OnOffSite[[#Totals],[M: Drilling]]=1,Leverancier[[#Totals],[M: Drilling]]=1),'Impact per Methode'!I3,\"\")","v":-0.3},{"$f":"IF(AND(Equipment[[#Totals],[M: Hydrokinetic Cleaning]]=1,Vervuiling[[#Totals],[M: Hydrokinetic Cleaning]]=1,OnOffSite[[#Totals],[M: Hydrokinetic Cleaning]]=1,Leverancier[[#Totals],[M: Hydrokinetic Cleaning]]=1),'Impact per Methode'!J3,\"\")","v":-0.3},{"$f":"IF(AND(Equipment[[#Totals],[M: Manway Canons]]=1,Vervuiling[[#Totals],[M: Manway Canons]]=1,OnOffSite[[#Totals],[M: Manway Canons]]=1,Leverancier[[#Totals],[M: Manway Canons]]=1),'Impact per Methode'!K3,\"\")","v":-1},{"$f":"IF(AND(Equipment[[#Totals],[M: Remotely Operated Vehicles]]=1,Vervuiling[[#Totals],[M: Remotely Operated Vehicles]]=1,OnOffSite[[#Totals],[M: Remotely Operated Vehicles]]=1,Leverancier[[#Totals],[M: Remotely Operated Vehicles]]=1),'Impact per Methode'!L3,\"\")","v":-1},{"$f":"IF(AND(Equipment[[#Totals],[M: CO2 Blasting]]=1,Vervuiling[[#Totals],[M: CO2 Blasting]]=1,OnOffSite[[#Totals],[M: CO2 Blasting]]=1,Leverancier[[#Totals],[M: CO2 Blasting]]=1),'Impact per Methode'!M3,\"\")","v":-0.6},{"$f":"IF(AND(Equipment[[#Totals],[M: Flushing]]=1,Vervuiling[[#Totals],[M: Flushing]]=1,OnOffSite[[#Totals],[M: Flushing]]=1,Leverancier[[#Totals],[M: Flushing]]=1),'Impact per Methode'!N3,\"\")","v":-1},{"$f":"IF(AND(Equipment[[#Totals],[M: Brushing]]=1,Vervuiling[[#Totals],[M: Brushing]]=1,OnOffSite[[#Totals],[M: Brushing]]=1,Leverancier[[#Totals],[M: Brushing]]=1),'Impact per Methode'!O3,\"\")","v":-0.3},{"$f":"IF(AND(Equipment[[#Totals],[M: Air Lancing]]=1,Vervuiling[[#Totals],[M: Air Lancing]]=1,OnOffSite[[#Totals],[M: Air Lancing]]=1,Leverancier[[#Totals],[M: Air Lancing]]=1),'Impact per Methode'!P3,\"\")","v":-3},{"$f":"IF(AND(Equipment[[#Totals],[M: Sodium Bi-Carbonate Blasting]]=1,Vervuiling[[#Totals],[M: Sodium Bi-Carbonate Blasting]]=1,OnOffSite[[#Totals],[M: Sodium Bi-Carbonate Blasting]]=1,Leverancier[[#Totals],[M: Sodium Bi-Carbonate Blasting]]=1),'Impact per Methode'!Q3,\"\")","v":-1},{"$f":"IF(AND(Equipment[[#Totals],[M: Vacuum, Blowing, Suction Techniques]]=1,Vervuiling[[#Totals],[M: Vacuum, Blowing, Suction Techniques]]=1,OnOffSite[[#Totals],[M: Vacuum, Blowing, Suction Techniques]]=1,Leverancier[[#Totals],[M: Vacuum, Blowing, Suction Techniques]]=1),'Impact per Methode'!R3,\"\")","v":0},{"$f":"IF(AND(Equipment[[#Totals],[T: Liquid Nitrogen Jetting]]=1,Vervuiling[[#Totals],[T: Liquid Nitrogen Jetting]]=1,OnOffSite[[#Totals],[T: Liquid Nitrogen Jetting]]=1,Leverancier[[#Totals],[T: Liquid Nitrogen Jetting]]=1),'Impact per Methode'!S3,\"\")","v":-0.6},{"$f":"IF(AND(Equipment[[#Totals],[T: Laser Cleaning]]=1,Vervuiling[[#Totals],[T: Laser Cleaning]]=1,OnOffSite[[#Totals],[T: Laser Cleaning]]=1,Leverancier[[#Totals],[T: Laser Cleaning]]=1),'Impact per Methode'!T3,\"\")","v":-0.1},{"$f":"IF(AND(Equipment[[#Totals],[T: Pyrolysis]]=1,Vervuiling[[#Totals],[T: Pyrolysis]]=1,OnOffSite[[#Totals],[T: Pyrolysis]]=1,Leverancier[[#Totals],[T: Pyrolysis]]=1),'Impact per Methode'!U3,\"\")","v":-0.1},{"$f":"IF(AND(Equipment[[#Totals],[C: Acidizing]]=1,Vervuiling[[#Totals],[C: Acidizing]]=1,OnOffSite[[#Totals],[C: Acidizing]]=1,Leverancier[[#Totals],[C: Acidizing]]=1),'Impact per Methode'!V3,\"\")","v":-0.8},{"$f":"IF(AND(Equipment[[#Totals],[C: Degreasing]]=1,Vervuiling[[#Totals],[C: Degreasing]]=1,OnOffSite[[#Totals],[C: Degreasing]]=1,Leverancier[[#Totals],[C: Degreasing]]=1),'Impact per Methode'!W3,\"\")","v":-0.8},{"$f":"IF(AND(Equipment[[#Totals],[C: Decontamination]]=1,Vervuiling[[#Totals],[C: Decontamination]]=1,OnOffSite[[#Totals],[C: Decontamination]]=1,Leverancier[[#Totals],[C: Decontamination]]=1),'Impact per Methode'!X3,\"\")","v":-0.8}]
["Impact","Impact Factor","Water re-use",{"$f":"D3","v":3},{"$f":"IF(AND(Equipment[[#Totals],[M: Tube Darting & Scraping]]=1,Vervuiling[[#Totals],[M: Tube Darting & Scraping]]=1,OnOffSite[[#Totals],[M: Tube Darting & Scraping]]=1,Leverancier[[#Totals],[M: Tube Darting & Scraping]]=1),'Impact per Methode'!B4,\"\")","v":-0.3},{"$f":"IF(AND(Equipment[[#Totals],[M: 3D- Nozzle (Butterworth / Tankwas kop)]]=1,Vervuiling[[#Totals],[M: 3D- Nozzle (Butterworth / Tankwas kop)]]=1,OnOffSite[[#Totals],[M: 3D- Nozzle (Butterworth / Tankwas kop)]]=1,Leverancier[[#Totals],[M: 3D- Nozzle (Butterworth / Tankwas kop)]]=1),'Impact per Methode'!C4,\"\")","v":-1},{"$f":"IF(AND(Equipment[[#Totals],[M: Rotating Hose Devices]]=1,Vervuiling[[#Totals],[M: Rotating Hose Devices]]=1,OnOffSite[[#Totals],[M: Rotating Hose Devices]]=1,Leverancier[[#Totals],[M: Rotating Hose Devices]]=1),'Impact per Methode'!D4,\"\")","v":-1},{"$f":"IF(AND(Equipment[[#Totals],[M: Water Jetting (UHP)]]=1,Vervuiling[[#Totals],[M: Water Jetting (UHP)]]=1,OnOffSite[[#Totals],[M: Water Jetting (UHP)]]=1,Leverancier[[#Totals],[M: Water Jetting (UHP)]]=1),'Impact per Methode'!E4,\"\")","v":-1},{"$f":"IF(AND(Equipment[[#Totals],[M: Pigging]]=1,Vervuiling[[#Totals],[M: Pigging]]=1,OnOffSite[[#Totals],[M: Pigging]]=1,Leverancier[[#Totals],[M: Pigging]]=1),'Impact per Methode'!F4,\"\")","v":-0.3},{"$f":"IF(AND(Equipment[[#Totals],[M: Ultrasonic Baths (Chemical Cleaning)]]=1,Vervuiling[[#Totals],[M: Ultrasonic Baths (Chemical Cleaning)]]=1,OnOffSite[[#Totals],[M: Ultrasonic Baths (Chemical Cleaning)]]=1,Leverancier[[#Totals],[M: Ultrasonic Baths (Chemical Cleaning)]]=1),'Impact per Methode'!G4,\"\")","v":-2},{"$f":"IF(AND(Equipment[[#Totals],[M: Abrasive Blasting]]=1,Vervuiling[[#Totals],[M: Abrasive Blasting]]=1,OnOffSite[[#Totals],[M: Abrasive Blasting]]=1,Leverancier[[#Totals],[M: Abrasive Blasting]]=1),'Impact per Methode'!H4,\"\")","v":-0.3},{"$f":"IF(AND(Equipment[[#Totals],[M: Drilling]]=1,Vervuiling[[#Totals],[M: Drilling]]=1,OnOffSite[[#Totals],[M: Drilling]]=1,Leverancier[[#Totals],[M: Drilling]]=1),'Impact per Methode'!I4,\"\")","v":-0.3},{"$f":"IF(AND(Equipment[[#Totals],[M: Hydrokinetic Cleaning]]=1,Vervuiling[[#Totals],[M: Hydrokinetic Cleaning]]=1,OnOffSite[[#Totals],[M: Hydrokinetic Cleaning]]=1,Leverancier[[#Totals],[M: Hydrokinetic Cleaning]]=1),'Impact per Methode'!J4,\"\")","v":-0.3},{"$f":"IF(AND(Equipment[[#Totals],[M: Manway Canons]]=1,Vervuiling[[#Totals],[M: Manway Canons]]=1,OnOffSite[[#Totals],[M: Manway Canons]]=1,Leverancier[[#Totals],[M: Manway Canons]]=1),'Impact per Methode'!K4,\"\")","v":-1},{"$f":"IF(AND(Equipment[[#Totals],[M: Remotely Operated Vehicles]]=1,Vervuiling[[#Totals],[M: Remotely Operated Vehicles]]=1,OnOffSite[[#Totals],[M: Remotely Operated Vehicles]]=1,Leverancier[[#Totals],[M: Remotely Operated Vehicles]]=1),'Impact per Methode'!L4,\"\")","v":-1},{"$f":"IF(AND(Equipment[[#Totals],[M: CO2 Blasting]]=1,Vervuiling[[#Totals],[M: CO2 Blasting]]=1,OnOffSite[[#Totals],[M: CO2 Blasting]]=1,Leverancier[[#Totals],[M: CO2 Blasting]]=1),'Impact per Methode'!M4,\"\")","v":0},{"$f":"IF(AND(Equipment[[#Totals],[M: Flushing]]=1,Vervuiling[[#Totals],[M: Flushing]]=1,OnOffSite[[#Totals],[M: Flushing]]=1,Leverancier[[#Totals],[M: Flushing]]=1),'Impact per Methode'!N4,\"\")","v":-1},{"$f":"IF(AND(Equipment[[#Totals],[M: Brushing]]=1,Vervuiling[[#Totals],[M: Brushing]]=1,OnOffSite[[#Totals],[M: Brushing]]=1,Leverancier[[#Totals],[M: Brushing]]=1),'Impact per Methode'!O4,\"\")","v":-0.1},{"$f":"IF(AND(Equipment[[#Totals],[M: Air Lancing]]=1,Vervuiling[[#Totals],[M: Air Lancing]]=1,OnOffSite[[#Totals],[M: Air Lancing]]=1,Leverancier[[#Totals],[M: Air Lancing]]=1),'Impact per Methode'!P4,\"\")","v":-3},{"$f":"IF(AND(Equipment[[#Totals],[M: Sodium Bi-Carbonate Blasting]]=1,Vervuiling[[#Totals],[M: Sodium Bi-Carbonate Blasting]]=1,OnOffSite[[#Totals],[M: Sodium Bi-Carbonate Blasting]]=1,Leverancier[[#Totals],[M: Sodium Bi-Carbonate Blasting]]=1),'Impact per Methode'!Q4,\"\")","v":-0.2},{"$f":"IF(AND(Equipment[[#Totals],[M: Vacuum, Blowing, Suction Techniques]]=1,Vervuiling[[#Totals],[M: Vacuum, Blowing, Suction Techniques]]=1,OnOffSite[[#Totals],[M: Vacuum, Blowing, Suction Techniques]]=1,Leverancier[[#Totals],[M: Vacuum, Blowing, Suction Techniques]]=1),'Impact per Methode'!R4,\"\")","v":0},{"$f":"IF(AND(Equipment[[#Totals],[T: Liquid Nitrogen Jetting]]=1,Vervuiling[[#Totals],[T: Liquid Nitrogen Jetting]]=1,OnOffSite[[#Totals],[T: Liquid Nitrogen Jetting]]=1,Leverancier[[#Totals],[T: Liquid Nitrogen Jetting]]=1),'Impact per Methode'!S4,\"\")","v":0},{"$f":"IF(AND(Equipment[[#Totals],[T: Laser Cleaning]]=1,Vervuiling[[#Totals],[T: Laser Cleaning]]=1,OnOffSite[[#Totals],[T: Laser Cleaning]]=1,Leverancier[[#Totals],[T: Laser Cleaning]]=1),'Impact per Methode'!T4,\"\")","v":0},{"$f":"IF(AND(Equipment[[#Totals],[T: Pyrolysis]]=1,Vervuiling[[#Totals],[T: Pyrolysis]]=1,OnOffSite[[#Totals],[T: Pyrolysis]]=1,Leverancier[[#Totals],[T: Pyrolysis]]=1),'Impact per Methode'!U4,\"\")","v":-0.1},{"$f":"IF(AND(Equipment[[#Totals],[C: Acidizing]]=1,Vervuiling[[#Totals],[C: Acidizing]]=1,OnOffSite[[#Totals],[C: Acidizing]]=1,Leverancier[[#Totals],[C: Acidizing]]=1),'Impact per Methode'!V4,\"\")","v":-0.5},{"$f":"IF(AND(Equipment[[#Totals],[C: Degreasing]]=1,Vervuiling[[#Totals],[C: Degreasing]]=1,OnOffSite[[#Totals],[C: Degreasing]]=1,Leverancier[[#Totals],[C: Degreasing]]=1),'Impact per Methode'!W4,\"\")","v":-0.5},{"$f":"IF(AND(Equipment[[#Totals],[C: Decontamination]]=1,Vervuiling[[#Totals],[C: Decontamination]]=1,OnOffSite[[#Totals],[C: Decontamination]]=1,Leverancier[[#Totals],[C: Decontamination]]=1),'Impact per Methode'!X4,\"\")","v":-0.5}]
["Impact","Impact Factor","Energy consumption",{"$f":"D3","v":3},{"$f":"IF(AND(Equipment[[#Totals],[M: Tube Darting & Scraping]]=1,Vervuiling[[#Totals],[M: Tube Darting & Scraping]]=1,OnOffSite[[#Totals],[M: Tube Darting & Scraping]]=1,Leverancier[[#Totals],[M: Tube Darting & Scraping]]=1),'Impact per Methode'!B5,\"\")","v":-0.3},{"$f":"IF(AND(Equipment[[#Totals],[M: 3D- Nozzle (Butterworth / Tankwas kop)]]=1,Vervuiling[[#Totals],[M: 3D- Nozzle (Butterworth / Tankwas kop)]]=1,OnOffSite[[#Totals],[M: 3D- Nozzle (Butterworth / Tankwas kop)]]=1,Leverancier[[#Totals],[M: 3D- Nozzle (Butterworth / Tankwas kop)]]=1),'Impact per Methode'!C5,\"\")","v":-1},{"$f":"IF(AND(Equipment[[#Totals],[M: Rotating Hose Devices]]=1,Vervuiling[[#Totals],[M: Rotating Hose Devices]]=1,OnOffSite[[#Totals],[M: Rotating Hose Devices]]=1,Leverancier[[#Totals],[M: Rotating Hose Devices]]=1),'Impact per Methode'!D5,\"\")","v":-1},{"$f":"IF(AND(Equipment[[#Totals],[M: Water Jetting (UHP)]]=1,Vervuiling[[#Totals],[M: Water Jetting (UHP)]]=1,OnOffSite[[#Totals],[M: Water Jetting (UHP)]]=1,Leverancier[[#Totals],[M: Water Jetting (UHP)]]=1),'Impact per Methode'!E5,\"\")","v":-1},{"$f":"IF(AND(Equipment[[#Totals],[M: Pigging]]=1,Vervuiling[[#Totals],[M: Pigging]]=1,OnOffSite[[#Totals],[M: Pigging]]=1,Leverancier[[#Totals],[M: Pigging]]=1),'Impact per Methode'!F5,\"\")","v":-0.3},{"$f":"IF(AND(Equipment[[#Totals],[M: Ultrasonic Baths (Chemical Cleaning)]]=1,Vervuiling[[#Totals],[M: Ultrasonic Baths (Chemical Cleaning)]]=1,OnOffSite[[#Totals],[M: Ultrasonic Baths (Chemical Cleaning)]]=1,Leverancier[[#Totals],[M: Ultrasonic Baths (Chemical Cleaning)]]=1),'Impact per Methode'!G5,\"\")","v":-2},{"$f":"IF(AND(Equipment[[#Totals],[M: Abrasive Blasting]]=1,Vervuiling[[#Totals],[M: Abrasive Blasting]]=1,OnOffSite[[#Totals],[M: Abrasive Blasting]]=1,Leverancier[[#Totals],[M: Abrasive Blasting]]=1),'Impact per Methode'!H5,\"\")","v":-0.7},{"$f":"IF(AND(Equipment[[#Totals],[M: Drilling]]=1,Vervuiling[[#Totals],[M: Drilling]]=1,OnOffSite[[#Totals],[M: Drilling]]=1,Leverancier[[#Totals],[M: Drilling]]=1),'Impact per Methode'!I5,\"\")","v":-0.7},{"$f":"IF(AND(Equipment[[#Totals],[M: Hydrokinetic Cleaning]]=1,Vervuiling[[#Totals],[M: Hydrokinetic Cleaning]]=1,OnOffSite[[#Totals],[M: Hydrokinetic Cleaning]]=1,Leverancier[[#Totals],[M: Hydrokinetic Cleaning]]=1),'Impact per Methode'!J5,\"\")","v":-0.7},{"$f":"IF(AND(Equipment[[#Totals],[M: Manway Canons]]=1,Vervuiling[[#Totals],[M: Manway Canons]]=1,OnOffSite[[#Totals],[M: Manway Canons]]=1,Leverancier[[#Totals],[M: Manway Canons]]=1),'Impact per Methode'!K5,\"\")","v":-1},{"$f":"IF(AND(Equipment[[#Totals],[M: Remotely Operated Vehicles]]=1,Vervuiling[[#Totals],[M: Remotely Operated Vehicles]]=1,OnOffSite[[#Totals],[M: Remotely Operated Vehicles]]=1,Leverancier[[#Totals],[M: Remotely Operated Vehicles]]=1),'Impact per Methode'!L5,\"\")","v":-1.5},{"$f":"IF(AND(Equipment[[#Totals],[M: CO2 Blasting]]=1,Vervuiling[[#Totals],[M: CO2 Blasting]]=1,OnOffSite[[#Totals],[M: CO2 Blasting]]=1,Leverancier[[#Totals],[M: CO2 Blasting]]=1),'Impact per Methode'!M5,\"\")","v":-1.4},{"$f":"IF(AND(Equipment[[#Totals],[M: Flushing]]=1,Vervuiling[[#Totals],[M: Flushing]]=1,OnOffSite[[#Totals],[M: Flushing]]=1,Leverancier[[#Totals],[M: Flushing]]=1),'Impact per Methode'!N5,\"\")","v":-1},{"$f":"IF(AND(Equipment[[#Totals],[M: Brushing]]=1,Vervuiling[[#Totals],[M: Brushing]]=1,OnOffSite[[#Totals],[M: Brushing]]=1,Leverancier[[#Totals],[M: Brushing]]=1),'Impact per Methode'!O5,\"\")","v":-1.4},{"$f":"IF(AND(Equipment[[#Totals],[M: Air Lancing]]=1,Vervuiling[[#Totals],[M: Air Lancing]]=1,OnOffSite[[#Totals],[M: Air Lancing]]=1,Leverancier[[#Totals],[M: Air Lancing]]=1),'Impact per Methode'!P5,\"\")","v":-3},{"$f":"IF(AND(Equipment[[#Totals],[M: Sodium Bi-Carbonate Blasting]]=1,Vervuiling[[#Totals],[M: Sodium Bi-Carbonate Blasting]]=1,OnOffSite[[#Totals],[M: Sodium Bi-Carbonate Blasting]]=1,Leverancier[[#Totals],[M: Sodium Bi-Carbonate Blasting]]=1),'Impact per Methode'!Q5,\"\")","v":-1.4},{"$f":"IF(AND(Equipment[[#Totals],[M: Vacuum, Blowing, Suction Techniques]]=1,Vervuiling[[#Totals],[M: Vacuum, Blowing, Suction Techniques]]=1,OnOffSite[[#Totals],[M: Vacuum, Blowing, Suction Techniques]]=1,Leverancier[[#Totals],[M: Vacuum, Blowing, Suction Techniques]]=1),'Impact per Methode'!R5,\"\")","v":-1},{"$f":"IF(AND(Equipment[[#Totals],[T: Liquid Nitrogen Jetting]]=1,Vervuiling[[#Totals],[T: Liquid Nitrogen Jetting]]=1,OnOffSite[[#Totals],[T: Liquid Nitrogen Jetting]]=1,Leverancier[[#Totals],[T: Liquid Nitrogen Jetting]]=1),'Impact per Methode'!S5,\"\")","v":-1.4},{"$f":"IF(AND(Equipment[[#Totals],[T: Laser Cleaning]]=1,Vervuiling[[#Totals],[T: Laser Cleaning]]=1,OnOffSite[[#Totals],[T: Laser Cleaning]]=1,Leverancier[[#Totals],[T: Laser Cleaning]]=1),'Impact per Methode'!T5,\"\")","v":-0.5},{"$f":"IF(AND(Equipment[[#Totals],[T: Pyrolysis]]=1,Vervuiling[[#Totals],[T: Pyrolysis]]=1,OnOffSite[[#Totals],[T: Pyrolysis]]=1,Leverancier[[#Totals],[T: Pyrolysis]]=1),'Impact per Methode'!U5,\"\")","v":-0.3},{"$f":"IF(AND(Equipment[[#Totals],[C: Acidizing]]=1,Vervuiling[[#Totals],[C: Acidizing]]=1,OnOffSite[[#Totals],[C: Acidizing]]=1,Leverancier[[#Totals],[C: Acidizing]]=1),'Impact per Methode'!V5,\"\")","v":-1.2},{"$f":"IF(AND(Equipment[[#Totals],[C: Degreasing]]=1,Vervuiling[[#Totals],[C: Degreasing]]=1,OnOffSite[[#Totals],[C: Degreasing]]=1,Leverancier[[#Totals],[C: Degreasing]]=1),'Impact per Methode'!W5,\"\")","v":-1.2},{"$f":"IF(AND(Equipment[[#Totals],[C: Decontamination]]=1,Vervuiling[[#Totals],[C: Decontamination]]=1,OnOffSite[[#Totals],[C: Decontamination]]=1,Leverancier[[#Totals],[C: Decontamination]]=1),'Impact per Methode'!X5,\"\")","v":-1.2}]
["Impact","Impact Factor","Cost",{"$f":"Model!H6","v":0},{"$f":"IF(AND(Equipment[[#Totals],[M: Tube Darting & Scraping]]=1,Vervuiling[[#Totals],[M: Tube Darting & Scraping]]=1,OnOffSite[[#Totals],[M: Tube Darting & Scraping]]=1,Leverancier[[#Totals],[M: Tube Darting & Scraping]]=1),'Impact per Methode'!B6,\"\")","v":-1.2},{"$f":"IF(AND(Equipment[[#Totals],[M: 3D- Nozzle (Butterworth / Tankwas kop)]]=1,Vervuiling[[#Totals],[M: 3D- Nozzle (Butterworth / Tankwas kop)]]=1,OnOffSite[[#Totals],[M: 3D- Nozzle (Butterworth / Tankwas kop)]]=1,Leverancier[[#Totals],[M: 3D- Nozzle (Butterworth / Tankwas kop)]]=1),'Impact per Methode'!C6,\"\")","v":-1},{"$f":"IF(AND(Equipment[[#Totals],[M: Rotating Hose Devices]]=1,Vervuiling[[#Totals],[M: Rotating Hose Devices]]=1,OnOffSite[[#Totals],[M: Rotating Hose Devices]]=1,Leverancier[[#Totals],[M: Rotating Hose Devices]]=1),'Impact per Methode'!D6,\"\")","v":-1},{"$f":"IF(AND(Equipment[[#Totals],[M: Water Jetting (UHP)]]=1,Vervuiling[[#Totals],[M: Water Jetting (UHP)]]=1,OnOffSite[[#Totals],[M: Water Jetting (UHP)]]=1,Leverancier[[#Totals],[M: Water Jetting (UHP)]]=1),'Impact per Methode'!E6,\"\")","v":-1},{"$f":"IF(AND(Equipment[[#Totals],[M: Pigging]]=1,Vervuiling[[#Totals],[M: Pigging]]=1,OnOffSite[[#Totals],[M: Pigging]]=1,Leverancier[[#Totals],[M: Pigging]]=1),'Impact per Methode'!F6,\"\")","v":-1.2},{"$f":"IF(AND(Equipment[[#Totals],[M: Ultrasonic Baths (Chemical Cleaning)]]=1,Vervuiling[[#Totals],[M: Ultrasonic Baths (Chemical Cleaning)]]=1,OnOffSite[[#Totals],[M: Ultrasonic Baths (Chemical Cleaning)]]=1,Leverancier[[#Totals],[M: Ultrasonic Baths (Chemical Cleaning)]]=1),'Impact per Methode'!G6,\"\")","v":-2},{"$f":"IF(AND(Equipment[[#Totals],[M: Abrasive Blasting]]=1,Vervuiling[[#Totals],[M: Abrasive Blasting]]=1,OnOffSite[[#Totals],[M: Abrasive Blasting]]=1,Leverancier[[#Totals],[M: Abrasive Blasting]]=1),'Impact per Methode'!H6,\"\")","v":-1.3},{"$f":"IF(AND(Equipment[[#Totals],[M: Drilling]]=1,Vervuiling[[#Totals],[M: Drilling]]=1,OnOffSite[[#Totals],[M: Drilling]]=1,Leverancier[[#Totals],[M: Drilling]]=1),'Impact per Methode'!I6,\"\")","v":-2},{"$f":"IF(AND(Equipment[[#Totals],[M: Hydrokinetic Cleaning]]=1,Vervuiling[[#Totals],[M: Hydrokinetic Cleaning]]=1,OnOffSite[[#Totals],[M: Hydrokinetic Cleaning]]=1,Leverancier[[#Totals],[M: Hydrokinetic Cleaning]]=1),'Impact per Methode'!J6,\"\")","v":-2},{"$f":"IF(AND(Equipment[[#Totals],[M: Manway Canons]]=1,Vervuiling[[#Totals],[M: Manway Canons]]=1,OnOffSite[[#Totals],[M: Manway Canons]]=1,Leverancier[[#Totals],[M: Manway Canons]]=1),'Impact per Methode'!K6,\"\")","v":-3},{"$f":"IF(AND(Equipment[[#Totals],[M: Remotely Operated Vehicles]]=1,Vervuiling[[#Totals],[M: Remotely Operated Vehicles]]=1,OnOffSite[[#Totals],[M: Remotely Operated Vehicles]]=1,Leverancier[[#Totals],[M: Remotely Operated Vehicles]]=1),'Impact per Methode'!L6,\"\")","v":-3},{"$f":"IF(AND(Equipment[[#Totals],[M: CO2 Blasting]]=1,Vervuiling[[#Totals],[M: CO2 Blasting]]=1,OnOffSite[[#Totals],[M: CO2 Blasting]]=1,Leverancier[[#Totals],[M: CO2 Blasting]]=1),'Impact per Methode'!M6,\"\")","v":-2},{"$f":"IF(AND(Equipment[[#Totals],[M: Flushing]]=1,Vervuiling[[#Totals],[M: Flushing]]=1,OnOffSite[[#Totals],[M: Flushing]]=1,Leverancier[[#Totals],[M: Flushing]]=1),'Impact per Methode'!N6,\"\")","v":-1},{"$f":"IF(AND(Equipment[[#Totals],[M: Brushing]]=1,Vervuiling[[#Totals],[M: Brushing]]=1,OnOffSite[[#Totals],[M: Brushing]]=1,Leverancier[[#Totals],[M: Brushing]]=1),'Impact per Methode'!O6,\"\")","v":-2},{"$f":"IF(AND(Equipment[[#Totals],[M: Air Lancing]]=1,Vervuiling[[#Totals],[M: Air Lancing]]=1,OnOffSite[[#Totals],[M: Air Lancing]]=1,Leverancier[[#Totals],[M: Air Lancing]]=1),'Impact per Methode'!P6,\"\")","v":-3},{"$f":"IF(AND(Equipment[[#Totals],[M: Sodium Bi-Carbonate Blasting]]=1,Vervuiling[[#Totals],[M: Sodium Bi-Carbonate Blasting]]=1,OnOffSite[[#Totals],[M: Sodium Bi-Carbonate Blasting]]=1,Leverancier[[#Totals],[M: Sodium Bi-Carbonate Blasting]]=1),'Impact per Methode'!Q6,\"\")","v":-2},{"$f":"IF(AND(Equipment[[#Totals],[M: Vacuum, Blowing, Suction Techniques]]=1,Vervuiling[[#Totals],[M: Vacuum, Blowing, Suction Techniques]]=1,OnOffSite[[#Totals],[M: Vacuum, Blowing, Suction Techniques]]=1,Leverancier[[#Totals],[M: Vacuum, Blowing, Suction Techniques]]=1),'Impact per Methode'!R6,\"\")","v":-1.1000000000000001},{"$f":"IF(AND(Equipment[[#Totals],[T: Liquid Nitrogen Jetting]]=1,Vervuiling[[#Totals],[T: Liquid Nitrogen Jetting]]=1,OnOffSite[[#Totals],[T: Liquid Nitrogen Jetting]]=1,Leverancier[[#Totals],[T: Liquid Nitrogen Jetting]]=1),'Impact per Methode'!S6,\"\")","v":-2},{"$f":"IF(AND(Equipment[[#Totals],[T: Laser Cleaning]]=1,Vervuiling[[#Totals],[T: Laser Cleaning]]=1,OnOffSite[[#Totals],[T: Laser Cleaning]]=1,Leverancier[[#Totals],[T: Laser Cleaning]]=1),'Impact per Methode'!T6,\"\")","v":-1.5},{"$f":"IF(AND(Equipment[[#Totals],[T: Pyrolysis]]=1,Vervuiling[[#Totals],[T: Pyrolysis]]=1,OnOffSite[[#Totals],[T: Pyrolysis]]=1,Leverancier[[#Totals],[T: Pyrolysis]]=1),'Impact per Methode'!U6,\"\")","v":-2},{"$f":"IF(AND(Equipment[[#Totals],[C: Acidizing]]=1,Vervuiling[[#Totals],[C: Acidizing]]=1,OnOffSite[[#Totals],[C: Acidizing]]=1,Leverancier[[#Totals],[C: Acidizing]]=1),'Impact per Methode'!V6,\"\")","v":-1.5},{"$f":"IF(AND(Equipment[[#Totals],[C: Degreasing]]=1,Vervuiling[[#Totals],[C: Degreasing]]=1,OnOffSite[[#Totals],[C: Degreasing]]=1,Leverancier[[#Totals],[C: Degreasing]]=1),'Impact per Methode'!W6,\"\")","v":-1.5},{"$f":"IF(AND(Equipment[[#Totals],[C: Decontamination]]=1,Vervuiling[[#Totals],[C: Decontamination]]=1,OnOffSite[[#Totals],[C: Decontamination]]=1,Leverancier[[#Totals],[C: Decontamination]]=1),'Impact per Methode'!X6,\"\")","v":-1.5}]
["Impact","Impact Factor","Productivity",{"$f":"Model!H7","v":9},{"$f":"IF(AND(Equipment[[#Totals],[M: Tube Darting & Scraping]]=1,Vervuiling[[#Totals],[M: Tube Darting & Scraping]]=1,OnOffSite[[#Totals],[M: Tube Darting & Scraping]]=1,Leverancier[[#Totals],[M: Tube Darting & Scraping]]=1),'Impact per Methode'!B7,\"\")","v":0.8},{"$f":"IF(AND(Equipment[[#Totals],[M: 3D- Nozzle (Butterworth / Tankwas kop)]]=1,Vervuiling[[#Totals],[M: 3D- Nozzle (Butterworth / Tankwas kop)]]=1,OnOffSite[[#Totals],[M: 3D- Nozzle (Butterworth / Tankwas kop)]]=1,Leverancier[[#Totals],[M: 3D- Nozzle (Butterworth / Tankwas kop)]]=1),'Impact per Methode'!C7,\"\")","v":1},{"$f":"IF(AND(Equipment[[#Totals],[M: Rotating Hose Devices]]=1,Vervuiling[[#Totals],[M: Rotating Hose Devices]]=1,OnOffSite[[#Totals],[M: Rotating Hose Devices]]=1,Leverancier[[#Totals],[M: Rotating Hose Devices]]=1),'Impact per Methode'!D7,\"\")","v":1},{"$f":"IF(AND(Equipment[[#Totals],[M: Water Jetting (UHP)]]=1,Vervuiling[[#Totals],[M: Water Jetting (UHP)]]=1,OnOffSite[[#Totals],[M: Water Jetting (UHP)]]=1,Leverancier[[#Totals],[M: Water Jetting (UHP)]]=1),'Impact per Methode'!E7,\"\")","v":1},{"$f":"IF(AND(Equipment[[#Totals],[M: Pigging]]=1,Vervuiling[[#Totals],[M: Pigging]]=1,OnOffSite[[#Totals],[M: Pigging]]=1,Leverancier[[#Totals],[M: Pigging]]=1),'Impact per Methode'!F7,\"\")","v":0.8},{"$f":"IF(AND(Equipment[[#Totals],[M: Ultrasonic Baths (Chemical Cleaning)]]=1,Vervuiling[[#Totals],[M: Ultrasonic Baths (Chemical Cleaning)]]=1,OnOffSite[[#Totals],[M: Ultrasonic Baths (Chemical Cleaning)]]=1,Leverancier[[#Totals],[M: Ultrasonic Baths (Chemical Cleaning)]]=1),'Impact per Methode'!G7,\"\")","v":0.7},{"$f":"IF(AND(Equipment[[#Totals],[M: Abrasive Blasting]]=1,Vervuiling[[#Totals],[M: Abrasive Blasting]]=1,OnOffSite[[#Totals],[M: Abrasive Blasting]]=1,Leverancier[[#Totals],[M: Abrasive Blasting]]=1),'Impact per Methode'!H7,\"\")","v":1.5},{"$f":"IF(AND(Equipment[[#Totals],[M: Drilling]]=1,Vervuiling[[#Totals],[M: Drilling]]=1,OnOffSite[[#Totals],[M: Drilling]]=1,Leverancier[[#Totals],[M: Drilling]]=1),'Impact per Methode'!I7,\"\")","v":2},{"$f":"IF(AND(Equipment[[#Totals],[M: Hydrokinetic Cleaning]]=1,Vervuiling[[#Totals],[M: Hydrokinetic Cleaning]]=1,OnOffSite[[#Totals],[M: Hydrokinetic Cleaning]]=1,Leverancier[[#Totals],[M: Hydrokinetic Cleaning]]=1),'Impact per Methode'!J7,\"\")","v":2},{"$f":"IF(AND(Equipment[[#Totals],[M: Manway Canons]]=1,Vervuiling[[#Totals],[M: Manway Canons]]=1,OnOffSite[[#Totals],[M: Manway Canons]]=1,Leverancier[[#Totals],[M: Manway Canons]]=1),'Impact per Methode'!K7,\"\")","v":1},{"$f":"IF(AND(Equipment[[#Totals],[M: Remotely Operated Vehicles]]=1,Vervuiling[[#Totals],[M: Remotely Operated Vehicles]]=1,OnOffSite[[#Totals],[M: Remotely Operated Vehicles]]=1,Leverancier[[#Totals],[M: Remotely Operated Vehicles]]=1),'Impact per Methode'!L7,\"\")","v":0.5},{"$f":"IF(AND(Equipment[[#Totals],[M: CO2 Blasting]]=1,Vervuiling[[#Totals],[M: CO2 Blasting]]=1,OnOffSite[[#Totals],[M: CO2 Blasting]]=1,Leverancier[[#Totals],[M: CO2 Blasting]]=1),'Impact per Methode'!M7,\"\")","v":0.8},{"$f":"IF(AND(Equipment[[#Totals],[M: Flushing]]=1,Vervuiling[[#Totals],[M: Flushing]]=1,OnOffSite[[#Totals],[M: Flushing]]=1,Leverancier[[#Totals],[M: Flushing]]=1),'Impact per Methode'!N7,\"\")","v":1},{"$f":"IF(AND(Equipment[[#Totals],[M: Brushing]]=1,Vervuiling[[#Totals],[M: Brushing]]=1,OnOffSite[[#Totals],[M: Brushing]]=1,Leverancier[[#Totals],[M: Brushing]]=1),'Impact per Methode'!O7,\"\")","v":0.8},{"$f":"IF(AND(Equipment[[#Totals],[M: Air Lancing]]=1,Vervuiling[[#Totals],[M: Air Lancing]]=1,OnOffSite[[#Totals],[M: Air Lancing]]=1,Leverancier[[#Totals],[M: Air Lancing]]=1),'Impact per Methode'!P7,\"\")","v":0.1},{"$f":"IF(AND(Equipment[[#Totals],[M: Sodium Bi-Carbonate Blasting]]=1,Vervuiling[[#Totals],[M: Sodium Bi-Carbonate Blasting]]=1,OnOffSite[[#Totals],[M: Sodium Bi-Carbonate Blasting]]=1,Leverancier[[#Totals],[M: Sodium Bi-Carbonate Blasting]]=1),'Impact per Methode'!Q7,\"\")","v":0.8},{"$f":"IF(AND(Equipment[[#Totals],[M: Vacuum, Blowing, Suction Techniques]]=1,Vervuiling[[#Totals],[M: Vacuum, Blowing, Suction Techniques]]=1,OnOffSite[[#Totals],[M: Vacuum, Blowing, Suction Techniques]]=1,Leverancier[[#Totals],[M: Vacuum, Blowing, Suction Techniques]]=1),'Impact per Methode'!R7,\"\")","v":2},{"$f":"IF(AND(Equipment[[#Totals],[T: Liquid Nitrogen Jetting]]=1,Vervuiling[[#Totals],[T: Liquid Nitrogen Jetting]]=1,OnOffSite[[#Totals],[T: Liquid Nitrogen Jetting]]=1,Leverancier[[#Totals],[T: Liquid Nitrogen Jetting]]=1),'Impact per Methode'!S7,\"\")","v":1.1000000000000001},{"$f":"IF(AND(Equipment[[#Totals],[T: Laser Cleaning]]=1,Vervuiling[[#Totals],[T: Laser Cleaning]]=1,OnOffSite[[#Totals],[T: Laser Cleaning]]=1,Leverancier[[#Totals],[T: Laser Cleaning]]=1),'Impact per Methode'!T7,\"\")","v":0.3},{"$f":"IF(AND(Equipment[[#Totals],[T: Pyrolysis]]=1,Vervuiling[[#Totals],[T: Pyrolysis]]=1,OnOffSite[[#Totals],[T: Pyrolysis]]=1,Leverancier[[#Totals],[T: Pyrolysis]]=1),'Impact per Methode'!U7,\"\")","v":1},{"$f":"IF(AND(Equipment[[#Totals],[C: Acidizing]]=1,Vervuiling[[#Totals],[C: Acidizing]]=1,OnOffSite[[#Totals],[C: Acidizing]]=1,Leverancier[[#Totals],[C: Acidizing]]=1),'Impact per Methode'!V7,\"\")","v":0.5},{"$f":"IF(AND(Equipment[[#Totals],[C: Degreasing]]=1,Vervuiling[[#Totals],[C: Degreasing]]=1,OnOffSite[[#Totals],[C: Degreasing]]=1,Leverancier[[#Totals],[C: Degreasing]]=1),'Impact per Methode'!W7,\"\")","v":0.5},{"$f":"IF(AND(Equipment[[#Totals],[C: Decontamination]]=1,Vervuiling[[#Totals],[C: Decontamination]]=1,OnOffSite[[#Totals],[C: Decontamination]]=1,Leverancier[[#Totals],[C: Decontamination]]=1),'Impact per Methode'!X7,\"\")","v":0.5}]
["Impact","Impact Factor","Quality",{"$f":"Model!H8","v":3},{"$f":"IF(AND(Equipment[[#Totals],[M: Tube Darting & Scraping]]=1,Vervuiling[[#Totals],[M: Tube Darting & Scraping]]=1,OnOffSite[[#Totals],[M: Tube Darting & Scraping]]=1,Leverancier[[#Totals],[M: Tube Darting & Scraping]]=1),'Impact per Methode'!B8,\"\")","v":1.5},{"$f":"IF(AND(Equipment[[#Totals],[M: 3D- Nozzle (Butterworth / Tankwas kop)]]=1,Vervuiling[[#Totals],[M: 3D- Nozzle (Butterworth / Tankwas kop)]]=1,OnOffSite[[#Totals],[M: 3D- Nozzle (Butterworth / Tankwas kop)]]=1,Leverancier[[#Totals],[M: 3D- Nozzle (Butterworth / Tankwas kop)]]=1),'Impact per Methode'!C8,\"\")","v":1},{"$f":"IF(AND(Equipment[[#Totals],[M: Rotating Hose Devices]]=1,Vervuiling[[#Totals],[M: Rotating Hose Devices]]=1,OnOffSite[[#Totals],[M: Rotating Hose Devices]]=1,Leverancier[[#Totals],[M: Rotating Hose Devices]]=1),'Impact per Methode'!D8,\"\")","v":1},{"$f":"IF(AND(Equipment[[#Totals],[M: Water Jetting (UHP)]]=1,Vervuiling[[#Totals],[M: Water Jetting (UHP)]]=1,OnOffSite[[#Totals],[M: Water Jetting (UHP)]]=1,Leverancier[[#Totals],[M: Water Jetting (UHP)]]=1),'Impact per Methode'!E8,\"\")","v":1},{"$f":"IF(AND(Equipment[[#Totals],[M: Pigging]]=1,Vervuiling[[#Totals],[M: Pigging]]=1,OnOffSite[[#Totals],[M: Pigging]]=1,Leverancier[[#Totals],[M: Pigging]]=1),'Impact per Methode'!F8,\"\")","v":1.5},{"$f":"IF(AND(Equipment[[#Totals],[M: Ultrasonic Baths (Chemical Cleaning)]]=1,Vervuiling[[#Totals],[M: Ultrasonic Baths (Chemical Cleaning)]]=1,OnOffSite[[#Totals],[M: Ultrasonic Baths (Chemical Cleaning)]]=1,Leverancier[[#Totals],[M: Ultrasonic Baths (Chemical Cleaning)]]=1),'Impact per Methode'!G8,\"\")","v":1.2},{"$f":"IF(AND(Equipment[[#Totals],[M: Abrasive Blasting]]=1,Vervuiling[[#Totals],[M: Abrasive Blasting]]=1,OnOffSite[[#Totals],[M: Abrasive Blasting]]=1,Leverancier[[#Totals],[M: Abrasive Blasting]]=1),'Impact per Methode'!H8,\"\")","v":1.5},{"$f":"IF(AND(Equipment[[#Totals],[M: Drilling]]=1,Vervuiling[[#Totals],[M: Drilling]]=1,OnOffSite[[#Totals],[M: Drilling]]=1,Leverancier[[#Totals],[M: Drilling]]=1),'Impact per Methode'!I8,\"\")","v":2},{"$f":"IF(AND(Equipment[[#Totals],[M: Hydrokinetic Cleaning]]=1,Vervuiling[[#Totals],[M: Hydrokinetic Cleaning]]=1,OnOffSite[[#Totals],[M: Hydrokinetic Cleaning]]=1,Leverancier[[#Totals],[M: Hydrokinetic Cleaning]]=1),'Impact per Methode'!J8,\"\")","v":1},{"$f":"IF(AND(Equipment[[#Totals],[M: Manway Canons]]=1,Vervuiling[[#Totals],[M: Manway Canons]]=1,OnOffSite[[#Totals],[M: Manway Canons]]=1,Leverancier[[#Totals],[M: Manway Canons]]=1),'Impact per Methode'!K8,\"\")","v":1},{"$f":"IF(AND(Equipment[[#Totals],[M: Remotely Operated Vehicles]]=1,Vervuiling[[#Totals],[M: Remotely Operated Vehicles]]=1,OnOffSite[[#Totals],[M: Remotely Operated Vehicles]]=1,Leverancier[[#Totals],[M: Remotely Operated Vehicles]]=1),'Impact per Methode'!L8,\"\")","v":0.8},{"$f":"IF(AND(Equipment[[#Totals],[M: CO2 Blasting]]=1,Vervuiling[[#Totals],[M: CO2 Blasting]]=1,OnOffSite[[#Totals],[M: CO2 Blasting]]=1,Leverancier[[#Totals],[M: CO2 Blasting]]=1),'Impact per Methode'!M8,\"\")","v":0.6},{"$f":"IF(AND(Equipment[[#Totals],[M: Flushing]]=1,Vervuiling[[#Totals],[M: Flushing]]=1,OnOffSite[[#Totals],[M: Flushing]]=1,Leverancier[[#Totals],[M: Flushing]]=1),'Impact per Methode'!N8,\"\")","v":1},{"$f":"IF(AND(Equipment[[#Totals],[M: Brushing]]=1,Vervuiling[[#Totals],[M: Brushing]]=1,OnOffSite[[#Totals],[M: Brushing]]=1,Leverancier[[#Totals],[M: Brushing]]=1),'Impact per Methode'!O8,\"\")","v":0.6},{"$f":"IF(AND(Equipment[[#Totals],[M: Air Lancing]]=1,Vervuiling[[#Totals],[M: Air Lancing]]=1,OnOffSite[[#Totals],[M: Air Lancing]]=1,Leverancier[[#Totals],[M: Air Lancing]]=1),'Impact per Methode'!P8,\"\")","v":0.1},{"$f":"IF(AND(Equipment[[#Totals],[M: Sodium Bi-Carbonate Blasting]]=1,Vervuiling[[#Totals],[M: Sodium Bi-Carbonate Blasting]]=1,OnOffSite[[#Totals],[M: Sodium Bi-Carbonate Blasting]]=1,Leverancier[[#Totals],[M: Sodium Bi-Carbonate Blasting]]=1),'Impact per Methode'!Q8,\"\")","v":0.6},{"$f":"IF(AND(Equipment[[#Totals],[M: Vacuum, Blowing, Suction Techniques]]=1,Vervuiling[[#Totals],[M: Vacuum, Blowing, Suction Techniques]]=1,OnOffSite[[#Totals],[M: Vacuum, Blowing, Suction Techniques]]=1,Leverancier[[#Totals],[M: Vacuum, Blowing, Suction Techniques]]=1),'Impact per Methode'!R8,\"\")","v":0.6},{"$f":"IF(AND(Equipment[[#Totals],[T: Liquid Nitrogen Jetting]]=1,Vervuiling[[#Totals],[T: Liquid Nitrogen Jetting]]=1,OnOffSite[[#Totals],[T: Liquid Nitrogen Jetting]]=1,Leverancier[[#Totals],[T: Liquid Nitrogen Jetting]]=1),'Impact per Methode'!S8,\"\")","v":0.7},{"$f":"IF(AND(Equipment[[#Totals],[T: Laser Cleaning]]=1,Vervuiling[[#Totals],[T: Laser Cleaning]]=1,OnOffSite[[#Totals],[T: Laser Cleaning]]=1,Leverancier[[#Totals],[T: Laser Cleaning]]=1),'Impact per Methode'!T8,\"\")","v":1.2},{"$f":"IF(AND(Equipment[[#Totals],[T: Pyrolysis]]=1,Vervuiling[[#Totals],[T: Pyrolysis]]=1,OnOffSite[[#Totals],[T: Pyrolysis]]=1,Leverancier[[#Totals],[T: Pyrolysis]]=1),'Impact per Methode'!U8,\"\")","v":2},{"$f":"IF(AND(Equipment[[#Totals],[C: Acidizing]]=1,Vervuiling[[#Totals],[C: Acidizing]]=1,OnOffSite[[#Totals],[C: Acidizing]]=1,Leverancier[[#Totals],[C: Acidizing]]=1),'Impact per Methode'!V8,\"\")","v":1.1000000000000001},{"$f":"IF(AND(Equipment[[#Totals],[C: Degreasing]]=1,Vervuiling[[#Totals],[C: Degreasing]]=1,OnOffSite[[#Totals],[C: Degreasing]]=1,Leverancier[[#Totals],[C: Degreasing]]=1),'Impact per Methode'!W8,\"\")","v":1.1000000000000001},{"$f":"IF(AND(Equipment[[#Totals],[C: Decontamination]]=1,Vervuiling[[#Totals],[C: Decontamination]]=1,OnOffSite[[#Totals],[C: Decontamination]]=1,Leverancier[[#Totals],[C: Decontamination]]=1),'Impact per Methode'!X8,\"\")","v":1.1000000000000001}]
["Impact","Impact Factor","Re-use of waste",{"$f":"D3","v":3},{"$f":"IF(AND(Equipment[[#Totals],[M: Tube Darting & Scraping]]=1,Vervuiling[[#Totals],[M: Tube Darting & Scraping]]=1,OnOffSite[[#Totals],[M: Tube Darting & Scraping]]=1,Leverancier[[#Totals],[M: Tube Darting & Scraping]]=1),'Impact per Methode'!B9,\"\")","v":0},{"$f":"IF(AND(Equipment[[#Totals],[M: 3D- Nozzle (Butterworth / Tankwas kop)]]=1,Vervuiling[[#Totals],[M: 3D- Nozzle (Butterworth / Tankwas kop)]]=1,OnOffSite[[#Totals],[M: 3D- Nozzle (Butterworth / Tankwas kop)]]=1,Leverancier[[#Totals],[M: 3D- Nozzle (Butterworth / Tankwas kop)]]=1),'Impact per Methode'!C9,\"\")","v":0},{"$f":"IF(AND(Equipment[[#Totals],[M: Rotating Hose Devices]]=1,Vervuiling[[#Totals],[M: Rotating Hose Devices]]=1,OnOffSite[[#Totals],[M: Rotating Hose Devices]]=1,Leverancier[[#Totals],[M: Rotating Hose Devices]]=1),'Impact per Methode'!D9,\"\")","v":0},{"$f":"IF(AND(Equipment[[#Totals],[M: Water Jetting (UHP)]]=1,Vervuiling[[#Totals],[M: Water Jetting (UHP)]]=1,OnOffSite[[#Totals],[M: Water Jetting (UHP)]]=1,Leverancier[[#Totals],[M: Water Jetting (UHP)]]=1),'Impact per Methode'!E9,\"\")","v":0},{"$f":"IF(AND(Equipment[[#Totals],[M: Pigging]]=1,Vervuiling[[#Totals],[M: Pigging]]=1,OnOffSite[[#Totals],[M: Pigging]]=1,Leverancier[[#Totals],[M: Pigging]]=1),'Impact per Methode'!F9,\"\")","v":0},{"$f":"IF(AND(Equipment[[#Totals],[M: Ultrasonic Baths (Chemical Cleaning)]]=1,Vervuiling[[#Totals],[M: Ultrasonic Baths (Chemical Cleaning)]]=1,OnOffSite[[#Totals],[M: Ultrasonic Baths (Chemical Cleaning)]]=1,Leverancier[[#Totals],[M: Ultrasonic Baths (Chemical Cleaning)]]=1),'Impact per Methode'!G9,\"\")","v":0},{"$f":"IF(AND(Equipment[[#Totals],[M: Abrasive Blasting]]=1,Vervuiling[[#Totals],[M: Abrasive Blasting]]=1,OnOffSite[[#Totals],[M: Abrasive Blasting]]=1,Leverancier[[#Totals],[M: Abrasive Blasting]]=1),'Impact per Methode'!H9,\"\")","v":0},{"$f":"IF(AND(Equipment[[#Totals],[M: Drilling]]=1,Vervuiling[[#Totals],[M: Drilling]]=1,OnOffSite[[#Totals],[M: Drilling]]=1,Leverancier[[#Totals],[M: Drilling]]=1),'Impact per Methode'!I9,\"\")","v":0},{"$f":"IF(AND(Equipment[[#Totals],[M: Hydrokinetic Cleaning]]=1,Vervuiling[[#Totals],[M: Hydrokinetic Cleaning]]=1,OnOffSite[[#Totals],[M: Hydrokinetic Cleaning]]=1,Leverancier[[#Totals],[M: Hydrokinetic Cleaning]]=1),'Impact per Methode'!J9,\"\")","v":0},{"$f":"IF(AND(Equipment[[#Totals],[M: Manway Canons]]=1,Vervuiling[[#Totals],[M: Manway Canons]]=1,OnOffSite[[#Totals],[M: Manway Canons]]=1,Leverancier[[#Totals],[M: Manway Canons]]=1),'Impact per Methode'!K9,\"\")","v":0},{"$f":"IF(AND(Equipment[[#Totals],[M: Remotely Operated Vehicles]]=1,Vervuiling[[#Totals],[M: Remotely Operated Vehicles]]=1,OnOffSite[[#Totals],[M: Remotely Operated Vehicles]]=1,Leverancier[[#Totals],[M: Remotely Operated Vehicles]]=1),'Impact per Methode'!L9,\"\")","v":0},{"$f":"IF(AND(Equipment[[#Totals],[M: CO2 Blasting]]=1,Vervuiling[[#Totals],[M: CO2 Blasting]]=1,OnOffSite[[#Totals],[M: CO2 Blasting]]=1,Leverancier[[#Totals],[M: CO2 Blasting]]=1),'Impact per Methode'!M9,\"\")","v":0},{"$f":"IF(AND(Equipment[[#Totals],[M: Flushing]]=1,Vervuiling[[#Totals],[M: Flushing]]=1,OnOffSite[[#Totals],[M: Flushing]]=1,Leverancier[[#Totals],[M: Flushing]]=1),'Impact per Methode'!N9,\"\")","v":0},{"$f":"IF(AND(Equipment[[#Totals],[M: Brushing]]=1,Vervuiling[[#Totals],[M: Brushing]]=1,OnOffSite[[#Totals],[M: Brushing]]=1,Leverancier[[#Totals],[M: Brushing]]=1),'Impact per Methode'!O9,\"\")","v":0},{"$f":"IF(AND(Equipment[[#Totals],[M: Air Lancing]]=1,Vervuiling[[#Totals],[M: Air Lancing]]=1,OnOffSite[[#Totals],[M: Air Lancing]]=1,Leverancier[[#Totals],[M: Air Lancing]]=1),'Impact per Methode'!P9,\"\")","v":0},{"$f":"IF(AND(Equipment[[#Totals],[M: Sodium Bi-Carbonate Blasting]]=1,Vervuiling[[#Totals],[M: Sodium Bi-Carbonate Blasting]]=1,OnOffSite[[#Totals],[M: Sodium Bi-Carbonate Blasting]]=1,Leverancier[[#Totals],[M: Sodium Bi-Carbonate Blasting]]=1),'Impact per Methode'!Q9,\"\")","v":0},{"$f":"IF(AND(Equipment[[#Totals],[M: Vacuum, Blowing, Suction Techniques]]=1,Vervuiling[[#Totals],[M: Vacuum, Blowing, Suction Techniques]]=1,OnOffSite[[#Totals],[M: Vacuum, Blowing, Suction Techniques]]=1,Leverancier[[#Totals],[M: Vacuum, Blowing, Suction Techniques]]=1),'Impact per Methode'!R9,\"\")","v":0},{"$f":"IF(AND(Equipment[[#Totals],[T: Liquid Nitrogen Jetting]]=1,Vervuiling[[#Totals],[T: Liquid Nitrogen Jetting]]=1,OnOffSite[[#Totals],[T: Liquid Nitrogen Jetting]]=1,Leverancier[[#Totals],[T: Liquid Nitrogen Jetting]]=1),'Impact per Methode'!S9,\"\")","v":0},{"$f":"IF(AND(Equipment[[#Totals],[T: Laser Cleaning]]=1,Vervuiling[[#Totals],[T: Laser Cleaning]]=1,OnOffSite[[#Totals],[T: Laser Cleaning]]=1,Leverancier[[#Totals],[T: Laser Cleaning]]=1),'Impact per Methode'!T9,\"\")","v":0},{"$f":"IF(AND(Equipment[[#Totals],[T: Pyrolysis]]=1,Vervuiling[[#Totals],[T: Pyrolysis]]=1,OnOffSite[[#Totals],[T: Pyrolysis]]=1,Leverancier[[#Totals],[T: Pyrolysis]]=1),'Impact per Methode'!U9,\"\")","v":0},{"$f":"IF(AND(Equipment[[#Totals],[C: Acidizing]]=1,Vervuiling[[#Totals],[C: Acidizing]]=1,OnOffSite[[#Totals],[C: Acidizing]]=1,Leverancier[[#Totals],[C: Acidizing]]=1),'Impact per Methode'!V9,\"\")","v":0},{"$f":"IF(AND(Equipment[[#Totals],[C: Degreasing]]=1,Vervuiling[[#Totals],[C: Degreasing]]=1,OnOffSite[[#Totals],[C: Degreasing]]=1,Leverancier[[#Totals],[C: Degreasing]]=1),'Impact per Methode'!W9,\"\")","v":0},{"$f":"IF(AND(Equipment[[#Totals],[C: Decontamination]]=1,Vervuiling[[#Totals],[C: Decontamination]]=1,OnOffSite[[#Totals],[C: Decontamination]]=1,Leverancier[[#Totals],[C: Decontamination]]=1),'Impact per Methode'!X9,\"\")","v":0}]
[null,null,null,null,{"$f":"IFERROR(((E2*$D2+$D3*E3+$D4*E4+$D5*E5+$D6*E6+$D7*E7+$D8*E8+$D9*E9)),-999)","v":7.2},{"$f":"IFERROR(((F2*$D2+$D3*F3+$D4*F4+$D5*F5+$D6*F6+$D7*F7+$D8*F8+$D9*F9)),-999)","v":-6},-6,-6,1.7999999999999998,-12.6,1.2000000000000028,9.3000000000000007,6.3000000000000007,-6,-8.1,-4.1999999999999993,-6,-3.5999999999999996,-52.800000000000004,-5.9999999999999982,6.8999999999999995,-4.7999999999999972,2.6999999999999993,12.6,-8.6999999999999993,-8.6999999999999993,-6.9]
[null,null,null,null,{"$f":"IF(E10=MAX($E$10:$AA$10),\"^\",\"\")","v":""},{"$f":"IF(F10=MAX($E$10:$AA$10),\"^\",\"\")","v":""},"","","","","","","","","","","","","","","","","","^","","",""]
[]
[]
[]
[]
[]
[null,null,null,null,null,null,null,null,null,null,null,null,null,null,null,null,null,null,null,null,null,null,null,null,null,null,null,null,null,"Method","Impact"]
[null,null,null,null,null,null,null,null,null,null,null,null,null,null,null,null,null,null,null,null,null,null,null,null,null,null,null,null,null,{"$f":"Impact[[#Headers],[M: Tube Darting & Scraping]]","v":"M: Tube Darting & Scraping"},{"$f":"Impact[[#Totals],[M: Tube Darting & Scraping]]","v":7.2}]
[null,null,null,null,null,null,null,null,null,null,null,null,null,null,null,null,null,null,null,null,null,null,null,null,null,null,null,null,null,{"$f":"Impact[[#Headers],[M: 3D- Nozzle (Butterworth / Tankwas kop)]]","v":"M: 3D- Nozzle (Butterworth / Tankwas kop)"},{"$f":"Impact[[#Totals],[M: 3D- Nozzle (Butterworth / Tankwas kop)]]","v":-6}]
[null,null,null,null,null,null,null,null,null,null,null,null,null,null,null,null,null,null,null,null,null,null,null,null,null,null,null,null,null,{"$f":"Impact[[#Headers],[M: Rotating Hose Devices]]","v":"M: Rotating Hose Devices"},{"$f":"Impact[[#Totals],[M: Rotating Hose Devices]]","v":-6}]
[null,null,null,null,null,null,null,null,null,null,null,null,null,null,null,null,null,null,null,null,null,null,null,null,null,null,null,null,null,{"$f":"Impact[[#Headers],[M: Water Jetting (UHP)]]","v":"M: Water Jetting (UHP)"},{"$f":"Impact[[#Totals],[M: Water Jetting (UHP)]]","v":-6}]
[null,null,null,null,null,null,null,null,null,null,null,null,null,null,null,null,null,null,null,null,null,null,null,null,null,null,null,null,null,{"$f":"Impact[[#Headers],[M: Pigging]]","v":"M: Pigging"},{"$f":"Impact[[#Totals],[M: Pigging]]","v":1.7999999999999998}]
[null,null,null,null,null,null,null,null,null,null,null,null,null,null,null,null,null,null,null,null,null,null,null,null,null,null,null,null,null,{"$f":"Impact[[#Headers],[M: Ultrasonic Baths (Chemical Cleaning)]]","v":"M: Ultrasonic Baths (Chemical Cleaning)"},{"$f":"Impact[[#Totals],[M: Ultrasonic Baths (Chemical Cleaning)]]","v":-12.6}]
[null,null,null,null,null,null,null,null,null,null,null,null,null,null,null,null,null,null,null,null,null,null,null,null,null,null,null,null,null,{"$f":"Impact[[#Headers],[M: Abrasive Blasting]]","v":"M: Abrasive Blasting"},{"$f":"Impact[[#Totals],[M: Abrasive Blasting]]","v":1.2000000000000028}]
[null,null,null,null,null,null,null,null,null,null,null,null,null,null,null,null,null,null,null,null,null,null,null,null,null,null,null,null,null,{"$f":"Impact[[#Headers],[M: Drilling]]","v":"M: Drilling"},{"$f":"Impact[[#Totals],[M: Drilling]]","v":9.3000000000000007}]
[null,null,null,null,null,null,null,null,null,null,null,null,null,null,null,null,null,null,null,null,null,null,null,null,null,null,null,null,null,{"$f":"Impact[[#Headers],[M: Hydrokinetic Cleaning]]","v":"M: Hydrokinetic Cleaning"},{"$f":"Impact[[#Totals],[M: Hydrokinetic Cleaning]]","v":6.3000000000000007}]
[null,null,null,null,null,null,null,null,null,null,null,null,null,null,null,null,null,null,null,null,null,null,null,null,null,null,null,null,null,{"$f":"Impact[[#Headers],[M: Manway Canons]]","v":"M: Manway Canons"},{"$f":"Impact[[#Totals],[M: Manway Canons]]","v":-6}]
[null,null,null,null,null,null,null,null,null,null,null,null,null,null,null,null,null,null,null,null,null,null,null,null,null,null,null,null,null,{"$f":"Impact[[#Headers],[M: Remotely Operated Vehicles]]","v":"M: Remotely Operated Vehicles"},{"$f":"Impact[[#Totals],[M: Remotely Operated Vehicles]]","v":-8.1}]
[null,null,null,null,null,null,null,null,null,null,null,null,null,null,null,null,null,null,null,null,null,null,null,null,null,null,null,null,null,{"$f":"Impact[[#Headers],[M: CO2 Blasting]]","v":"M: CO2 Blasting"},{"$f":"Impact[[#Totals],[M: CO2 Blasting]]","v":-4.1999999999999993}]
[null,null,null,null,null,null,null,null,null,null,null,null,null,null,null,null,null,null,null,null,null,null,null,null,null,null,null,null,null,{"$f":"Impact[[#Headers],[M: Flushing]]","v":"M: Flushing"},{"$f":"Impact[[#Totals],[M: Flushing]]","v":-6}]
[null,null,null,null,null,null,null,null,null,null,null,null,null,null,null,null,null,null,null,null,null,null,null,null,null,null,null,null,null,{"$f":"Impact[[#Headers],[M: Brushing]]","v":"M: Brushing"},{"$f":"Impact[[#Totals],[M: Brushing]]","v":-3.5999999999999996}]
[null,null,null,null,null,null,null,null,null,null,null,null,null,null,null,null,null,null,null,null,null,null,null,null,null,null,null,null,null,{"$f":"Impact[[#Headers],[M: Air Lancing]]","v":"M: Air Lancing"},{"$f":"Impact[[#Totals],[M: Air Lancing]]","v":-52.800000000000004}]
[null,null,null,null,null,null,null,null,null,null,null,null,null,null,null,null,null,null,null,null,null,null,null,null,null,null,null,null,null,{"$f":"Impact[[#Headers],[M: Sodium Bi-Carbonate Blasting]]","v":"M: Sodium Bi-Carbonate Blasting"},{"$f":"Impact[[#Totals],[M: Sodium Bi-Carbonate Blasting]]","v":-5.9999999999999982}]
[null,null,null,null,null,null,null,null,null,null,null,null,null,null,null,null,null,null,null,null,null,null,null,null,null,null,null,null,null,{"$f":"Impact[[#Headers],[M: Vacuum, Blowing, Suction Techniques]]","v":"M: Vacuum, Blowing, Suction Techniques"},{"$f":"Impact[[#Totals],[M: Vacuum, Blowing, Suction Techniques]]","v":6.8999999999999995}]
[null,null,null,null,null,null,null,null,null,null,null,null,null,null,null,null,null,null,null,null,null,null,null,null,null,null,null,null,null,{"$f":"Impact[[#Headers],[T: Liquid Nitrogen Jetting]]","v":"T: Liquid Nitrogen Jetting"},{"$f":"Impact[[#Totals],[T: Liquid Nitrogen Jetting]]","v":-4.7999999999999972}]
[null,null,null,null,null,null,null,null,null,null,null,null,null,null,null,null,null,null,null,null,null,null,null,null,null,null,null,null,null,{"$f":"Impact[[#Headers],[T: Laser Cleaning]]","v":"T: Laser Cleaning"},{"$f":"Impact[[#Totals],[T: Laser Cleaning]]","v":2.6999999999999993}]
[null,null,null,null,null,null,null,null,null,null,null,null,null,null,null,null,null,null,null,null,null,null,null,null,null,null,null,null,null,{"$f":"Impact[[#Headers],[T: Pyrolysis]]","v":"T: Pyrolysis"},{"$f":"Impact[[#Totals],[T: Pyrolysis]]","v":12.6}]
[null,null,null,null,null,null,null,null,null,null,null,null,null,null,null,null,null,null,null,null,null,null,null,null,null,null,null,null,null,{"$f":"Impact[[#Headers],[C: Acidizing]]","v":"C: Acidizing"},{"$f":"Impact[[#Totals],[C: Acidizing]]","v":-8.6999999999999993}]
[null,null,null,null,null,null,null,null,null,null,null,null,null,null,null,null,null,null,null,null,null,null,null,null,null,null,null,null,null,{"$f":"Impact[[#Headers],[C: Degreasing]]","v":"C: Degreasing"},{"$f":"Impact[[#Totals],[C: Degreasing]]","v":-8.6999999999999993}]
[null,null,null,null,null,null,null,null,null,null,null,null,null,null,null,null,null,null,null,null,null,null,null,null,null,null,null,null,null,{"$f":"Impact[[#Headers],[C: Decontamination]]","v":"C: Decontamination"},{"$f":"Impact[[#Totals],[C: Decontamination]]","v":-6.9}]
[null,null,null,null,null,null,null,null,null,null,null,null,null,null,null,null,null,null,null,null,null,null,null,null,null,null,null,null,null,null,{"$f":"Impact[[#Totals],[Level 1]]","v":0}]

{"sheet":"Material of Construction","index":8,"n_rows":26,"n_cols":94,"rows_kept":26,"cut":false,"hidden":false,"merged":[]}
["Material of Construction","MoC","M: Tube Darting & Scraping","M: Tube Darting Ribbed Plastic Darts","M: Tube Darting Metal Scrapers","M: Tube Darting Steel wire Darts","M: Tube Darting U-Bundle Darts","M: 3D- Nozzle (Butterworth / Tankwas kop)","M: 3D-Nozzle < 150 LPM","M: 3D-Nozzle 150 - 450 LPM","M: 3D-Nozzle Acid wash","M: 3D Nozzle Solvent Wash","M: 3D-Nozzle Decontamonation Liquid","M: Rotating Hose Devices","M: Rotating Hose Device <1.5\" ID","M: Rotating Hose Device 1.5-3\" ID","M: Rotating Hose Device >3\" ID","M: Water Jetting","M: Water Jetting \"Navigator\"","M: Water Jetting \"Sentinel\"","M: Water Jetting \"BHV\" Head","M: Water Jetting \" Auto Indexed\"","M: Water Jetting \"SpiderJet\" / Magnetic Crawler","M: Waterjetting Surface Prep","M: Water Jetting Internal Bundle Cleaner","M: Water Jetting Outside Bundle Cleaner","M: Water Jetting TLX (3 flex lance)/ABX","M: Water Jetting TLE (Single Flex Lance) / ABM","M: Water Jetting Rotating Lance System","M: Waterjetting Hydrodemolition","M: Water Jetting Hydro Excavation","M: Water Jetting Percussive Blasting","M: Pigging","M: Pigging Studded Pigs","M: Pigging Ice Pigging","M: Pigging Foam Pigging","M: Pigging Chemcial Pigging","M: Ultrasonic Baths (Chemical Cleaning)","M: US Baths Acidizing","M: US Baths Degreasing with Caustic","M: US Baths Degreasing with Solvents","M: Abrasive Blasting","M: Abrassive Blasting Sponge Blasting","M: Abrassive Blasting Steel Shot Blasting","M: Abrasive Blasting Vapor Blasting","M: Abrassive Blasting Sodium Bi-Carbonate","M: Abrassive Blasting CO2 Blasting","M: Abrassive Blasting Medium a..","M: Drilling","M: Drilling UHP \"Boorbalk\"","M: Drilling Shaft based \"Raedler/Conco\"","M: Hydrokinetic Cleaning","M: Manway Canons","M: Remotely Operated Vehicles","M: ROV Intrisic Safe Tank Cleaning ESOT/ICC/..","M: ROV Submergible","M: ROV with Auger","M: ROV with Brushes","M: ROV with magnetic traction","M: Brushing","M: Steel wire Tube brushing","M: Nylon Wire Tube Brushing","M: Surface Brushing Steel Wire","M: Surface Brushing Nylon Wire","M: Air Lancing","M: Vacuum, Blowing, Suction Techniques","M: Vacuum truck Liquid Ring Pump","M: Air Mover","M: Steam Blowing","T: Liquid Nitrogen Jetting","T: Laser Cleaning","T: Pyrolysis","T: Pyrolysis Fluidized Bed (Reduced Oxygen)","T: Pyrolysis Salt Baths","T: Pyrolysis Ambient Oxygen Level","C: Acidizing","C: Acidizing HydroChloric Acid","C: Acidizing Sulfuric Acid","C: Acidizing Phosphoric Acid","C: Acidizing Sulfamic Acid","C: Acidizing Nitric/Hydrofluoric Acid","C: Acidizing Citric Acid","C: Acidizing Ammonium Citrate","C: Acidizing Hydroxyacetic / Formic Acid","C: Acidizing Ammonium EDTA ***","C: Acidizing Lactetic Acid","C: Degreasing","C: Degreasing NaOH","C: Degreasing Organic","C: Degreasing xx","C: Decontamination","C: Decontamination Chemical in Steam","C: Decontamination Chemical in Solvent","C: Decontamination Chemical in Water"]
["Carbon Steel","CS"]
["C-Mo Steel"]
["Cr-Mo Steel"]
["Cast Iron"]
["Stainles Steels"]
["Stainless Steel 304","SS 304 / 1.4301"]
["Stainless Steel 316","SS 316"]
["Alloy 20 SS","N08020 / 2.4660"]
["Alloy 60 SS","N06600 / 2.4816"]
["Alloy 80 SS","N08800 / 2.4631"]
["Alloy C-276","N10276 / 2.4819"]
["Nickel"]
["Alloy 400","N04400 / 2.4360"]
["Alloy B-2","N10665 /  2.4617"]
["Copper-Based alloys"]
["Cu-Ni 90/10"]
["Cu-Ni 70/30"]
["Admiral Brass","Admiral Brass"]
["Aluminum Alloys"]
["Zinc Alloys"]
["Galvanized Steel"]
["Titanium"]
["Tantalum"]
[]
["MoC is filter criteria"]

{"sheet":"Size and Dimensions","index":9,"n_rows":212,"n_cols":97,"rows_kept":212,"cut":false,"hidden":false,"merged":[]}
["Equipment","Type","Part","Size","Length","M: Tube Darting & Scraping","M: Tube Darting Ribbed Plastic Darts","M: Tube Darting Metal Scrapers","M: Tube Darting Steel wire Darts","M: Tube Darting U-Bundle Darts","M: 3D- Nozzle (Butterworth / Tankwas kop)","M: 3D-Nozzle < 150 LPM","M: 3D-Nozzle 150 - 450 LPM","M: 3D-Nozzle Acid wash","M: 3D Nozzle Solvent Wash","M: 3D-Nozzle Decontamonation Liquid","M: Rotating Hose Devices","M: Rotating Hose Device <1.5\" ID","M: Rotating Hose Device 1.5-3\" ID","M: Rotating Hose Device >3\" ID","M: Water Jetting","M: Water Jetting \"Navigator\"","M: Water Jetting \"Sentinel\"","M: Water Jetting \"BHV\" Head","M: Water Jetting \" Auto Indexed\"","M: Water Jetting \"SpiderJet\" / Magnetic Crawler","M: Waterjetting Surface Prep","M: Water Jetting Internal Bundle Cleaner","M: Water Jetting Outside Bundle Cleaner","M: Water Jetting TLX (3 flex lance)/ABX","M: Water Jetting TLE (Single Flex Lance) / ABM","M: Water Jetting Rotating Lance System","M: Waterjetting Hydrodemolition","M: Water Jetting Hydro Excavation","M: Water Jetting Percussive Blasting","M: Pigging","M: Pigging Studded Pigs","M: Pigging Ice Pigging","M: Pigging Foam Pigging","M: Pigging Chemcial Pigging","M: Ultrasonic Baths (Chemical Cleaning)","M: US Baths Acidizing","M: US Baths Degreasing with Caustic","M: US Baths Degreasing with Solvents","M: Abrasive Blasting","M: Abrassive Blasting Sponge Blasting","M: Abrassive Blasting Steel Shot Blasting","M: Abrasive Blasting Vapor Blasting","M: Abrassive Blasting Sodium Bi-Carbonate","M: Abrassive Blasting CO2 Blasting","M: Abrassive Blasting Medium a..","M: Drilling","M: Drilling UHP \"Boorbalk\"","M: Drilling Shaft based \"Raedler/Conco\"","M: Hydrokinetic Cleaning","M: Manway Canons","M: Remotely Operated Vehicles","M: ROV Intrisic Safe Tank Cleaning ESOT/ICC/..","M: ROV Submergible","M: ROV with Auger","M: ROV with Brushes","M: ROV with magnetic traction","M: Brushing","M: Steel wire Tube brushing","M: Nylon Wire Tube Brushing","M: Surface Brushing Steel Wire","M: Surface Brushing Nylon Wire","M: Air Lancing","M: Vacuum, Blowing, Suction Techniques","M: Vacuum truck Liquid Ring Pump","M: Air Mover","M: Steam Blowing","T: Liquid Nitrogen Jetting","T: Laser Cleaning","T: Pyrolysis","T: Pyrolysis Fluidized Bed (Reduced Oxygen)","T: Pyrolysis Salt Baths","T: Pyrolysis Ambient Oxygen Level","C: Acidizing","C: Acidizing HydroChloric Acid","C: Acidizing Sulfuric Acid","C: Acidizing Phosphoric Acid","C: Acidizing Sulfamic Acid","C: Acidizing Nitric/Hydrofluoric Acid","C: Acidizing Citric Acid","C: Acidizing Ammonium Citrate","C: Acidizing Hydroxyacetic / Formic Acid","C: Acidizing Ammonium EDTA ***","C: Acidizing Lactetic Acid","C: Degreasing","C: Degreasing NaOH","C: Degreasing Organic","C: Degreasing xx","C: Decontamination","C: Decontamination Chemical in Steam","C: Decontamination Chemical in Solvent","C: Decontamination Chemical in Water"]
["Heat Exchangers","Shell and Tube","- Bundle (inside tubes)","ID < 7 mm","Tube Length < 1.5 m"]
["Heat Exchangers","Shell and Tube","- Bundle (inside tubes)","ID < 7 mm","Tube Length 1.5 - 4.5 m"]
["Heat Exchangers","Shell and Tube","- Bundle (inside tubes)","ID < 7 mm","Tube Length 4.5 - 7 m"]
["Heat Exchangers","Shell and Tube","- Bundle (inside tubes)","ID < 7 mm","Tube Length 7 - 14 m"]
["Heat Exchangers","Shell and Tube","- Bundle (inside tubes)","ID < 7 mm","Tube Length 14 - 25 m"]
["Heat Exchangers","Shell and Tube","- Bundle (inside tubes)","ID < 7 mm","Tube Length > 25 m"]
["Heat Exchangers","Shell and Tube","- Bundle (inside tubes)","ID 7 - 12 mm","Tube Length < 1.5 m"]
["Heat Exchangers","Shell and Tube","- Bundle (inside tubes)","ID 7 - 12 mm","Tube Length 1.5 - 4.5 m"]
["Heat Exchangers","Shell and Tube","- Bundle (inside tubes)","ID 7 - 12 mm","Tube Length 4.5 - 7 m"]
["Heat Exchangers","Shell and Tube","- Bundle (inside tubes)","ID 7 - 12 mm","Tube Length 7 - 14 m"]
["Heat Exchangers","Shell and Tube","- Bundle (inside tubes)","ID 7 - 12 mm","Tube Length 14 - 25 m"]
["Heat Exchangers","Shell and Tube","- Bundle (inside tubes)","ID 7 - 12 mm","Tube Length > 25 m"]
["Heat Exchangers","Shell and Tube","- Bundle (inside tubes)","ID 12 - 20 mm","Tube Length < 1.5 m"]
["Heat Exchangers","Shell and Tube","- Bundle (inside tubes)","ID 12 - 20 mm","Tube Length 1.5 - 4.5 m"]
["Heat Exchangers","Shell and Tube","- Bundle (inside tubes)","ID 12 - 20 mm","Tube Length 4.5 - 7 m"]
["Heat Exchangers","Shell and Tube","- Bundle (inside tubes)","ID 12 - 20 mm","Tube Length 7 - 14 m"]
["Heat Exchangers","Shell and Tube","- Bundle (inside tubes)","ID 12 - 20 mm","Tube Length 14 - 25 m"]
["Heat Exchangers","Shell and Tube","- Bundle (inside tubes)","ID 12 - 20 mm","Tube Length > 25 m"]
["Heat Exchangers","Shell and Tube","- Bundle (inside tubes)","ID > 20 mm","Tube Length < 1.5 m"]
["Heat Exchangers","Shell and Tube","- Bundle (inside tubes)","ID > 20 mm","Tube Length 1.5 - 4.5 m"]
["Heat Exchangers","Shell and Tube","- Bundle (inside tubes)","ID > 20 mm","Tube Length 4.5 - 7 m"]
["Heat Exchangers","Shell and Tube","- Bundle (inside tubes)","ID > 20 mm","Tube Length 7 - 14 m"]
["Heat Exchangers","Shell and Tube","- Bundle (inside tubes)","ID > 20 mm","Tube Length 14 - 25 m"]
["Heat Exchangers","Shell and Tube","- Bundle (inside tubes)","ID > 20 mm","Tube Length > 25 m"]
["Heat Exchangers","Shell and Tube","- Bundle (external)","Bundle Diameter < 0.5 m","-"]
["Heat Exchangers","Shell and Tube","- Bundle (external)","Bundle Diameter 0.5 - 0.8 m","-"]
["Heat Exchangers","Shell and Tube","- Bundle (external)","Bundle Diameter 0.8 - 1.2 m","-"]
["Heat Exchangers","Shell and Tube","- Bundle (external)","Bundle Diameter 1.2 - 2 m","-"]
["Heat Exchangers","Shell and Tube","- Bundle (external)","Bundle Diameter 2 - 3.5 m","-"]
["Heat Exchangers","Shell and Tube","- Bundle (external)","Bundle Diameter > 3.5 m","-"]
["Heat Exchangers","Shell and Tube","- Shell","Bundle Diameter < 0.5 m","Tube Length < 1.5 m"]
["Heat Exchangers","Shell and Tube","- Shell","Bundle Diameter < 0.5 m","Tube Length 1.5 - 4.5 m"]
["Heat Exchangers","Shell and Tube","- Shell","Bundle Diameter < 0.5 m","Tube Length 4.5 - 7 m"]
["Heat Exchangers","Shell and Tube","- Shell","Bundle Diameter < 0.5 m","Tube Length 7 - 14 m"]
["Heat Exchangers","Shell and Tube","- Shell","Bundle Diameter < 0.5 m","Tube Length 14 - 25 m"]
["Heat Exchangers","Shell and Tube","- Shell","Bundle Diameter < 0.5 m","Tube Length > 25 m"]
["Heat Exchangers","Shell and Tube","- Shell","Bundle Diameter 0.5 - 0.8 m","Tube Length < 1.5 m"]
["Heat Exchangers","Shell and Tube","- Shell","Bundle Diameter 0.5 - 0.8 m","Tube Length 1.5 - 4.5 m"]
["Heat Exchangers","Shell and Tube","- Shell","Bundle Diameter 0.5 - 0.8 m","Tube Length 4.5 - 7 m"]
["Heat Exchangers","Shell and Tube","- Shell","Bundle Diameter 0.5 - 0.8 m","Tube Length 7 - 14 m"]
["Heat Exchangers","Shell and Tube","- Shell","Bundle Diameter 0.5 - 0.8 m","Tube Length 14 - 25 m"]
["Heat Exchangers","Shell and Tube","- Shell","Bundle Diameter 0.5 - 0.8 m","Tube Length > 25 m"]
["Heat Exchangers","Shell and Tube","- Shell","Bundle Diameter 0.8 - 1.2 m","Tube Length < 1.5 m"]
["Heat Exchangers","Shell and Tube","- Shell","Bundle Diameter 0.8 - 1.2 m","Tube Length 1.5 - 4.5 m"]
["Heat Exchangers","Shell and Tube","- Shell","Bundle Diameter 0.8 - 1.2 m","Tube Length 4.5 - 7 m"]
["Heat Exchangers","Shell and Tube","- Shell","Bundle Diameter 0.8 - 1.2 m","Tube Length 7 - 14 m"]
["Heat Exchangers","Shell and Tube","- Shell","Bundle Diameter 0.8 - 1.2 m","Tube Length 14 - 25 m"]
["Heat Exchangers","Shell and Tube","- Shell","Bundle Diameter 0.8 - 1.2 m","Tube Length > 25 m"]
["Heat Exchangers","Shell and Tube","- Shell","Bundle Diameter 1.2 - 2 m","Tube Length < 1.5 m"]
["Heat Exchangers","Shell and Tube","- Shell","Bundle Diameter 1.2 - 2 m","Tube Length 1.5 - 4.5 m"]
["Heat Exchangers","Shell and Tube","- Shell","Bundle Diameter 1.2 - 2 m","Tube Length 4.5 - 7 m"]
["Heat Exchangers","Shell and Tube","- Shell","Bundle Diameter 1.2 - 2 m","Tube Length 7 - 14 m"]
["Heat Exchangers","Shell and Tube","- Shell","Bundle Diameter 1.2 - 2 m","Tube Length 14 - 25 m"]
["Heat Exchangers","Shell and Tube","- Shell","Bundle Diameter 1.2 - 2 m","Tube Length > 25 m"]
["Heat Exchangers","Shell and Tube","- Shell","Bundle Diameter 2 - 3.5 m","Tube Length < 1.5 m"]
["Heat Exchangers","Shell and Tube","- Shell","Bundle Diameter 2 - 3.5 m","Tube Length 1.5 - 4.5 m"]
["Heat Exchangers","Shell and Tube","- Shell","Bundle Diameter 2 - 3.5 m","Tube Length 4.5 - 7 m"]
["Heat Exchangers","Shell and Tube","- Shell","Bundle Diameter 2 - 3.5 m","Tube Length 7 - 14 m"]
["Heat Exchangers","Shell and Tube","- Shell","Bundle Diameter 2 - 3.5 m","Tube Length 14 - 25 m"]
["Heat Exchangers","Shell and Tube","- Shell","Bundle Diameter 2 - 3.5 m","Tube Length > 25 m"]
["Heat Exchangers","Shell and Tube","- Shell","Bundle Diameter > 3.5 m","Tube Length < 1.5 m"]
["Heat Exchangers","Shell and Tube","- Shell","Bundle Diameter > 3.5 m","Tube Length 1.5 - 4.5 m"]
["Heat Exchangers","Shell and Tube","- Shell","Bundle Diameter > 3.5 m","Tube Length 4.5 - 7 m"]
["Heat Exchangers","Shell and Tube","- Shell","Bundle Diameter > 3.5 m","Tube Length 7 - 14 m"]
["Heat Exchangers","Shell and Tube","- Shell","Bundle Diameter > 3.5 m","Tube Length 14 - 25 m"]
["Heat Exchangers","Shell and Tube","- Shell","Bundle Diameter > 3.5 m","Tube Length > 25 m"]
["Heat Exchangers","Shell and Tube","- Heads & Channels","Bundle Diameter < 0.5 m","-"]
["Heat Exchangers","Shell and Tube","- Heads & Channels","Bundle Diameter 0.5 - 0.8 m","-"]
["Heat Exchangers","Shell and Tube","- Heads & Channels","Bundle Diameter 0.8 - 1.2 m","-"]
["Heat Exchangers","Shell and Tube","- Heads & Channels","Bundle Diameter 1.2 - 2 m","-"]
["Heat Exchangers","Shell and Tube","- Heads & Channels","Bundle Diameter 2 - 3.5 m","-"]
["Heat Exchangers","Shell and Tube","- Heads & Channels","Bundle Diameter > 3.5 m","-"]
["Heat Exchangers","Shell and Tube (Fixed)","- Bundle (inside tubes)","ID < 7 mm","Tube Length < 1.5 m"]
["Heat Exchangers","Shell and Tube (Fixed)","- Bundle (inside tubes)","ID < 7 mm","Tube Length 1.5 - 4.5 m"]
["Heat Exchangers","Shell and Tube (Fixed)","- Bundle (inside tubes)","ID < 7 mm","Tube Length 4.5 - 7 m"]
["Heat Exchangers","Shell and Tube (Fixed)","- Bundle (inside tubes)","ID < 7 mm","Tube Length 7 - 14 m"]
["Heat Exchangers","Shell and Tube (Fixed)","- Bundle (inside tubes)","ID < 7 mm","Tube Length 14 - 25 m"]
["Heat Exchangers","Shell and Tube (Fixed)","- Bundle (inside tubes)","ID < 7 mm","Tube Length > 25 m"]
["Heat Exchangers","Shell and Tube (Fixed)","- Bundle (inside tubes)","ID 7 - 12 mm","Tube Length < 1.5 m"]
["Heat Exchangers","Shell and Tube (Fixed)","- Bundle (inside tubes)","ID 7 - 12 mm","Tube Length 1.5 - 4.5 m"]
["Heat Exchangers","Shell and Tube (Fixed)","- Bundle (inside tubes)","ID 7 - 12 mm","Tube Length 4.5 - 7 m"]
["Heat Exchangers","Shell and Tube (Fixed)","- Bundle (inside tubes)","ID 7 - 12 mm","Tube Length 7 - 14 m"]
["Heat Exchangers","Shell and Tube (Fixed)","- Bundle (inside tubes)","ID 7 - 12 mm","Tube Length 14 - 25 m"]
["Heat Exchangers","Shell and Tube (Fixed)","- Bundle (inside tubes)","ID 7 - 12 mm","Tube Length > 25 m"]
["Heat Exchangers","Shell and Tube (Fixed)","- Bundle (inside tubes)","ID 12 - 20 mm","Tube Length < 1.5 m"]
["Heat Exchangers","Shell and Tube (Fixed)","- Bundle (inside tubes)","ID 12 - 20 mm","Tube Length 1.5 - 4.5 m"]
["Heat Exchangers","Shell and Tube (Fixed)","- Bundle (inside tubes)","ID 12 - 20 mm","Tube Length 4.5 - 7 m"]
["Heat Exchangers","Shell and Tube (Fixed)","- Bundle (inside tubes)","ID 12 - 20 mm","Tube Length 7 - 14 m"]
["Heat Exchangers","Shell and Tube (Fixed)","- Bundle (inside tubes)","ID 12 - 20 mm","Tube Length 14 - 25 m"]
["Heat Exchangers","Shell and Tube (Fixed)","- Bundle (inside tubes)","ID 12 - 20 mm","Tube Length > 25 m"]
["Heat Exchangers","Shell and Tube (Fixed)","- Bundle (inside tubes)","ID > 20 mm","Tube Length < 1.5 m"]
["Heat Exchangers","Shell and Tube (Fixed)","- Bundle (inside tubes)","ID > 20 mm","Tube Length 1.5 - 4.5 m"]
["Heat Exchangers","Shell and Tube (Fixed)","- Bundle (inside tubes)","ID > 20 mm","Tube Length 4.5 - 7 m"]
["Heat Exchangers","Shell and Tube (Fixed)","- Bundle (inside tubes)","ID > 20 mm","Tube Length 7 - 14 m"]
["Heat Exchangers","Shell and Tube (Fixed)","- Bundle (inside tubes)","ID > 20 mm","Tube Length 14 - 25 m"]
["Heat Exchangers","Shell and Tube (Fixed)","- Bundle (inside tubes)","ID > 20 mm","Tube Length > 25 m"]
["Heat Exchangers","Shell and Tube (Fixed)","- Bundle (External) + Shell","-","-"]
["Heat Exchangers","Shell and Tube (Fixed)","- Heads & Channels","Bundle Diameter < 0.5 m","-"]
["Heat Exchangers","Shell and Tube (Fixed)","- Heads & Channels","Bundle Diameter 0.5 - 0.8 m","-"]
["Heat Exchangers","Shell and Tube (Fixed)","- Heads & Channels","Bundle Diameter 0.8 - 1.2 m","-"]
["Heat Exchangers","Shell and Tube (Fixed)","- Heads & Channels","Bundle Diameter 1.2 - 2 m","-"]
["Heat Exchangers","Shell and Tube (Fixed)","- Heads & Channels","Bundle Diameter 2 - 3.5 m","-"]
["Heat Exchangers","Shell and Tube (Fixed)","- Heads & Channels","Bundle Diameter > 3.5 m","-"]
["Heat Exchangers","Shell and Tube U-Bundle","- Bundle (inside tubes)","ID < 7 mm","Tube Length < 1.5 m"]
["Heat Exchangers","Shell and Tube U-Bundle","- Bundle (inside tubes)","ID < 7 mm","Tube Length 1.5 - 4.5 m"]
["Heat Exchangers","Shell and Tube U-Bundle","- Bundle (inside tubes)","ID < 7 mm","Tube Length 4.5 - 7 m"]
["Heat Exchangers","Shell and Tube U-Bundle","- Bundle (inside tubes)","ID < 7 mm","Tube Length 7 - 14 m"]
["Heat Exchangers","Shell and Tube U-Bundle","- Bundle (inside tubes)","ID 7 - 12 mm","Tube Length < 1.5 m"]
["Heat Exchangers","Shell and Tube U-Bundle","- Bundle (inside tubes)","ID 7 - 12 mm","Tube Length 1.5 - 4.5 m"]
["Heat Exchangers","Shell and Tube U-Bundle","- Bundle (inside tubes)","ID 7 - 12 mm","Tube Length 4.5 - 7 m"]
["Heat Exchangers","Shell and Tube U-Bundle","- Bundle (inside tubes)","ID 7 - 12 mm","Tube Length 7 - 14 m"]
["Heat Exchangers","Shell and Tube U-Bundle","- Bundle (inside tubes)","ID 12 - 20 mm","Tube Length < 1.5 m"]
["Heat Exchangers","Shell and Tube U-Bundle","- Bundle (inside tubes)","ID 12 - 20 mm","Tube Length 1.5 - 4.5 m"]
["Heat Exchangers","Shell and Tube U-Bundle","- Bundle (inside tubes)","ID 12 - 20 mm","Tube Length 4.5 - 7 m"]
["Heat Exchangers","Shell and Tube U-Bundle","- Bundle (inside tubes)","ID 12 - 20 mm","Tube Length 7 - 14 m"]
["Heat Exchangers","Shell and Tube U-Bundle","- Bundle (inside tubes)","ID > 20 mm","Tube Length < 1.5 m"]
["Heat Exchangers","Shell and Tube U-Bundle","- Bundle (inside tubes)","ID > 20 mm","Tube Length 1.5 - 4.5 m"]
["Heat Exchangers","Shell and Tube U-Bundle","- Bundle (inside tubes)","ID > 20 mm","Tube Length 4.5 - 7 m"]
["Heat Exchangers","Shell and Tube U-Bundle","- Bundle (inside tubes)","ID > 20 mm","Tube Length 7 - 14 m"]
["Heat Exchangers","Shell and Tube U-Bundle","- Bundle (external)","Bundle Diameter < 0.5 m","-"]
["Heat Exchangers","Shell and Tube U-Bundle","- Bundle (external)","Bundle Diameter 0.5 - 0.8 m","-"]
["Heat Exchangers","Shell and Tube U-Bundle","- Bundle (external)","Bundle Diameter 0.8 - 1.2 m","-"]
["Heat Exchangers","Shell and Tube U-Bundle","- Bundle (external)","Bundle Diameter 1.2 - 2 m","-"]
["Heat Exchangers","Shell and Tube U-Bundle","- Bundle (external)","Bundle Diameter 2 - 3.5 m","-"]
["Heat Exchangers","Shell and Tube U-Bundle","- Bundle (external)","Bundle Diameter > 3.5 m","-"]
["Heat Exchangers","Shell and Tube U-Bundle","- Shell"]
["Heat Exchangers","Shell and Tube U-Bundle","- Shell","Bundle Diameter < 0.5 m","Tube Length 1.5 - 4.5 m"]
["Heat Exchangers","Shell and Tube U-Bundle","- Shell","Bundle Diameter < 0.5 m","Tube Length 4.5 - 7 m"]
["Heat Exchangers","Shell and Tube U-Bundle","- Shell","Bundle Diameter < 0.5 m","Tube Length 7 - 14 m"]
["Heat Exchangers","Shell and Tube U-Bundle","- Shell","Bundle Diameter 0.5 - 0.8 m","Tube Length < 1.5 m"]
["Heat Exchangers","Shell and Tube U-Bundle","- Shell","Bundle Diameter 0.5 - 0.8 m","Tube Length 1.5 - 4.5 m"]
["Heat Exchangers","Shell and Tube U-Bundle","- Shell","Bundle Diameter 0.5 - 0.8 m","Tube Length 4.5 - 7 m"]
["Heat Exchangers","Shell and Tube U-Bundle","- Shell","Bundle Diameter 0.5 - 0.8 m","Tube Length 7 - 14 m"]
["Heat Exchangers","Shell and Tube U-Bundle","- Shell","Bundle Diameter 0.8 - 1.2 m","Tube Length < 1.5 m"]
["Heat Exchangers","Shell and Tube U-Bundle","- Shell","Bundle Diameter 0.8 - 1.2 m","Tube Length 1.5 - 4.5 m"]
["Heat Exchangers","Shell and Tube U-Bundle","- Shell","Bundle Diameter 0.8 - 1.2 m","Tube Length 4.5 - 7 m"]
["Heat Exchangers","Shell and Tube U-Bundle","- Shell","Bundle Diameter 0.8 - 1.2 m","Tube Length 7 - 14 m"]
["Heat Exchangers","Shell and Tube U-Bundle","- Shell","Bundle Diameter 1.2 - 2 m","Tube Length < 1.5 m"]
["Heat Exchangers","Shell and Tube U-Bundle","- Shell","Bundle Diameter 1.2 - 2 m","Tube Length 1.5 - 4.5 m"]
["Heat Exchangers","Shell and Tube U-Bundle","- Shell","Bundle Diameter 1.2 - 2 m","Tube Length 4.5 - 7 m"]
["Heat Exchangers","Shell and Tube U-Bundle","- Shell","Bundle Diameter 1.2 - 2 m","Tube Length 7 - 14 m"]
["Heat Exchangers","Shell and Tube U-Bundle","- Shell","Bundle Diameter 2 - 3.5 m","Tube Length < 1.5 m"]
["Heat Exchangers","Shell and Tube U-Bundle","- Shell","Bundle Diameter 2 - 3.5 m","Tube Length 1.5 - 4.5 m"]
["Heat Exchangers","Shell and Tube U-Bundle","- Shell","Bundle Diameter 2 - 3.5 m","Tube Length 4.5 - 7 m"]
["Heat Exchangers","Shell and Tube U-Bundle","- Shell","Bundle Diameter 2 - 3.5 m","Tube Length 7 - 14 m"]
["Heat Exchangers","Shell and Tube U-Bundle","- Shell","Bundle Diameter > 3.5 m","Tube Length < 1.5 m"]
["Heat Exchangers","Shell and Tube U-Bundle","- Shell","Bundle Diameter > 3.5 m","Tube Length 1.5 - 4.5 m"]
["Heat Exchangers","Shell and Tube U-Bundle","- Shell","Bundle Diameter > 3.5 m","Tube Length 4.5 - 7 m"]
["Heat Exchangers","Shell and Tube U-Bundle","- Shell","Bundle Diameter > 3.5 m","Tube Length 7 - 14 m"]
["Heat Exchangers","Shell and Tube U-Bundle","- Heads & Channels","Bundle Diameter < 0.5 m","-"]
["Heat Exchangers","Shell and Tube U-Bundle","- Heads & Channels","Bundle Diameter 0.5 - 0.8 m","-"]
["Heat Exchangers","Shell and Tube U-Bundle","- Heads & Channels","Bundle Diameter 0.8 - 1.2 m","-"]
["Heat Exchangers","Shell and Tube U-Bundle","- Heads & Channels","Bundle Diameter 1.2 - 2 m","-"]
["Heat Exchangers","Shell and Tube U-Bundle","- Heads & Channels","Bundle Diameter 2 - 3.5 m","-"]
["Heat Exchangers","Shell and Tube U-Bundle","- Heads & Channels","Bundle Diameter > 3.5 m","-"]
["Heat Exchangers","Fin Fan / Aircoolers","- Tubes (inside)","ID 7 - 12 mm","Tube Length < 4.5 m"]
["Heat Exchangers","Fin Fan / Aircoolers","- Tubes (inside)","ID 7 - 12 mm","Tube Length 7 - 14 m"]
["Heat Exchangers","Fin Fan / Aircoolers","- Tubes (inside)","ID 7 - 12 mm","Tube Length 14 - 25 m"]
["Heat Exchangers","Fin Fan / Aircoolers","- Tubes (inside)","ID 7 - 12 mm","Tube Length > 25 m"]
["Heat Exchangers","Fin Fan / Aircoolers","- Tubes (inside)","ID 12 - 20 mm","Tube Length < 4.5 m"]
["Heat Exchangers","Fin Fan / Aircoolers","- Tubes (inside)","ID 12 - 20 mm","Tube Length 7 - 14 m"]
["Heat Exchangers","Fin Fan / Aircoolers","- Tubes (inside)","ID 12 - 20 mm","Tube Length 14 - 25 m"]
["Heat Exchangers","Fin Fan / Aircoolers","- Tubes (inside)","ID 12 - 20 mm","Tube Length > 25 m"]
["Heat Exchangers","Fin Fan / Aircoolers","- Tubes (inside)","ID > 20 mm","Tube Length < 4.5 m"]
["Heat Exchangers","Fin Fan / Aircoolers","- Tubes (inside)","ID > 20 mm","Tube Length 7 - 14 m"]
["Heat Exchangers","Fin Fan / Aircoolers","- Tubes (inside)","ID > 20 mm","Tube Length 14 - 25 m"]
["Heat Exchangers","Fin Fan / Aircoolers","- Tubes (inside)","ID > 20 mm","Tube Length > 25 m"]
["Heat Exchangers","Fin Fan / Aircoolers","- Fined tubes external","1 - 3 layers of tubes","1 - 4 m2"]
["Heat Exchangers","Fin Fan / Aircoolers","- Fined tubes external","1 - 3 layers of tubes","4 - 10 m2"]
["Heat Exchangers","Fin Fan / Aircoolers","- Fined tubes external","1 - 3 layers of tubes","10 - 18 m2"]
["Heat Exchangers","Fin Fan / Aircoolers","- Fined tubes external","1 - 3 layers of tubes","> 18 m2"]
["Heat Exchangers","Fin Fan / Aircoolers","- Fined tubes external","3 - 6 layers of tubes","1 - 4 m2"]
["Heat Exchangers","Fin Fan / Aircoolers","- Fined tubes external","3 - 6 layers of tubes","4 - 10 m2"]
["Heat Exchangers","Fin Fan / Aircoolers","- Fined tubes external","3 - 6 layers of tubes","10 - 18 m2"]
["Heat Exchangers","Fin Fan / Aircoolers","- Fined tubes external","3 - 6 layers of tubes","> 18 m2"]
["Heat Exchangers","Fin Fan / Aircoolers","- Fined tubes external","> 6 layers of tubes","1 - 4 m2"]
["Heat Exchangers","Fin Fan / Aircoolers","- Fined tubes external","> 6 layers of tubes","4 - 10 m2"]
["Heat Exchangers","Fin Fan / Aircoolers","- Fined tubes external","> 6 layers of tubes","10 - 18 m2"]
["Heat Exchangers","Fin Fan / Aircoolers","- Fined tubes external","> 6 layers of tubes","> 18 m2"]
["Heat Exchangers","Fin Fan / Aircoolers","- Collector","Square type","l x b (opdelen)"]
["Heat Exchangers","Fin Fan / Aircoolers","- Collector","Tube type","ID (opdelen"]
["Heat Exchangers","Fin Fan / Aircoolers","- Collector Plate","Square type","l x b (opdelen)"]
["Heat Exchangers","Compablock/Plate Exchanger","- Plates","Types of Gasket","Sizes"]
["Heat Exchangers","Compablock/Plate Exchanger","- Housing","Construction types"]
["Heat Exchangers","Compablock/Plate Exchanger (Welded)","- Plates + Housing","Construction types","Sizes"]
["Tanks / Vessels","Tank","Tank, diameter < 12 m","# of Access Points and sizes","Restrictions (heat coil, …)"]
["Tanks / Vessels","Tank","Tank, diameter >12 m, < 25 m","# of Access Points and sizes","Restrictions (heat coil, …)"]
["Tanks / Vessels","Tank","Tank, diameter > 25 m","# of Access Points and sizes","Restrictions (heat coil, …)"]
["Columns","Packed Column","- Packed Material","Type of Packed material","M3"]
["Columns","Packed Column","- Column","Type of Packed material","Diameter & Height"]
["Columns","Trayed Column","- Trays","Type of Trays","# of Trays"]
["Columns","Trayed Column","- Column","Type of Trays","Diameter & Height"]
["Boilers/Furnances","Fired Heater","- Radiant Section"]
["Boilers/Furnances","Fired Heater","- Convection Section"]
["Boilers/Furnances","Fired Heater","- TLE's"]
["Boilers/Furnances","Boilers","- Heater section"]
["Boilers/Furnances","Boilers","- Boiler Drum"]
["Boilers/Furnances","Boilers","- Boiler Tubes"]
["Piping","Piping","Piping < 1\" internal","access points number and type of bend"]
["Piping","Piping","Piping >1\" <4\" internal"]
["Piping","Piping","Piping >4\", <20\" internal"]
["Piping","Piping","Piping >20\" internal"]
["Cooling Towers","Cooling Towers","- Basin"]
["Cooling Towers","Cooling Towers","- Fans"]
["Cooling Towers","Cooling Towers","- Structure"]
["Other equipment","Other equipment","Filters"]
["Other equipment","Other equipment","Floors"]
["Other equipment","Other equipment","Tube Reactor Pipes"]
[]
[]
["Different approaches, give "]

{"sheet":"Lists","index":10,"n_rows":41,"n_cols":23,"rows_kept":41,"cut":false,"hidden":false,"merged":[]}
[]
[]
[]
[]
[]
[]
[null,null,null,null,"Equipment",null,"Type",null,"Part",null,"Vervuiling",null,null,"Leverancier",null,null,null,null,"Dropdown list for reason for cleaning"]
[null,null,"Equipment",null,"Boilers/Furnances",null,"Boilers",null,"- Basin",null,"Anorganic Scale",null,null,"Bedrijf 1",null,null,null,null,"Reason",null,"Priority","Explanation","Factor to consider most"]
[null,null,"Leverancier",null,"Columns",null,"Compablock/Plate Exchanger",null,"- Boiler Drum",null,"Asphaltine",null,null,"Bedrijf 2",null,null,null,null,"Breakdown - unexpected",null,"Snelheid","zo snel mogelijk terug in bedrijf","tijd"]
[null,null,"Vervuiling",null,"Cooling Towers",null,"Compablock/Plate Exchanger (Welded)",null,"- Boiler Tubes",null,"Cokes",null,null,"Bedrijf 3",null,null,null,null,"Turnaround - planned",null,"Bulk","kosten kunnen lager zijn per job","mobilisatie kosten"]
[null,null,null,null,"Heat Exchangers",null,"Cooling Towers",null,"- Bundle (external)",null,"Coolingwater Products",null,null,"Bedrijf 4",null,null,null,null,"Routine maintenance",null,"kwaliteit/productiviteit"]
[null,null,null,null,"Piping",null,"Fin Fan / Aircoolers",null,"- Bundle (External) + Shell",null,"Corrosion",null,null,"Bedrijf 5"]
[null,null,null,null,"Tanks / Vessels",null,"Fired Heater",null,"- Bundle (inside tubes)",null,"Dust",null,null,"Bedrijf 6"]
[null,null,null,null,"Other equipment",null,"Other equipment",null,"- Collector",null,"Oil",null,null,"Bedrijf 7"]
[null,null,null,null,null,null,"Packed Column",null,"- Collector Plate",null,"Organic Scale",null,null,"Bedrijf 8"]
[null,null,null,null,null,null,"Piping",null,"- Column",null,"Paraffin",null,null,"Bedrijf 9"]
[null,null,null,null,null,null,"Shell and Tube",null,"- Convection Section",null,"PolyEthylene",null,null,"Bedrijf 10"]
[null,null,null,null,null,null,"Shell and Tube (Niet trekbaar)",null,"- Fans",null,"Waxes",null,null,"Bedrijf 11"]
[null,null,null,null,null,null,"Shell and Tube U-Bundle",null,"- Fined tubes external",null,null,null,null,"Bedrijf 12"]
[null,null,null,null,null,null,"Tank",null,"- Heads & Channels",null,null,null,null,"Bedrijf 13"]
[null,null,null,null,null,null,"Trayed Column",null,"- Heater section"]
[null,null,null,null,null,null,null,null,"- Housing"]
[null,null,null,null,null,null,null,null,"- Packed Material"]
[null,null,null,null,null,null,null,null,"- Plates"]
[null,null,null,null,null,null,null,null,"- Plates + Housing"]
[null,null,null,null,null,null,null,null,"- Radiant Section"]
[null,null,null,null,null,null,null,null,"- Shell"]
[null,null,null,null,null,null,null,null,"- Structure"]
[null,null,null,null,null,null,null,null,"- TLE's"]
[null,null,null,null,null,null,null,null,"- Trays"]
[null,null,null,null,null,null,null,null,"- Tubes (inside)"]
[null,null,null,null,null,null,null,null,"Filters"]
[null,null,null,null,null,null,null,null,"Floors"]
[null,null,null,null,null,null,null,null,"Piping < 1\" internal"]
[null,null,null,null,null,null,null,null,"Piping >1\" <4\" internal"]
[null,null,null,null,null,null,null,null,"Piping >20\" internal"]
[null,null,null,null,null,null,null,null,"Piping >4\", <20\" internal"]
[null,null,null,null,null,null,null,null,"Tank, diameter < 12 m"]
[null,null,null,null,null,null,null,null,"Tank, diameter > 25 m"]
[null,null,null,null,null,null,null,null,"Tank, diameter >12 m, < 25 m"]
[null,null,null,null,null,null,null,null,"Tube Reactor Pipes"]

{"sheet":"Impact per Methode","index":11,"n_rows":11,"n_cols":25,"rows_kept":11,"cut":false,"hidden":false,"merged":[[10,1,10,17],[10,18,10,20],[10,21,10,23]]}
["Impact factors","Tube Darting & Scraping","3D- Nozzle","Rotating Hose Devices","Water Jetting (UHP)","Pigging","Ultrasonic Baths (Chemical Cleaning)","Abrasive Blasting","Drilling (Rodding)","Hydrokinetic Cleaning","Manway Canons","Remotely Operated Vehicles","CO2 Blasting","Flushing","Brushing","Air Lancing","Sodium Bi-Carbonate Blasting","Vacuum, Blowing, Suction Techniques","Liquid Nitrogen Jetting","Laser Cleaning","Pyrolysis","Acidizing","Degreasing","Decontamination","Weging"]
["EH&S Risico",-0.2,-1,-1,-1,-0.8,-0.5,-1.2,-1.2,-1.2,-1,-0.5,-0.8,-1,-0.8,-3,-0.8,-1.1000000000000001,-1.2,-0.2,-0.1,-1,-1,-0.8,1]
["Afval",-0.3,-1,-1,-1,-0.3,-2,-1,-0.3,-0.3,-1,-1,-0.6,-1,-0.3,-3,-1,0,-0.6,-0.1,-0.1,-0.8,-0.8,-0.8,0.8]
["Water gebruik",-0.3,-1,-1,-1,-0.3,-2,-0.3,-0.3,-0.3,-1,-1,0,-1,-0.1,-3,-0.2,0,0,0,-0.1,-0.5,-0.5,-0.5,0.5]
["Energie gebruik",-0.3,-1,-1,-1,-0.3,-2,-0.7,-0.7,-0.7,-1,-1.5,-1.4,-1,-1.4,-3,-1.4,-1,-1.4,-0.5,-0.3,-1.2,-1.2,-1.2,0.8]
["Kosten",-1.2,-1,-1,-1,-1.2,-2,-1.3,-2,-2,-3,-3,-2,-1,-2,-3,-2,-1.1000000000000001,-2,-1.5,-2,-1.5,-1.5,-1.5,0.7]
["Productiviteit",0.8,1,1,1,0.8,0.7,1.5,2,2,1,0.5,0.8,1,0.8,0.1,0.8,2,1.1000000000000001,0.3,1,0.5,0.5,0.5,0.8]
["Kwaliteit",1.5,1,1,1,1.5,1.2,1.5,2,1,1,0.8,0.6,1,0.6,0.1,0.6,0.6,0.7,1.2,2,1.1000000000000001,1.1000000000000001,1.1000000000000001,1]
["Re-use Waste"]
[]
[null,"Mechanical",null,null,null,null,null,null,null,null,null,null,null,null,null,null,null,null,"Thermal",null,null,"Chemical"]

{"sheet":"Leveranciers","index":12,"n_rows":14,"n_cols":25,"rows_kept":14,"cut":false,"hidden":false,"merged":[]}
["Anon Supplier","Supplier","M: Tube Darting & Scraping","M: 3D- Nozzle (Buterworth / Tankwas kop)","M: Rotating Hose Devices","M: Water Jetting (UHP)","M: Pigging","M: Ultrasonic Baths (Chemical Cleaning)","M: Abrasive Blasting","M: Drilling (Raedler)","M: Hydrokinetic Cleaning","M: Manway Canons","M: Remotely Operated Vehicles","M: CO2 Blasting","M: Flushing","M: Brushing","M: Air Lancing","M: Sodium Bi-Carbonate Blasting","M: Vacuum, Blowing, Suction Techniques","T: Liquid Nitrogen Jetting","T: Laser Cleaning","T: Pyrolysis","C: Acidizing","C: Degreasing","C: Decontamination"]
["Supplier A",null,1,1,1,1,1,null,1,null,null,1,1,1,1,1,null,1,1,null,1,null,1,1,1]
["Supplier B",null,null,1,1,1,1,1,1,null,null,1,1,1,1,null,null,1,1,null,1,null,1,1,1]
["Supplier C",null,null,1,1,1,1,null,null,null,null,1,1,1,1,null,null,1,1,null,null,null,1,1,1]
["Supplier D",null,null,1,1,1,1,null,1,null,null,1,1,1,1,null,null,1,1,null,1,null,1,1,1]
["Supplier E",null,null,null,null,null,null,null,null,null,null,null,null,null,null,null,null,null,null,null,1]
["Supplier F",null,null,null,null,null,null,null,null,1]
["Supplier G",null,null,null,null,null,null,1,null,null,null,null,null,1,1,null,null,null,null,null,null,1]
["Supplier H",null,null,null,null,null,null,null,null,null,1]
["Supplier I",null,null,null,null,null,null,null,null,null,null,null,null,null,null,null,null,null,null,null,null,1]
["Supplier J",null,null,null,null,null,null,null,null,null,null,null,null,null,null,null,null,null,null,null,null,1]
["Supplier K",null,1,null,null,null,null,null,null,null,null,null,null,null,null,1,null,null,null,1]
["Supplier L",null,null,null,null,null,null,1,null,null,null,null,null,null,1,null,null,null,null,null,null,null,1,1,1]
["Supplier M",null,null,null,null,null,null,1,null,null,null,null,null,1,1,null,null,null,null,null,null,null,1,1,1]